Local authority department which incurred the expenditure,Service Division,Cost Centre,Summary of the Purpose of Expenditure,Expense Type,Expense Code,Detailed Expense Type,Date of Transaction,Transaction Number,Beneficiary,Merchant Category Number,Merchant Category,Gross Amount,VAT,Net Amount
Regeneration Economy and Growth,Business Durham CL0850,030689,Inward Investment and Aftercare,Supplies and Services,336005,Advertising E336,01-Jul-2022,000008315239634,Google ADS6853017821,7311,Advertising other than for staff,47.88,0.00,47.88
Regeneration Economy and Growth,Business Durham CL0850,030689,Inward Investment and Aftercare,Supplies and Services,336005,Advertising E336,01-Jul-2022,000008315239636,LinkedIn 8005118464,7311,Advertising other than for staff,6.18,0.00,6.18
Regeneration Economy and Growth,Business Durham CL0850,030689,Inward Investment and Aftercare,Supplies and Services,336005,Advertising E336,01-Jul-2022,000008315239638,LINKEDIN-712 1848216,7311,Advertising other than for staff,14.33,0.00,14.33
Regeneration Economy and Growth,Business Durham CL0850,030689,Inward Investment and Aftercare,Employees,040149,Recruitment Instruction and Training,01-Jul-2022,000008315239640,WWW.CIPR.CO.UK,8699,Training-all costs,244.00,0.00,244.00
Regeneration Economy and Growth,Business Durham CL0850,030689,Inward Investment and Aftercare,Employees,040149,Recruitment Instruction and Training,01-Jul-2022,000008315239642,WWW.CIPR.CO.UK,8699,Training-all costs,244.00,0.00,244.00
Children and Young Peoples Services,Head of Childrens Social Care,085611,Families First Stanley,Supplies and Services,364340,Grants to Voluntary Organisations,01-Jul-2022,000008315239662,WWW.GONORTHEAST.CO.UK,4111,Contact expenses,34.00,0.00,34.00
Children and Young Peoples Services,Head of Childrens Social Care,085368,Children Looked After Team 5,Supplies and Services,384302,Miscellaneous Expenses,01-Jul-2022,000008315239664,HTTPS://WWW.DURHAMKART,7999,Activity expenses,60.00,0.00,60.00
Children and Young Peoples Services,Head of Childrens Social Care,085341,High Etherley Satelite Home,Supplies and Services,324117,Provisions E324,01-Jul-2022,000008315239702,TESCO STORES 6329,5411,Catering costs - provisions,6.98,0.00,6.98
Children and Young Peoples Services,Head of Childrens Social Care,085501,Child Care Cases Legal Expenses,Supplies and Services,304403,Equipment and Materials,01-Jul-2022,000008315239708,DARLINGTON BC INTERNET,9399,Other consumables,11.00,0.00,11.00
Children and Young Peoples Services,Head of Education and Skills,075035,DurhamDirections Re-engagement,Supplies and Services,364301,Grants to Voluntary Organisations,01-Jul-2022,000008315239724,WWW.GONORTHEAST.CO.UK,4111,Hardship,15.00,0.00,15.00
Children and Young Peoples Services,Head of Education and Skills,075034,Youth Futures Foundation,Supplies and Services,364301,Grants to Voluntary Organisations,01-Jul-2022,000008315239726,DARLINGTON BC INTERNET,9399,Hardship,11.00,0.00,11.00
Neighbourhoods and Climate Change,Environmental Services,010367,C&G - South Grounds Maintenance,Supplies and Services,304403,Equipment and Materials,01-Jul-2022,000008315239792,THE FAMILY COBBLER,7251,Other consumables,25.00,0.00,25.00
Children and Young Peoples Services,Head of Childrens Social Care,085331,New Lea Childrens Home,Supplies and Services,308011,Furniture,01-Jul-2022,000008315239804,WWW.THERANGE.CO.UK,5719,Furniture repair and replacement,175.99,0.00,175.99
Regeneration Economy and Growth,Corporate Property and Land,021242,Catering - County Hall,Supplies and Services,304403,Equipment and Materials,01-Jul-2022,000008315239866,AMZNMktplace,5999,Other consumables,51.84,8.64,43.20
Regeneration Economy and Growth,Corporate Property and Land,021242,Catering - County Hall,Supplies and Services,304403,Equipment and Materials,01-Jul-2022,000008315239866 - 1,AMZNMktplace,5999,Other consumables,0.08,,0.08
Regeneration Economy and Growth,Corporate Property and Land,021242,Catering - County Hall,Supplies and Services,328041,Clothing uniforms and laundry E328,01-Jul-2022,000008315239868,ARGOS LTD,5310,Clothing uniforms and laundry,34.93,0.00,34.93
Children and Young Peoples Services,Head of Childrens Social Care,085347,Solo Home The Manse,Supplies and Services,348037,Subsistence E348,01-Jul-2022,000008315239894,DOWNEYS OF SEAHAM LTD,5812,Subsistence,8.50,0.00,8.50
Children and Young Peoples Services,Head of Childrens Social Care,085347,Solo Home The Manse,Supplies and Services,348037,Subsistence E348,01-Jul-2022,000008315239896,Creams of Seaham,5812,Subsistence,3.50,0.00,3.50
Children and Young Peoples Services,Head of Childrens Social Care,085347,Solo Home The Manse,Supplies and Services,324117,Provisions E324,01-Jul-2022,000008315239898,SAINSBURYS LOCAL,5411,Catering costs - provisions,1.65,0.00,1.65
Children and Young Peoples Services,Head of Childrens Social Care,085358,Orchard House Sacriston Solo Home,Supplies and Services,328041,Clothing uniforms and laundry E328,01-Jul-2022,000008315239928,AMZ EVAQ8 CO UK,5655,Clothing uniforms and laundry,55.15,0.00,55.15
Children and Young Peoples Services,Head of Childrens Social Care,085358,Orchard House Sacriston Solo Home,Supplies and Services,304403,Equipment and Materials,01-Jul-2022,000008315239930,AMZNMktplace,5999,Other consumables,14.99,2.50,12.49
Children and Young Peoples Services,Head of Childrens Social Care,085358,Orchard House Sacriston Solo Home,Supplies and Services,304403,Equipment and Materials,01-Jul-2022,000008315239932,AMZNMktplace,5999,Other consumables,12.98,2.16,10.82
Children and Young Peoples Services,Head of Childrens Social Care,085358,Orchard House Sacriston Solo Home,Supplies and Services,324117,Provisions E324,01-Jul-2022,000008315239934,ASDA STORES LTD 4313,5411,Catering costs - provisions,40.35,0.00,40.35
Resources BK0010,Digital Services,065481,Technical Services 065481,Supplies and Services,372009,Subscriptions E372,01-Jul-2022,000008315239960,WEB NETWORKSOLUTIONS,5968,Subscriptions 372009,59.55,0.00,59.55
Children and Young Peoples Services,Head of Childrens Social Care,085342,16 Hickstead Rise (previously 9 Cedar Ave),Supplies and Services,348037,Subsistence E348,01-Jul-2022,000008315239966,WWW.THEOLIVEGARDEN.CO.,5812,Subsistence,43.20,0.00,43.20
Children and Young Peoples Services,Head of Childrens Social Care,085342,16 Hickstead Rise (previously 9 Cedar Ave),Transport,235057,Public Transport,01-Jul-2022,000008315239968,LNER WEB SALES,4112,Staff travelling,191.60,0.00,191.60
Children and Young Peoples Services,Head of Childrens Social Care,085342,16 Hickstead Rise (previously 9 Cedar Ave),Supplies and Services,328041,Clothing uniforms and laundry E328,01-Jul-2022,000008315239970,W BOYES & CO LTD NEWTO,5310,Clothing uniforms and laundry,8.36,0.00,8.36
Children and Young Peoples Services,Head of Childrens Social Care,085342,16 Hickstead Rise (previously 9 Cedar Ave),Supplies and Services,328041,Clothing uniforms and laundry E328,01-Jul-2022,000008315239972,PRETTYLITTLETHING.COM,5691,Clothing uniforms and laundry,61.24,0.00,61.24
Children and Young Peoples Services,Head of Childrens Social Care,085342,16 Hickstead Rise (previously 9 Cedar Ave),Supplies and Services,304999,Equipment and Materials,01-Jul-2022,000008315239974,HOME BARGAINS,5251,Misc equipment tools and materials,9.83,0.00,9.83
Children and Young Peoples Services,Head of Childrens Social Care,085342,16 Hickstead Rise (previously 9 Cedar Ave),Supplies and Services,324117,Provisions E324,01-Jul-2022,000008315239976,TESCO STORES 2916,5411,Catering costs - provisions,11.72,0.00,11.72
Children and Young Peoples Services,Head of Childrens Social Care,085342,16 Hickstead Rise (previously 9 Cedar Ave),Supplies and Services,304259,Equipment and Materials,01-Jul-2022,000008315239978,JD SPORTS PLC,5941,Equipment-purchase and rental,27.00,0.00,27.00
Children and Young Peoples Services,Head of Education and Skills,071801,Selby Cottage Childcare Centre,Supplies and Services,324117,Provisions E324,01-Jul-2022,000008315240000,TESCO STORES 2278,5411,Catering costs - provisions,13.80,0.00,13.80
Children and Young Peoples Services,Head of Early Help Inclusion & Vulnerable Children.,085956,Lumley,Transfer Payments,515002,Social Services Clients,01-Jul-2022,000008315240020,AMZNMKTPLACE AMAZON.CO,5999,Pocket money,34.57,0.00,34.57
Children and Young Peoples Services,Head of Early Help Inclusion & Vulnerable Children.,085956,Lumley,Transfer Payments,515002,Social Services Clients,01-Jul-2022,000008315240024,AMZNMKTPLACE AMAZON.CO,5999,Pocket money,22.99,3.83,19.16
Children and Young Peoples Services,Head of Education and Skills,070169,Durham SSP,Supplies and Services,304999,Equipment and Materials,01-Jul-2022,000008315240044,Microsoft Microsoft 36,5816,Misc equipment tools and materials,7.99,1.33,6.66
Resources BK0010,HR & Employee Services,010984,Training and Development,Employees,040149,Recruitment Instruction and Training,01-Jul-2022,000008315240060,PAYPAL NPORS LTD,8699,Training-all costs,48.00,0.00,48.00
Children and Young Peoples Services,Head of Early Help Inclusion & Vulnerable Children.,085965,Barnard,Supplies and Services,324117,Provisions E324,01-Jul-2022,000008315240128,TESCO STORES 6329,5411,Catering costs - provisions,176.10,0.00,176.10
Children and Young Peoples Services,Head of Early Help Inclusion & Vulnerable Children.,088108,Spennymoor & Shildon Intensive Family Support Team,Supplies and Services,384302,Miscellaneous Expenses,01-Jul-2022,000008315240174,Crafty Arts Ltd,5970,Activity expenses,33.93,0.00,33.93
Children and Young Peoples Services,Head of Early Help Inclusion & Vulnerable Children.,088108,Spennymoor & Shildon Intensive Family Support Team,Supplies and Services,384302,Miscellaneous Expenses,01-Jul-2022,000008315240176,HOBBY1,5965,Activity expenses,48.47,0.00,48.47
Children and Young Peoples Services,Head of Early Help Inclusion & Vulnerable Children.,088108,Spennymoor & Shildon Intensive Family Support Team,Supplies and Services,384302,Miscellaneous Expenses,01-Jul-2022,000008315240178,BAKER ROSS,5970,Activity expenses,405.55,0.00,405.55
Children and Young Peoples Services,Head of Early Help Inclusion & Vulnerable Children.,088108,Spennymoor & Shildon Intensive Family Support Team,Supplies and Services,384302,Miscellaneous Expenses,01-Jul-2022,000008315240180,Hobbycraft Trading Lim,5970,Activity expenses,42.00,0.00,42.00
Children and Young Peoples Services,Head of Early Help Inclusion & Vulnerable Children.,088108,Spennymoor & Shildon Intensive Family Support Team,Supplies and Services,384302,Miscellaneous Expenses,01-Jul-2022,000008315240182,WWW.THEWORKS.CO.UK,5310,Activity expenses,222.00,0.00,222.00
Regeneration Economy and Growth,Planning & Housing,031581,Prevention Fund,Supplies and Services,384999,Miscellaneous Expenses,01-Jul-2022,000008315240188,VOUCHER EXPRESS,7399,Other expenses,60.00,0.00,60.00
Neighbourhoods and Climate Change,Environmental Services,010367,C&G - South Grounds Maintenance,Supplies and Services,304999,Equipment and Materials,01-Jul-2022,000008315240198,R DEFTY,5251,Misc equipment tools and materials,19.45,0.00,19.45
Children and Young Peoples Services,Head of Education and Skills,071802,Louisa Cent Nursery,Supplies and Services,304259,Equipment and Materials,01-Jul-2022,000008315240232,WWW.ICO.ORG.UK,9399,Equipment-purchase and rental,60.00,0.00,60.00
Regeneration Economy and Growth,Corporate Property and Land,020098,Bldg Serv - R&M Div 98 - Pools Maintenance,Supplies and Services,304221,Equipment and Materials,01-Jul-2022,000008315240236,WWW.ALLVALVES.CO.UK,5072,Direct materials,355.92,59.32,296.60
Children and Young Peoples Services,Head of Childrens Social Care,085331,New Lea Childrens Home,Supplies and Services,304999,Equipment and Materials,01-Jul-2022,000008315240282,Amazon Prime 2Y33M5EB4,5968,Misc equipment tools and materials,7.99,0.00,7.99
Adult and Health Services,Head of Adults,055301,Stanley Pathways,Supplies and Services,304403,Equipment and Materials,01-Jul-2022,000008315240292,AMZNMktplace,5999,Other consumables,4.23,0.71,3.52
Adult and Health Services,Head of Adults,055301,Stanley Pathways,Supplies and Services,304403,Equipment and Materials,01-Jul-2022,000008315240294,AMZNMktplace,5999,Other consumables,2.48,0.41,2.07
Adult and Health Services,Head of Adults,055301,Stanley Pathways,Supplies and Services,304403,Equipment and Materials,01-Jul-2022,000008315240296,AMZNMKTPLACE AMAZON.CO,5999,Other consumables,2.48,0.41,2.07
Adult and Health Services,Head of Adults,055301,Stanley Pathways,Supplies and Services,324117,Provisions E324,01-Jul-2022,000008315240298,ASDA SUPERSTORE,5411,Catering costs - provisions,4.20,0.00,4.20
Resources BK0010,Digital Services,065323,Operations - Installations,Supplies and Services,304639,Equipment and Materials,01-Jul-2022,000008315240332,Parts Retail Group,5722,Technicians-supplies,18.98,0.00,18.98
Resources BK0010,Digital Services,065335,School Services - Implementations,Supplies and Services,304639,Equipment and Materials,01-Jul-2022,000008315240334,REPLACEBASE,5732,Technicians-supplies,138.98,0.00,138.98
Resources BK0010,Digital Services,065335,School Services - Implementations,Supplies and Services,304639,Equipment and Materials,01-Jul-2022,000008315240336,WWW.ALIEXPRESS.COM,5964,Technicians-supplies,7.70,0.00,7.70
Children and Young Peoples Services,Head of Childrens Social Care,085357,LAC Bespoke Placements,Supplies and Services,352001,Conference Expenses,01-Jul-2022,000008315240366,TOAST LETTINGS,7011,Conferencesseminars fees etc,"2,976.00",0.00,2976.00
Children and Young Peoples Services,Head of Childrens Social Care,085357,LAC Bespoke Placements,Supplies and Services,352001,Conference Expenses,01-Jul-2022,000008315240368,WWW.LUKESTAYS.COM,7011,Conferencesseminars fees etc,513.00,0.00,513.00
Children and Young Peoples Services,Head of Childrens Social Care,085357,LAC Bespoke Placements,Supplies and Services,324117,Provisions E324,01-Jul-2022,000008315240370,ASDA STORES LTD,5411,Catering costs - provisions,92.29,0.00,92.29
Children and Young Peoples Services,Head of Childrens Social Care,085357,LAC Bespoke Placements,Supplies and Services,328041,Clothing uniforms and laundry E328,01-Jul-2022,000008315240372,ARGOS LTD,5310,Clothing uniforms and laundry,139.99,0.00,139.99
Children and Young Peoples Services,Head of Childrens Social Care,085347,Solo Home The Manse,Supplies and Services,324117,Provisions E324,01-Jul-2022,000008315240380,TESCO STORES 2371,5411,Catering costs - provisions,27.23,0.00,27.23
Children and Young Peoples Services,Head of Childrens Social Care,085347,Solo Home The Manse,Supplies and Services,324117,Provisions E324,01-Jul-2022,000008315240382,ALDI 12 774,5411,Catering costs - provisions,25.05,0.00,25.05
Regeneration Economy and Growth,Economic Development Level C,030544,Rural Employability - Client Engagement,Supplies and Services,304259,Equipment and Materials,01-Jul-2022,000008315240418,Durham County CNCL,9399,Equipment-purchase and rental,37.50,0.00,37.50
Children and Young Peoples Services,Head of Education and Skills,071802,Louisa Cent Nursery,Supplies and Services,324117,Provisions E324,01-Jul-2022,000008315240544,ASDA GROCERIES ONLINE,5411,Catering costs - provisions,241.40,0.00,241.40
Children and Young Peoples Services,Head of Education and Skills,071802,Louisa Cent Nursery,Supplies and Services,324117,Provisions E324,01-Jul-2022,000008315240546,ASDA GROCERIES ONLINE,5411,Catering costs - provisions,-3.96,0.00,-3.96
Children and Young Peoples Services,Head of Childrens Social Care,085332,Middlestone Moor CU,Supplies and Services,340001,Postages E340,01-Jul-2022,000008315240578,POST OFFICE COUNTER,9402,Postages,10.00,0.00,10.00
Children and Young Peoples Services,Head of Childrens Social Care,085332,Middlestone Moor CU,Supplies and Services,324117,Provisions E324,01-Jul-2022,000008315240580,WILKO RETAIL LIMITED,5399,Catering costs - provisions,13.50,0.00,13.50
Children and Young Peoples Services,Head of Childrens Social Care,085332,Middlestone Moor CU,Supplies and Services,304403,Equipment and Materials,01-Jul-2022,000008315240582,AMZNMktplace,5999,Other consumables,10.99,1.83,9.16
Children and Young Peoples Services,Head of Childrens Social Care,085332,Middlestone Moor CU,Supplies and Services,304221,Equipment and Materials,01-Jul-2022,000008315240584,WWW.SCREWFIX.COM,5211,Direct materials,24.99,0.00,24.99
Regeneration Economy and Growth,Culture Sport and Tourism,054233,Bishop Auckland Town Hall Library,Supplies and Services,324117,Provisions E324,01-Jul-2022,000008315240606,HERON FOODS,5411,Catering costs - provisions,1.55,0.00,1.55
Regeneration Economy and Growth,Culture Sport and Tourism,054233,Bishop Auckland Town Hall Library,Supplies and Services,324117,Provisions E324,01-Jul-2022,000008315240608,HERON FOODS,5411,Catering costs - provisions,11.98,0.00,11.98
Children and Young Peoples Services,Head of Childrens Social Care,085358,Orchard House Sacriston Solo Home,Supplies and Services,304403,Equipment and Materials,01-Jul-2022,000008315240614,AMZNMktplace,5999,Other consumables,27.98,4.66,23.32
Children and Young Peoples Services,Head of Childrens Social Care,085358,Orchard House Sacriston Solo Home,Supplies and Services,304403,Equipment and Materials,01-Jul-2022,000008315240616,AMZNMktplace,5999,Other consumables,14.97,0.00,14.97
Children and Young Peoples Services,Head of Childrens Social Care,085358,Orchard House Sacriston Solo Home,Supplies and Services,304221,Equipment and Materials,01-Jul-2022,000008315240618,B&Q LTD,5211,Direct materials,33.24,0.00,33.24
Resources BK0010,Procurement Sales & Business Services,065500,Business Support - Management,Third Party Payments,430100,Rendered by Private Contractors,01-Jul-2022,000008315240764,INDEED TEL+35312545907,7399,Payments to sub-contractors,487.98,0.00,487.98
Children and Young Peoples Services,Head of Childrens Social Care,085551,Short Break Services-Park Hse Sher,Supplies and Services,324117,Provisions E324,01-Jul-2022,000008315240794,CO-OP GROUP 010486,5411,Catering costs - provisions,25.15,0.00,25.15
Regeneration Economy and Growth,Corporate Property and Land,011275,Catering -Durham Leadership Centre,Supplies and Services,324117,Provisions E324,01-Jul-2022,000008315385300,FREEMAN CATERING BUTCH,5422,Catering costs - provisions,114.53,0.00,114.53
Regeneration Economy and Growth,Corporate Property and Land,011296,Catering - Dunes,Supplies and Services,324117,Provisions E324,01-Jul-2022,000008315385304,JR HOLLAND FOODSERVICE,5499,Catering costs - provisions,94.46,0.00,94.46
Regeneration Economy and Growth,Corporate Property and Land,011296,Catering - Dunes,Supplies and Services,324117,Provisions E324,01-Jul-2022,000008315385308,JR HOLLAND FOODSERVICE,5499,Catering costs - provisions,-23.97,0.00,-23.97
Regeneration Economy and Growth,Corporate Property and Land,030691,Catering - Durham Dales Centre,Supplies and Services,324117,Provisions E324,01-Jul-2022,000008315385310,FREEMAN CATERING BUTCH,5422,Catering costs - provisions,97.61,0.00,97.61
Regeneration Economy and Growth,Corporate Property and Land,030691,Catering - Durham Dales Centre,Supplies and Services,324117,Provisions E324,01-Jul-2022,000008315385312,JR HOLLAND FOODSERVICE,5499,Catering costs - provisions,51.79,0.00,51.79
Adult and Health Services,Head of Adults,055643,Hawthorn House LD Respite Unit,Supplies and Services,324117,Provisions E324,01-Jul-2022,000008315385318,FREEMAN CATERING BUTCH,5422,Catering costs - provisions,45.84,0.00,45.84
Adult and Health Services,Head of Adults,055643,Hawthorn House LD Respite Unit,Supplies and Services,324117,Provisions E324,01-Jul-2022,000008315385320,FREEMAN CATERING BUTCH,5422,Catering costs - provisions,40.53,0.00,40.53
Adult and Health Services,Head of Adults,055643,Hawthorn House LD Respite Unit,Supplies and Services,324117,Provisions E324,01-Jul-2022,000008315385322,JR HOLLAND FOODSERVICE,5499,Catering costs - provisions,24.84,0.00,24.84
Adult and Health Services,Head of Adults,055643,Hawthorn House LD Respite Unit,Supplies and Services,324117,Provisions E324,01-Jul-2022,000008315385324,JR HOLLAND FOODSERVICE,5499,Catering costs - provisions,35.21,0.00,35.21
Regeneration Economy and Growth,Corporate Property and Land,021234,Catering - Locomotion,Supplies and Services,324117,Provisions E324,01-Jul-2022,000008315385328,FREEMAN CATERING BUTCH,5422,Catering costs - provisions,38.02,0.00,38.02
Regeneration Economy and Growth,Corporate Property and Land,021234,Catering - Locomotion,Supplies and Services,324117,Provisions E324,01-Jul-2022,000008315385330,FREEMAN CATERING BUTCH,5422,Catering costs - provisions,38.02,0.00,38.02
Regeneration Economy and Growth,Corporate Property and Land,021235,Catering - Wharton Park,Supplies and Services,324117,Provisions E324,01-Jul-2022,000008315385334,JR HOLLAND FOODSERVICE,5499,Catering costs - provisions,34.68,0.00,34.68
Regeneration Economy and Growth,Culture Sport and Tourism,011263,Louisa Centre 011263,Supplies and Services,324117,Provisions E324,01-Jul-2022,000008315385336,JR HOLLAND FOODSERVICE,5499,Catering costs - provisions,44.33,0.00,44.33
Regeneration Economy and Growth,Culture Sport and Tourism,054812,Gala Theatre - Catering etc,Supplies and Services,324117,Provisions E324,01-Jul-2022,000008315385338,FREEMAN CATERING BUTCH,5422,Catering costs - provisions,19.16,0.00,19.16
Regeneration Economy and Growth,Culture Sport and Tourism,054812,Gala Theatre - Catering etc,Supplies and Services,324117,Provisions E324,01-Jul-2022,000008315385340,JR HOLLAND FOODSERVICE,5499,Catering costs - provisions,3.16,0.00,3.16
Regeneration Economy and Growth,Culture Sport and Tourism,054812,Gala Theatre - Catering etc,Supplies and Services,324117,Provisions E324,01-Jul-2022,000008315385342,JR HOLLAND FOODSERVICE,5499,Catering costs - provisions,36.77,0.00,36.77
Adult and Health Services,Head of Adults,055643,Hawthorn House LD Respite Unit,Supplies and Services,324117,Provisions E324,01-Jul-2022,000008321561380,BATLEYS PERTH,5300,Catering costs - provisions,18.72,3.12,15.60
Adult and Health Services,Head of Adults,055643,Hawthorn House LD Respite Unit,Supplies and Services,324117,Provisions E324,01-Jul-2022,000008321561380 - 1,BATLEYS PERTH,5300,Catering costs - provisions,152.00,,152.00
Neighbourhoods and Climate Change,Environmental Services,011060,C&G - Hardwick Park Catering,Supplies and Services,324117,Provisions E324,01-Jul-2022,000008321561392,BATLEYS PERTH,5300,Catering costs - provisions,-6.75,0.00,-6.75
Regeneration Economy and Growth,Business Durham CL0850,030689,Inward Investment and Aftercare,Supplies and Services,336005,Advertising E336,01-Jul-2022,000010134247077,LinkedIn 7116459516,7311,Advertising other than for staff,2.41,0.00,2.41
Resources BK0010,Procurement Sales & Business Services,065501,Business Support - Executive Support,Supplies and Services,304403,Equipment and Materials,01-Jul-2022,000010134248307,ACF,5734,Other consumables,1.11,0.00,1.11
Resources BK0010,Procurement Sales & Business Services,065500,Business Support - Management,Supplies and Services,336005,Advertising E336,01-Jul-2022,000010134248611,LinkedIn 8003755634,7311,Advertising other than for staff,103.92,0.00,103.92
Regeneration Economy and Growth,Business Durham CL0850,030689,Inward Investment and Aftercare,Supplies and Services,304403,Equipment and Materials,02-Jul-2022,000008315239644,ADOBE CREATIVE CLOUD,5734,Other consumables,51.98,0.00,51.98
Regeneration Economy and Growth,Culture Sport and Tourism,054731,Killhope Lead Mining Centre,Supplies and Services,338047,Services,02-Jul-2022,000008315239732,SQ TAGMAKERS - ALL TH,5399,Direct production costs,"1,068.00",178.00,890.00
Regeneration Economy and Growth,Culture Sport and Tourism,030712,VCD - Project Delivery,Supplies and Services,384199,Miscellaneous Expenses,02-Jul-2022,000008315239734,MAILCHIMP MISC,5968,Other hired and contracted services,293.79,0.00,293.79
Children and Young Peoples Services,Head of Childrens Social Care,085331,New Lea Childrens Home,Supplies and Services,324117,Provisions E324,02-Jul-2022,000008315239806,ASDA GROCERIES ONLINE,5411,Catering costs - provisions,151.79,0.00,151.79
Children and Young Peoples Services,Head of Childrens Social Care,085331,New Lea Childrens Home,Supplies and Services,324117,Provisions E324,02-Jul-2022,000008315239808,ASDA GROCERIES ONLINE,5411,Catering costs - provisions,6.32,0.00,6.32
Children and Young Peoples Services,Head of Childrens Social Care,085511,Emergency Duty Team,Supplies and Services,352001,Conference Expenses,02-Jul-2022,000008315239870,TRAVELODGE,3615,Conferencesseminars fees etc,177.45,0.00,177.45
Children and Young Peoples Services,Head of Childrens Social Care,085511,Emergency Duty Team,Employees,040149,Recruitment Instruction and Training,02-Jul-2022,000008315239872,PREMIER INN,3811,Training-all costs,164.73,0.00,164.73
Children and Young Peoples Services,Head of Childrens Social Care,085511,Emergency Duty Team,Employees,040149,Recruitment Instruction and Training,02-Jul-2022,000008315239874,PREMIER INN,3811,Training-all costs,175.48,0.00,175.48
Children and Young Peoples Services,Head of Childrens Social Care,085347,Solo Home The Manse,Supplies and Services,348037,Subsistence E348,02-Jul-2022,000008315239900,SumUp Daisy-Maes Vin,5812,Subsistence,9.10,0.00,9.10
Children and Young Peoples Services,Head of Childrens Social Care,085342,16 Hickstead Rise (previously 9 Cedar Ave),Supplies and Services,342222,Computers and Communications,02-Jul-2022,000008315239910,Lebara Mobile Limited,4816,Comp hardware purch-network servers,5.00,0.00,5.00
Children and Young Peoples Services,Head of Childrens Social Care,085358,Orchard House Sacriston Solo Home,Supplies and Services,348037,Subsistence E348,02-Jul-2022,000008315239936,Just Eat,5814,Subsistence,42.96,0.00,42.96
Children and Young Peoples Services,Head of Childrens Social Care,085358,Orchard House Sacriston Solo Home,Supplies and Services,324117,Provisions E324,02-Jul-2022,000008315239938,WILKO RETAIL LIMITED,5399,Catering costs - provisions,35.75,0.00,35.75
Children and Young Peoples Services,Head of Childrens Social Care,085358,Orchard House Sacriston Solo Home,Supplies and Services,324117,Provisions E324,02-Jul-2022,000008315239940,SAINSBURYS S/MKTS,5411,Catering costs - provisions,31.82,0.00,31.82
Children and Young Peoples Services,Head of Childrens Social Care,085358,Orchard House Sacriston Solo Home,Transport,215995,Running Costs of Vehicles,02-Jul-2022,000008315239942,SAINSBURYS PETROL,5541,Vehicle running expenses,35.01,0.00,35.01
Children and Young Peoples Services,Head of Childrens Social Care,085342,16 Hickstead Rise (previously 9 Cedar Ave),Supplies and Services,352001,Conference Expenses,02-Jul-2022,000008315239980,BEACHES GUEST BBL,7011,Conferencesseminars fees etc,57.00,0.00,57.00
Children and Young Peoples Services,Head of Childrens Social Care,085334,West Rainton Satelite Home,Supplies and Services,384999,Miscellaneous Expenses,02-Jul-2022,000008315240028,BODYCARE,5977,Other expenses,12.62,0.00,12.62
Children and Young Peoples Services,Head of Childrens Social Care,085334,West Rainton Satelite Home,Supplies and Services,324117,Provisions E324,02-Jul-2022,000008315240030,WILKO RETAIL LIMITED,5399,Catering costs - provisions,3.20,0.00,3.20
Children and Young Peoples Services,Head of Childrens Social Care,085334,West Rainton Satelite Home,Supplies and Services,348037,Subsistence E348,02-Jul-2022,000008315240032,KFC METROCENTRE FC,5814,Subsistence,22.54,0.00,22.54
Children and Young Peoples Services,Head of Childrens Social Care,085334,West Rainton Satelite Home,Supplies and Services,328041,Clothing uniforms and laundry E328,02-Jul-2022,000008315240034,T K MAXX,5331,Clothing uniforms and laundry,103.12,0.00,103.12
Children and Young Peoples Services,Head of Childrens Social Care,085334,West Rainton Satelite Home,Supplies and Services,328041,Clothing uniforms and laundry E328,02-Jul-2022,000008315240036,PRIMARK 670 GATESHEAD,5651,Clothing uniforms and laundry,30.50,0.00,30.50
Children and Young Peoples Services,Head of Childrens Social Care,085334,West Rainton Satelite Home,Supplies and Services,348037,Subsistence E348,02-Jul-2022,000008315240038,VMS ROADCHEF COSTA,5814,Subsistence,13.55,0.00,13.55
Children and Young Peoples Services,Head of Childrens Social Care,085331,New Lea Childrens Home,Supplies and Services,304403,Equipment and Materials,02-Jul-2022,000008315240072,SumUp Weigh and sav,5999,Other consumables,3.98,0.00,3.98
Children and Young Peoples Services,Head of Childrens Social Care,085331,New Lea Childrens Home,Supplies and Services,324117,Provisions E324,02-Jul-2022,000008315240074,TESCO STORES 4358,5411,Catering costs - provisions,10.50,0.00,10.50
Children and Young Peoples Services,Head of Childrens Social Care,085331,New Lea Childrens Home,Supplies and Services,304403,Equipment and Materials,02-Jul-2022,000008315240076,CARD FACTORY,5947,Other consumables,35.49,0.00,35.49
Adult and Health Services,Head of Adults,055643,Hawthorn House LD Respite Unit,Supplies and Services,324117,Provisions E324,02-Jul-2022,000008315240216,SAINSBURYS S/MKTS,5411,Catering costs - provisions,14.90,0.00,14.90
Children and Young Peoples Services,Head of Education and Skills,071802,Louisa Cent Nursery,Supplies and Services,308011,Furniture,02-Jul-2022,000008315240228,IKEA LTD 143 GATESHEAD,5712,Furniture repair and replacement,89.00,0.00,89.00
Children and Young Peoples Services,Head of Education and Skills,071802,Louisa Cent Nursery,Supplies and Services,308011,Furniture,02-Jul-2022,000008315240230,IKEA LTD 143 GATESHEAD,5712,Furniture repair and replacement,10.00,0.00,10.00
Children and Young Peoples Services,Head of Childrens Social Care,085342,16 Hickstead Rise (previously 9 Cedar Ave),Supplies and Services,348037,Subsistence E348,02-Jul-2022,000008315240246,KFC NEWTON AYCLIFFE,5814,Subsistence,7.98,0.00,7.98
Children and Young Peoples Services,Head of Childrens Social Care,085342,16 Hickstead Rise (previously 9 Cedar Ave),Supplies and Services,348037,Subsistence E348,02-Jul-2022,000008315240248,KFC THINFORD DURHAM PR,5814,Subsistence,11.78,0.00,11.78
Children and Young Peoples Services,Head of Childrens Social Care,085342,16 Hickstead Rise (previously 9 Cedar Ave),Transport,215995,Running Costs of Vehicles,02-Jul-2022,000008315240250,PARK THINFORD NORTH,5541,Vehicle running expenses,5.24,0.00,5.24
Children and Young Peoples Services,Head of Childrens Social Care,085342,16 Hickstead Rise (previously 9 Cedar Ave),Supplies and Services,324117,Provisions E324,02-Jul-2022,000008315240252,SAINSBURYS AYCLIFF,5411,Catering costs - provisions,14.55,0.00,14.55
Children and Young Peoples Services,Head of Childrens Social Care,085331,New Lea Childrens Home,Supplies and Services,304999,Equipment and Materials,02-Jul-2022,000008315240284,HOME BARGAINS,5251,Misc equipment tools and materials,16.98,0.00,16.98
Children and Young Peoples Services,Head of Childrens Social Care,085331,New Lea Childrens Home,Supplies and Services,304259,Equipment and Materials,02-Jul-2022,000008315240286,DVLA DRIVER ONLINE,9399,Equipment-purchase and rental,34.00,0.00,34.00
Children and Young Peoples Services,Head of Childrens Social Care,085331,New Lea Childrens Home,Supplies and Services,304403,Equipment and Materials,02-Jul-2022,000008315240288,CEX LTD,5065,Other consumables,125.00,0.00,125.00
Children and Young Peoples Services,Head of Education and Skills,071732,Dean Bank Childcare,Supplies and Services,324117,Provisions E324,02-Jul-2022,000008315240304,ASDA STORES LTD,5411,Catering costs - provisions,7.50,0.00,7.50
Children and Young Peoples Services,Head of Childrens Social Care,085332,Middlestone Moor CU,Supplies and Services,304259,Equipment and Materials,02-Jul-2022,000008315240596,DVLA DRIVING LICENSE,9399,Equipment-purchase and rental,-34.00,0.00,-34.00
Regeneration Economy and Growth,Culture Sport and Tourism,054233,Bishop Auckland Town Hall Library,Supplies and Services,324117,Provisions E324,02-Jul-2022,000008315240610,WM MORRISONS STORE,5411,Catering costs - provisions,30.53,0.00,30.53
Children and Young Peoples Services,Head of Childrens Social Care,085332,Middlestone Moor CU,Supplies and Services,304999,Equipment and Materials,02-Jul-2022,000008315240696,HOME BARGAINS SPENNYMO,5251,Misc equipment tools and materials,43.13,0.00,43.13
Children and Young Peoples Services,Head of Childrens Social Care,085332,Middlestone Moor CU,Supplies and Services,348037,Subsistence E348,02-Jul-2022,000008315240698,iZ AlfrescoNapoli,5812,Subsistence,33.50,0.00,33.50
Children and Young Peoples Services,Head of Childrens Social Care,085332,Middlestone Moor CU,Supplies and Services,328041,Clothing uniforms and laundry E328,02-Jul-2022,000008315240700,PRIMARK 670 GATESHEAD,5651,Clothing uniforms and laundry,71.40,0.00,71.40
Regeneration Economy and Growth,Business Durham CL0850,030689,Inward Investment and Aftercare,Supplies and Services,342222,Computers and Communications,02-Jul-2022,000008321494308,FASTHOSTS,4816,Comp hardware purch-network servers,63.00,0.00,63.00
Regeneration Economy and Growth,Business Durham CL0850,030689,Inward Investment and Aftercare,Supplies and Services,342222,Computers and Communications,02-Jul-2022,000008321494310,FASTHOSTS,4816,Comp hardware purch-network servers,75.06,0.00,75.06
Children and Young Peoples Services,Head of Childrens Social Care,085331,New Lea Childrens Home,Supplies and Services,348037,Subsistence E348,02-Jul-2022,000008321494736,WWW.TAKEAWAY.JE,5812,Subsistence,13.10,0.00,13.10
Children and Young Peoples Services,Head of Childrens Social Care,085341,High Etherley Satelite Home,Supplies and Services,324117,Provisions E324,03-Jul-2022,000008315239704,ASDA STORES,5411,Catering costs - provisions,5.10,0.00,5.10
Children and Young Peoples Services,Head of Childrens Social Care,085341,High Etherley Satelite Home,Supplies and Services,304259,Equipment and Materials,03-Jul-2022,000008315239706,HALFORDS 0526,5940,Equipment-purchase and rental,31.49,0.00,31.49
Children and Young Peoples Services,Head of Childrens Social Care,085347,Solo Home The Manse,Supplies and Services,324117,Provisions E324,03-Jul-2022,000008315239720,B&M 600 - THORNE,5399,Catering costs - provisions,66.22,0.00,66.22
Children and Young Peoples Services,Head of Childrens Social Care,085511,Emergency Duty Team,Employees,040149,Recruitment Instruction and Training,03-Jul-2022,000008315239876,PREMIER INN,3811,Training-all costs,-47.98,0.00,-47.98
Children and Young Peoples Services,Head of Childrens Social Care,085347,Solo Home The Manse,Transport,235057,Public Transport,03-Jul-2022,000008315239902,RYEDALE DISTRICT COUNC,7523,Staff travelling,2.60,0.00,2.60
Children and Young Peoples Services,Head of Childrens Social Care,085347,Solo Home The Manse,Supplies and Services,324117,Provisions E324,03-Jul-2022,000008315239904,HELMSLEY SWEETS SHOP,5441,Catering costs - provisions,5.10,0.00,5.10
Children and Young Peoples Services,Head of Early Help Inclusion & Vulnerable Children.,085962,Aycliffe Secure - Durham,Supplies and Services,304403,Equipment and Materials,03-Jul-2022,000008315240002,AMZNMktplace,5999,Other consumables,20.52,3.42,17.10
Children and Young Peoples Services,Head of Childrens Social Care,085331,New Lea Childrens Home,Supplies and Services,304999,Equipment and Materials,03-Jul-2022,000008315240078,Costco Wholesale #109,7278,Misc equipment tools and materials,10.05,0.00,10.05
Children and Young Peoples Services,Head of Childrens Social Care,085331,New Lea Childrens Home,Supplies and Services,304999,Equipment and Materials,03-Jul-2022,000008315240080,Costco Wholesale #109,7278,Misc equipment tools and materials,24.39,0.00,24.39
Children and Young Peoples Services,Head of Childrens Social Care,085331,New Lea Childrens Home,Supplies and Services,304999,Equipment and Materials,03-Jul-2022,000008315240082,HOME BARGAINS,5251,Misc equipment tools and materials,22.86,0.00,22.86
Children and Young Peoples Services,Head of Childrens Social Care,085331,New Lea Childrens Home,Supplies and Services,384237,Miscellaneous Expenses,03-Jul-2022,000008315240084,SP TREASURE TRAILS,7999,Recreational exps outings parties,9.99,0.00,9.99
Children and Young Peoples Services,Head of Early Help Inclusion & Vulnerable Children.,085965,Barnard,Supplies and Services,324117,Provisions E324,03-Jul-2022,000008315240130,TESCO STORES 6329,5411,Catering costs - provisions,17.40,0.00,17.40
Children and Young Peoples Services,Head of Childrens Social Care,085332,Middlestone Moor CU,Supplies and Services,344033,Telephones,03-Jul-2022,000008315240586,VESTA VODAFONE TOPUP,4814,Telephones general-all costs,5.00,0.00,5.00
Children and Young Peoples Services,Head of Childrens Social Care,085332,Middlestone Moor CU,Supplies and Services,332047,Printing Stationery and Gen Off Exps,03-Jul-2022,000008315240588,Vue Entertainment Ltd,7832,Stationery,19.96,0.00,19.96
Children and Young Peoples Services,Head of Childrens Social Care,085332,Middlestone Moor CU,Supplies and Services,348037,Subsistence E348,03-Jul-2022,000008315240590,SUBWAY 44241 Dalton Pa,5814,Subsistence,13.75,0.00,13.75
Children and Young Peoples Services,Head of Childrens Social Care,085332,Middlestone Moor CU,Supplies and Services,328041,Clothing uniforms and laundry E328,03-Jul-2022,000008315240592,CLAIRE`S ACCESSORIES,5699,Clothing uniforms and laundry,65.00,0.00,65.00
Children and Young Peoples Services,Head of Childrens Social Care,085332,Middlestone Moor CU,Supplies and Services,324117,Provisions E324,03-Jul-2022,000008315240594,ASDA SUPERSTORE 4987,5411,Catering costs - provisions,99.88,0.00,99.88
Resources BK0010,Procurement Sales & Business Services,065500,Business Support - Management,Supplies and Services,336005,Advertising E336,03-Jul-2022,000008315240766,LINKEDIN-800 8939264,7311,Advertising other than for staff,104.70,0.00,104.70
Regeneration Economy and Growth,Culture Sport and Tourism,030705,Visit County Durham 030705,Supplies and Services,304259,Equipment and Materials,03-Jul-2022,000008321494362,FASTHOSTS,4816,Equipment-purchase and rental,7.54,1.26,6.28
Children and Young Peoples Services,Head of Childrens Social Care,085511,Emergency Duty Team,Employees,040149,Recruitment Instruction and Training,03-Jul-2022,000008321494456,PREMIER INN,3811,Training-all costs,-24.99,0.00,-24.99
Children and Young Peoples Services,Head of Childrens Social Care,085358,Orchard House Sacriston Solo Home,Supplies and Services,324117,Provisions E324,03-Jul-2022,000008321494480,CO-OP GROUP FOOD,5411,Catering costs - provisions,30.84,0.00,30.84
Children and Young Peoples Services,Head of Education and Skills,071802,Louisa Cent Nursery,Supplies and Services,324117,Provisions E324,03-Jul-2022,000008321494720,ALDI STORES,5411,Catering costs - provisions,24.14,0.00,24.14
Children and Young Peoples Services,Head of Childrens Social Care,085331,New Lea Childrens Home,Supplies and Services,304403,Equipment and Materials,03-Jul-2022,000008321494738,AMZNMKTPLACE AMAZON.CO,5999,Other consumables,78.50,0.00,78.50
Children and Young Peoples Services,Head of Childrens Social Care,085331,New Lea Childrens Home,Supplies and Services,304403,Equipment and Materials,03-Jul-2022,000008321494740,AMZNMKTPLACE AMAZON.CO,5999,Other consumables,28.99,0.00,28.99
Children and Young Peoples Services,Head of Childrens Social Care,085332,Middlestone Moor CU,Supplies and Services,344033,Telephones,03-Jul-2022,000008321494910,THREE,4814,Telephones general-all costs,10.00,0.00,10.00
Children and Young Peoples Services,Head of Childrens Social Care,085332,Middlestone Moor CU,Supplies and Services,324117,Provisions E324,03-Jul-2022,000008321494936,WM MORRISONS STORE,5411,Catering costs - provisions,5.13,0.00,5.13
Children and Young Peoples Services,Head of Early Help Inclusion & Vulnerable Children.,088111,Easington Horden & Seascape Family Centre,Supplies and Services,304403,Equipment and Materials,03-Jul-2022,000008321495016,AMZNMKTPLACE AMAZON.CO,5999,Other consumables,320.05,0.00,320.05
Neighbourhoods and Climate Change,Environmental Services,011060,C&G - Hardwick Park Catering,Supplies and Services,324117,Provisions E324,03-Jul-2022,000008321561384,BATLEYS PERTH,5300,Catering costs - provisions,64.68,10.78,53.90
Neighbourhoods and Climate Change,Environmental Services,011060,C&G - Hardwick Park Catering,Supplies and Services,324117,Provisions E324,03-Jul-2022,000008321561384 - 1,BATLEYS PERTH,5300,Catering costs - provisions,104.21,,104.21
Regeneration Economy and Growth,Business Durham CL0850,030689,Inward Investment and Aftercare,Supplies and Services,336005,Advertising E336,04-Jul-2022,000008315239646,LINKEDIN-712 1848216,7311,Advertising other than for staff,0.39,0.00,0.39
Resources BK0010,Digital Services,065481,Technical Services 065481,Supplies and Services,372009,Subscriptions E372,04-Jul-2022,000008315239962,WEB NETWORKSOLUTIONS,5968,Subscriptions 372009,1.64,0.00,1.64
Children and Young Peoples Services,Head of Education and Skills,071801,Selby Cottage Childcare Centre,Supplies and Services,304403,Equipment and Materials,04-Jul-2022,000008321494316,AMZNMKTPLACE AMAZON.CO,5999,Other consumables,21.95,0.00,21.95
Dedicated Schools Grant BG0015,DSG Schools Block,110012,The Woodlands 1100 - The Bridge,Supplies and Services,324093,Provisions E324,04-Jul-2022,000008321494318,ASDA GROCERIES ONLINE,5411,Meals-School Meals Service,61.03,0.00,61.03
Dedicated Schools Grant BG0015,DSG Schools Block,110012,The Woodlands 1100 - The Bridge,Supplies and Services,324093,Provisions E324,04-Jul-2022,000008321494320,ASDA GROCERIES ONLINE,5411,Meals-School Meals Service,-0.65,0.00,-0.65
Children and Young Peoples Services,Head of Childrens Social Care,085501,Child Care Cases Legal Expenses,Supplies and Services,304403,Equipment and Materials,04-Jul-2022,000008321494334,DARLINGTON BC INTERNET,9399,Other consumables,11.00,0.00,11.00
Children and Young Peoples Services,Head of Childrens Social Care,085501,Child Care Cases Legal Expenses,Supplies and Services,304403,Equipment and Materials,04-Jul-2022,000008321494336,DARLINGTON BC INTERNET,9399,Other consumables,11.00,0.00,11.00
Children and Young Peoples Services,Head of Childrens Social Care,085501,Child Care Cases Legal Expenses,Supplies and Services,304403,Equipment and Materials,04-Jul-2022,000008321494338,DARLINGTON BC INTERNET,9399,Other consumables,11.00,0.00,11.00
Children and Young Peoples Services,Head of Education and Skills,075035,DurhamDirections Re-engagement,Supplies and Services,364301,Grants to Voluntary Organisations,04-Jul-2022,000008321494344,WWW.GONORTHEAST.CO.UK,4111,Hardship,68.00,0.00,68.00
Children and Young Peoples Services,Head of Education and Skills,075034,Youth Futures Foundation,Supplies and Services,364301,Grants to Voluntary Organisations,04-Jul-2022,000008321494346,WWW.GONORTHEAST.CO.UK,4111,Hardship,15.00,0.00,15.00
Regeneration Economy and Growth,Culture Sport and Tourism,011056,AAP Funding - Sport & Leisure,Supplies and Services,384999,Miscellaneous Expenses,04-Jul-2022,000008321494352,BAKER ROSS,5970,Other expenses,40.20,6.70,33.50
Regeneration Economy and Growth,Culture Sport and Tourism,054815,Gala Theatre Stage School,Supplies and Services,338047,Services,04-Jul-2022,000008321494354,WWW.MINERVACRAFTS.COM,5970,Direct production costs,24.94,4.16,20.78
Regeneration Economy and Growth,Culture Sport and Tourism,054815,Gala Theatre Stage School,Supplies and Services,338047,Services,04-Jul-2022,000008321494356,SP CHEAPFABRICS.CO.U,5734,Direct production costs,122.15,0.00,122.15
Regeneration Economy and Growth,Culture Sport and Tourism,054815,Gala Theatre Stage School,Supplies and Services,338047,Services,04-Jul-2022,000008321494358,AMZNMktplace,5999,Direct production costs,21.60,3.60,18.00
Regeneration Economy and Growth,Culture Sport and Tourism,054815,Gala Theatre Stage School,Supplies and Services,338047,Services,04-Jul-2022,000008321494358 - 1,AMZNMktplace,5999,Direct production costs,0.06,,0.06
Regeneration Economy and Growth,Culture Sport and Tourism,030705,Visit County Durham 030705,Employees,040149,Recruitment Instruction and Training,04-Jul-2022,000008321494364,TOURISM MANAGEMENT INS,8699,Training-all costs,102.00,17.00,85.00
Regeneration Economy and Growth,Culture Sport and Tourism,030705,Visit County Durham 030705,Employees,040149,Recruitment Instruction and Training,04-Jul-2022,000008321494366,TOURISM MANAGEMENT INS,8699,Training-all costs,102.00,17.00,85.00
Children and Young Peoples Services,Head of Childrens Social Care,085332,Middlestone Moor CU,Supplies and Services,324117,Provisions E324,04-Jul-2022,000008321494368,WILKO RETAIL LIMITED,5399,Catering costs - provisions,9.70,0.00,9.70
Regeneration Economy and Growth,Economic Development Level C,030544,Rural Employability - Client Engagement,Transport,235057,Public Transport,04-Jul-2022,000008321494424,PRINCE BISHOP SHOPPING,7523,Staff travelling,3.30,0.00,3.30
Children and Young Peoples Services,Head of Childrens Social Care,085332,Middlestone Moor CU,Supplies and Services,324117,Provisions E324,04-Jul-2022,000008321494426,ASDA SUPERSTORE 4987,5411,Catering costs - provisions,49.66,0.00,49.66
Children and Young Peoples Services,Head of Childrens Social Care,085332,Middlestone Moor CU,Supplies and Services,304403,Equipment and Materials,04-Jul-2022,000008321494428,AMZNMktplace,5999,Other consumables,23.77,3.96,19.81
Children and Young Peoples Services,Head of Childrens Social Care,085332,Middlestone Moor CU,Supplies and Services,304403,Equipment and Materials,04-Jul-2022,000008321494430,AMZNMktplace,5999,Other consumables,15.67,2.61,13.06
Children and Young Peoples Services,Head of Childrens Social Care,085358,Orchard House Sacriston Solo Home,Supplies and Services,348037,Subsistence E348,04-Jul-2022,000008321494482,BUFFET KING,5812,Subsistence,35.80,0.00,35.80
Children and Young Peoples Services,Head of Childrens Social Care,085358,Orchard House Sacriston Solo Home,Supplies and Services,384999,Miscellaneous Expenses,04-Jul-2022,000008321494484,BODYCARE,5977,Other expenses,37.59,0.00,37.59
Children and Young Peoples Services,Head of Childrens Social Care,085358,Orchard House Sacriston Solo Home,Supplies and Services,324117,Provisions E324,04-Jul-2022,000008321494486,NYA Wilcomatic Ltd,5499,Catering costs - provisions,0.50,0.00,0.50
Children and Young Peoples Services,Head of Childrens Social Care,085358,Orchard House Sacriston Solo Home,Supplies and Services,324117,Provisions E324,04-Jul-2022,000008321494490,ASDA STORES LTD 4313,5411,Catering costs - provisions,13.20,0.00,13.20
Children and Young Peoples Services,Head of Childrens Social Care,085358,Orchard House Sacriston Solo Home,Supplies and Services,324117,Provisions E324,04-Jul-2022,000008321494496,TESCO STORES 6334,5411,Catering costs - provisions,3.00,0.00,3.00
Children and Young Peoples Services,Head of Education and Skills,071732,Dean Bank Childcare,Supplies and Services,324117,Provisions E324,04-Jul-2022,000008321494524,ASDA GROCERIES ONLINE,5411,Catering costs - provisions,75.83,0.00,75.83
Children and Young Peoples Services,Head of Education and Skills,071732,Dean Bank Childcare,Supplies and Services,324117,Provisions E324,04-Jul-2022,000008321494526,ASDA GROCERIES ONLINE,5411,Catering costs - provisions,-0.36,0.00,-0.36
Regeneration Economy and Growth,Culture Sport and Tourism,054813,Gala Theatre - Technical,Supplies and Services,304259,Equipment and Materials,04-Jul-2022,000008321494528,AMZNMKTPLACE AMAZON.CO,5999,Equipment-purchase and rental,35.95,6.00,29.95
Regeneration Economy and Growth,Culture Sport and Tourism,011277,Technical - Events Delivery,Supplies and Services,304259,Equipment and Materials,04-Jul-2022,000008321494530,AMZNMktplace,5999,Equipment-purchase and rental,44.88,7.50,37.38
Regeneration Economy and Growth,Culture Sport and Tourism,011277,Technical - Events Delivery,Supplies and Services,304259,Equipment and Materials,04-Jul-2022,000008321494532,AMZNMktplace,5999,Equipment-purchase and rental,52.36,12.50,39.86
Regeneration Economy and Growth,Culture Sport and Tourism,011277,Technical - Events Delivery,Supplies and Services,304259,Equipment and Materials,04-Jul-2022,000008321494534,AMZNMktplace,5999,Equipment-purchase and rental,22.44,12.50,9.94
Regeneration Economy and Growth,Culture Sport and Tourism,011277,Technical - Events Delivery,Supplies and Services,304259,Equipment and Materials,04-Jul-2022,000008321494536,AMZNMktplace,5999,Equipment-purchase and rental,44.88,7.50,37.38
Regeneration Economy and Growth,Culture Sport and Tourism,011277,Technical - Events Delivery,Supplies and Services,304259,Equipment and Materials,04-Jul-2022,000008321494538,AMZNMktplace,5999,Equipment-purchase and rental,37.40,6.25,31.15
Regeneration Economy and Growth,Culture Sport and Tourism,011277,Technical - Events Delivery,Supplies and Services,304259,Equipment and Materials,04-Jul-2022,000008321494540,AMZNMktplace,5999,Equipment-purchase and rental,22.44,3.75,18.69
Regeneration Economy and Growth,Culture Sport and Tourism,054813,Gala Theatre - Technical,Supplies and Services,304259,Equipment and Materials,04-Jul-2022,000008321494542,AMZNMktplace,5999,Equipment-purchase and rental,67.92,11.32,56.60
Regeneration Economy and Growth,Culture Sport and Tourism,054813,Gala Theatre - Technical,Supplies and Services,304259,Equipment and Materials,04-Jul-2022,000008321494542 - 1,AMZNMktplace,5999,Equipment-purchase and rental,0.04,,0.04
Regeneration Economy and Growth,Culture Sport and Tourism,054813,Gala Theatre - Technical,Supplies and Services,304259,Equipment and Materials,04-Jul-2022,000008321494544,AMZNMktplace,5999,Equipment-purchase and rental,82.88,13.81,69.07
Regeneration Economy and Growth,Culture Sport and Tourism,054813,Gala Theatre - Technical,Supplies and Services,304259,Equipment and Materials,04-Jul-2022,000008321494546,WWW.FLINTS.CO.UK,5691,Equipment-purchase and rental,147.11,0.00,147.11
Regeneration Economy and Growth,Culture Sport and Tourism,054813,Gala Theatre - Technical,Supplies and Services,304259,Equipment and Materials,04-Jul-2022,000008321494548,AMZNMktplace,5999,Equipment-purchase and rental,45.98,7.66,38.32
Adult and Health Services,Head of Adults,052953,Training - Social Work,Third Party Payments,430100,Rendered by Private Contractors,04-Jul-2022,000008321494550,EB NECESSITY AND PROP,7399,Payments to sub-contractors,40.00,0.00,40.00
Children and Young Peoples Services,Head of Early Help Inclusion & Vulnerable Children.,085957,Secure Management,Supplies and Services,304259,Equipment and Materials,04-Jul-2022,000008321494558,Amazon MP3,5735,Equipment-purchase and rental,0.98,0.00,0.98
Children and Young Peoples Services,Head of Early Help Inclusion & Vulnerable Children.,085957,Secure Management,Supplies and Services,304259,Equipment and Materials,04-Jul-2022,000008321494560,Amazon MP3,5735,Equipment-purchase and rental,0.98,0.00,0.98
Children and Young Peoples Services,Head of Early Help Inclusion & Vulnerable Children.,085957,Secure Management,Supplies and Services,304259,Equipment and Materials,04-Jul-2022,000008321494562,Amazon MP3,5735,Equipment-purchase and rental,0.98,0.00,0.98
Children and Young Peoples Services,Head of Early Help Inclusion & Vulnerable Children.,085957,Secure Management,Supplies and Services,304259,Equipment and Materials,04-Jul-2022,000008321494564,Amazon MP3,5735,Equipment-purchase and rental,0.98,0.00,0.98
Children and Young Peoples Services,Head of Early Help Inclusion & Vulnerable Children.,085957,Secure Management,Supplies and Services,304403,Equipment and Materials,04-Jul-2022,000008321494566,AMZNMktplace,5999,Other consumables,9.99,1.67,8.32
Children and Young Peoples Services,Head of Childrens Social Care,085364,Children Looked After Team 1,Transport,235057,Public Transport,04-Jul-2022,000008321494584,STAGECOACH SERVICE,4131,Staff travelling,13.69,0.00,13.69
Children and Young Peoples Services,Head of Childrens Social Care,085364,Children Looked After Team 1,Transport,235057,Public Transport,04-Jul-2022,000008321494586,CURB,4121,Staff travelling,84.00,0.00,84.00
Children and Young Peoples Services,Head of Childrens Social Care,085331,New Lea Childrens Home,Supplies and Services,328041,Clothing uniforms and laundry E328,04-Jul-2022,000008321494658,POUNDSTRETCHER 354,5331,Clothing uniforms and laundry,1.30,0.00,1.30
Children and Young Peoples Services,Head of Childrens Social Care,085331,New Lea Childrens Home,Supplies and Services,304999,Equipment and Materials,04-Jul-2022,000008321494660,HOME BARGAINS,5251,Misc equipment tools and materials,26.70,0.00,26.70
Children and Young Peoples Services,Head of Childrens Social Care,085331,New Lea Childrens Home,Supplies and Services,304403,Equipment and Materials,04-Jul-2022,000008321494662,CARD FACTORY,5947,Other consumables,23.62,0.00,23.62
Children and Young Peoples Services,Head of Childrens Social Care,085331,New Lea Childrens Home,Supplies and Services,348037,Subsistence E348,04-Jul-2022,000008321494664,The Woodmans Arms,5812,Subsistence,7.20,0.00,7.20
Children and Young Peoples Services,Head of Childrens Social Care,085331,New Lea Childrens Home,Supplies and Services,348037,Subsistence E348,04-Jul-2022,000008321494666,The Woodmans Arms,5812,Subsistence,42.95,0.00,42.95
Children and Young Peoples Services,Head of Childrens Social Care,085352,New Childrens Home (previously Tow Law),Supplies and Services,348037,Subsistence E348,04-Jul-2022,000008321494684,43039235 COSTA COFFEE,5814,Subsistence,6.70,0.00,6.70
Children and Young Peoples Services,Head of Childrens Social Care,085352,New Childrens Home (previously Tow Law),Supplies and Services,348037,Subsistence E348,04-Jul-2022,000008321494686,43024665 COSTA COFFEE,5814,Subsistence,6.70,0.00,6.70
Children and Young Peoples Services,Head of Childrens Social Care,085381,Adoption Team,Supplies and Services,338043,Services,04-Jul-2022,000008321494690,OSBORNES SOLICITOR,8111,Solicitor fees,750.00,0.00,750.00
Children and Young Peoples Services,Head of Early Help Inclusion & Vulnerable Children.,088108,Spennymoor & Shildon Intensive Family Support Team,Supplies and Services,384302,Miscellaneous Expenses,04-Jul-2022,000008321494702,ASDA STORES,5411,Activity expenses,15.00,0.00,15.00
Regeneration Economy and Growth,Economic Development Level C,030776,LINKCD Flexible Fund,Supplies and Services,324117,Provisions E324,04-Jul-2022,000008321494722,TESCO STORES 2371,5411,Catering costs - provisions,3.05,0.00,3.05
Regeneration Economy and Growth,Economic Development Level C,030776,LINKCD Flexible Fund,Supplies and Services,324117,Provisions E324,04-Jul-2022,000008321494724,TESCO STORES 2371,5411,Catering costs - provisions,4.40,0.00,4.40
Children and Young Peoples Services,Head of Childrens Social Care,085342,16 Hickstead Rise (previously 9 Cedar Ave),Supplies and Services,324117,Provisions E324,04-Jul-2022,000008321494730,TESCO STORES 2916,5411,Catering costs - provisions,138.97,0.00,138.97
Children and Young Peoples Services,Head of Education and Skills,071732,Dean Bank Childcare,Supplies and Services,324117,Provisions E324,04-Jul-2022,000008321494746,ASDA GROCERIES ONLINE,5411,Catering costs - provisions,70.03,0.00,70.03
Children and Young Peoples Services,Head of Education and Skills,071732,Dean Bank Childcare,Supplies and Services,324117,Provisions E324,04-Jul-2022,000008321494748,ASDA GROCERIES ONLINE,5411,Catering costs - provisions,-1.75,0.00,-1.75
Dedicated Schools Grant BG0015,DSG Schools Block,231104,Peases West Primary 2311 - General Curriculum,Supplies and Services,304403,Equipment and Materials,04-Jul-2022,000008321494796,AMZNMktplace,5999,Other consumables,13.46,2.24,11.22
Dedicated Schools Grant BG0015,DSG Schools Block,231104,Peases West Primary 2311 - General Curriculum,Supplies and Services,304403,Equipment and Materials,04-Jul-2022,000008321494800,AMZNMktplace,5999,Other consumables,11.58,1.94,9.64
Resources BK0010,Procurement Sales & Business Services,065501,Business Support - Executive Support,Supplies and Services,344033,Telephones,04-Jul-2022,000008321494844,WWW.BROADBANDBUYER.CO.,4814,Telephones general-all costs,127.36,0.00,127.36
Children and Young Peoples Services,Head of Childrens Social Care,085347,Solo Home The Manse,Supplies and Services,348037,Subsistence E348,04-Jul-2022,000008321494848,SumUp Michelle Wind,5812,Subsistence,5.80,0.00,5.80
Children and Young Peoples Services,Head of Education and Skills,071802,Louisa Cent Nursery,Supplies and Services,324117,Provisions E324,04-Jul-2022,000008321494872,ASDA SUPERSTORE,5411,Catering costs - provisions,13.35,0.00,13.35
Resources BK0010,Procurement Sales & Business Services,065503,Business Support - Spectrum,Transport,235057,Public Transport,04-Jul-2022,000008321494890,WWW.GONORTHEAST.CO.UK,4111,Staff travelling,25.00,0.00,25.00
Resources BK0010,Procurement Sales & Business Services,065503,Business Support - Spectrum,Transport,235057,Public Transport,04-Jul-2022,000008321494892,WWW.GONORTHEAST.CO.UK,4111,Staff travelling,34.00,0.00,34.00
Resources BK0010,Procurement Sales & Business Services,065503,Business Support - Spectrum,Transport,235057,Public Transport,04-Jul-2022,000008321494894,WWW.GONORTHEAST.CO.UK,4111,Staff travelling,34.00,0.00,34.00
Regeneration Economy and Growth,Culture Sport and Tourism,054233,Bishop Auckland Town Hall Library,Supplies and Services,324117,Provisions E324,04-Jul-2022,000008321494912,HERON FOODS,5411,Catering costs - provisions,8.00,0.00,8.00
Children and Young Peoples Services,Head of Childrens Social Care,085332,Middlestone Moor CU,Supplies and Services,324117,Provisions E324,04-Jul-2022,000008321494940,ASDA SUPERSTORE 4987,5411,Catering costs - provisions,14.00,0.00,14.00
Children and Young Peoples Services,Head of Childrens Social Care,085334,West Rainton Satelite Home,Supplies and Services,304259,Equipment and Materials,04-Jul-2022,000008321494942,DOLPHIN CENTRE CATERIN,9399,Equipment-purchase and rental,11.00,0.00,11.00
Resources BK0010,Procurement Sales & Business Services,065500,Business Support - Management,Supplies and Services,336005,Advertising E336,04-Jul-2022,000008321494984,FACEBK CY8SRD75B2,7311,Advertising other than for staff,500.00,0.00,500.00
Regeneration Economy and Growth,Corporate Property and Land,010525,Catering - Green Lane,Supplies and Services,324117,Provisions E324,04-Jul-2022,000008321561360,JR HOLLAND FOODSERVICE,5499,Catering costs - provisions,64.32,0.00,64.32
Regeneration Economy and Growth,Corporate Property and Land,011275,Catering -Durham Leadership Centre,Supplies and Services,324117,Provisions E324,04-Jul-2022,000008321561362,HOPWELLS LTD,5811,Catering costs - provisions,216.76,0.00,216.76
Regeneration Economy and Growth,Corporate Property and Land,011275,Catering -Durham Leadership Centre,Supplies and Services,324117,Provisions E324,04-Jul-2022,000008321561364,HOPWELLS LTD,5811,Catering costs - provisions,-11.03,0.00,-11.03
Regeneration Economy and Growth,Culture Sport and Tourism,011265,Empire Theatre (Operations),Supplies and Services,324117,Provisions E324,04-Jul-2022,000008321561366,JR HOLLAND FOODSERVICE,5499,Catering costs - provisions,31.57,0.00,31.57
Regeneration Economy and Growth,Corporate Property and Land,011296,Catering - Dunes,Supplies and Services,324117,Provisions E324,04-Jul-2022,000008321561368,HOPWELLS LTD,5811,Catering costs - provisions,66.06,11.01,55.05
Regeneration Economy and Growth,Corporate Property and Land,011296,Catering - Dunes,Supplies and Services,324117,Provisions E324,04-Jul-2022,000008321561368 - 1,HOPWELLS LTD,5811,Catering costs - provisions,48.86,,48.86
Regeneration Economy and Growth,Corporate Property and Land,011296,Catering - Dunes,Supplies and Services,324117,Provisions E324,04-Jul-2022,000008321561370,HOPWELLS LTD,5811,Catering costs - provisions,155.34,25.89,129.45
Regeneration Economy and Growth,Corporate Property and Land,011296,Catering - Dunes,Supplies and Services,324117,Provisions E324,04-Jul-2022,000008321561370 - 1,HOPWELLS LTD,5811,Catering costs - provisions,187.08,,187.08
Regeneration Economy and Growth,Corporate Property and Land,030691,Catering - Durham Dales Centre,Supplies and Services,324117,Provisions E324,04-Jul-2022,000008321561372,HOPWELLS LTD,5811,Catering costs - provisions,127.78,0.00,127.78
Regeneration Economy and Growth,Corporate Property and Land,030691,Catering - Durham Dales Centre,Supplies and Services,324117,Provisions E324,04-Jul-2022,000008321561374,HOPWELLS LTD,5811,Catering costs - provisions,22.80,3.80,19.00
Regeneration Economy and Growth,Corporate Property and Land,030691,Catering - Durham Dales Centre,Supplies and Services,324117,Provisions E324,04-Jul-2022,000008321561374 - 1,HOPWELLS LTD,5811,Catering costs - provisions,209.49,,209.49
Regeneration Economy and Growth,Corporate Property and Land,030691,Catering - Durham Dales Centre,Supplies and Services,324117,Provisions E324,04-Jul-2022,000008321561376,HOPWELLS LTD,5811,Catering costs - provisions,-11.03,0.00,-11.03
Regeneration Economy and Growth,Culture Sport and Tourism,054235,Bishop Auckland Town Hall Cafe,Supplies and Services,324117,Provisions E324,04-Jul-2022,000008321561378,JR HOLLAND FOODSERVICE,5499,Catering costs - provisions,269.80,0.00,269.80
Adult and Health Services,Head of Adults,055643,Hawthorn House LD Respite Unit,Supplies and Services,324117,Provisions E324,04-Jul-2022,000008321561382,JR HOLLAND FOODSERVICE,5499,Catering costs - provisions,22.62,0.00,22.62
Neighbourhoods and Climate Change,Environmental Services,011060,C&G - Hardwick Park Catering,Supplies and Services,324117,Provisions E324,04-Jul-2022,000008321561386,HOPWELLS LTD,5811,Catering costs - provisions,475.02,79.17,395.85
Neighbourhoods and Climate Change,Environmental Services,011060,C&G - Hardwick Park Catering,Supplies and Services,324117,Provisions E324,04-Jul-2022,000008321561386 - 1,HOPWELLS LTD,5811,Catering costs - provisions,82.93,,82.93
Neighbourhoods and Climate Change,Environmental Services,011060,C&G - Hardwick Park Catering,Supplies and Services,324117,Provisions E324,04-Jul-2022,000008321561388,HOPWELLS LTD,5811,Catering costs - provisions,565.68,94.28,471.40
Neighbourhoods and Climate Change,Environmental Services,011060,C&G - Hardwick Park Catering,Supplies and Services,324117,Provisions E324,04-Jul-2022,000008321561388 - 1,HOPWELLS LTD,5811,Catering costs - provisions,204.21,,204.21
Neighbourhoods and Climate Change,Environmental Services,011060,C&G - Hardwick Park Catering,Supplies and Services,324117,Provisions E324,04-Jul-2022,000008321561390,HOPWELLS LTD,5811,Catering costs - provisions,467.88,77.98,389.90
Neighbourhoods and Climate Change,Environmental Services,011060,C&G - Hardwick Park Catering,Supplies and Services,324117,Provisions E324,04-Jul-2022,000008321561390 - 1,HOPWELLS LTD,5811,Catering costs - provisions,247.06,,247.06
Regeneration Economy and Growth,Corporate Property and Land,021234,Catering - Locomotion,Supplies and Services,324117,Provisions E324,04-Jul-2022,000008321561394,HOPWELLS LTD,5811,Catering costs - provisions,63.60,10.60,53.00
Regeneration Economy and Growth,Corporate Property and Land,021234,Catering - Locomotion,Supplies and Services,324117,Provisions E324,04-Jul-2022,000008321561394 - 1,HOPWELLS LTD,5811,Catering costs - provisions,209.31,,209.31
Regeneration Economy and Growth,Corporate Property and Land,021235,Catering - Wharton Park,Supplies and Services,324117,Provisions E324,04-Jul-2022,000008321561396,HOPWELLS LTD,5811,Catering costs - provisions,13.53,0.00,13.53
Regeneration Economy and Growth,Corporate Property and Land,021235,Catering - Wharton Park,Supplies and Services,324117,Provisions E324,04-Jul-2022,000008321561398,HOPWELLS LTD,5811,Catering costs - provisions,247.12,0.00,247.12
Regeneration Economy and Growth,Corporate Property and Land,021235,Catering - Wharton Park,Supplies and Services,324117,Provisions E324,04-Jul-2022,000008321561400,HOPWELLS LTD,5811,Catering costs - provisions,-11.61,0.00,-11.61
Regeneration Economy and Growth,Corporate Property and Land,021242,Catering - County Hall,Supplies and Services,324117,Provisions E324,04-Jul-2022,000008321561402,HOPWELLS LTD,5811,Catering costs - provisions,133.41,0.00,133.41
Regeneration Economy and Growth,Corporate Property and Land,021242,Catering - County Hall,Supplies and Services,324117,Provisions E324,04-Jul-2022,000008321561404,HOPWELLS LTD,5811,Catering costs - provisions,59.75,0.00,59.75
Regeneration Economy and Growth,Corporate Property and Land,021242,Catering - County Hall,Supplies and Services,324117,Provisions E324,04-Jul-2022,000008321561406,JR HOLLAND FOODSERVICE,5499,Catering costs - provisions,63.40,0.00,63.40
Regeneration Economy and Growth,Corporate Property and Land,021242,Catering - County Hall,Supplies and Services,324117,Provisions E324,04-Jul-2022,000008321561408,JR HOLLAND FOODSERVICE,5499,Catering costs - provisions,136.99,0.00,136.99
Regeneration Economy and Growth,Corporate Property and Land,021242,Catering - County Hall,Supplies and Services,324117,Provisions E324,04-Jul-2022,000008321561410,JR HOLLAND FOODSERVICE,5499,Catering costs - provisions,6.04,0.00,6.04
Regeneration Economy and Growth,Corporate Property and Land,021324,Catering - Meadowfield,Supplies and Services,324117,Provisions E324,04-Jul-2022,000008321561412,HOPWELLS LTD,5811,Catering costs - provisions,77.00,0.00,77.00
Regeneration Economy and Growth,Business Durham CL0850,030689,Inward Investment and Aftercare,Supplies and Services,342222,Computers and Communications,04-Jul-2022,000008324022324,FASTHOSTS,4816,Comp hardware purch-network servers,7.54,0.00,7.54
Children and Young Peoples Services,Head of Early Help Inclusion & Vulnerable Children.,088104,BA/BC/Crook Intensive Family Support Team,Supplies and Services,384302,Miscellaneous Expenses,04-Jul-2022,000008324022498,AMZNMKTPLACE AMAZON.CO,5999,Activity expenses,35.90,5.98,29.92
Children and Young Peoples Services,Head of Childrens Social Care,085358,Orchard House Sacriston Solo Home,Supplies and Services,324117,Provisions E324,04-Jul-2022,000008324022568,SAINSBURYS S/MKTS,5411,Catering costs - provisions,15.00,0.00,15.00
Children and Young Peoples Services,Head of Childrens Social Care,085358,Orchard House Sacriston Solo Home,Supplies and Services,304259,Equipment and Materials,04-Jul-2022,000008324022572,J D SPORTS PLC,5941,Equipment-purchase and rental,90.10,0.00,90.10
Adult and Health Services,Head of Adults,055302,Durham Pathways,Supplies and Services,324117,Provisions E324,04-Jul-2022,000008324022598,SAINSBURYS S/MKTS,5411,Catering costs - provisions,4.94,0.00,4.94
Regeneration Economy and Growth,Culture Sport and Tourism,054813,Gala Theatre - Technical,Supplies and Services,304259,Equipment and Materials,04-Jul-2022,000008324022608,Premier Farnell,5065,Equipment-purchase and rental,315.08,0.00,315.08
Dedicated Schools Grant BG0015,DSG Schools Block,702826,Villa Real School 7028 - Ofsted HT,Supplies and Services,348037,Subsistence E348,04-Jul-2022,000008324023046,LAKE DISTRICT WILDLIFE,5812,Subsistence,45.00,0.00,45.00
Adult and Health Services,Head of Adults,055643,Hawthorn House LD Respite Unit,Supplies and Services,324117,Provisions E324,04-Jul-2022,000008324023088,SAINSBURYS S/MKTS,5411,Catering costs - provisions,9.60,0.00,9.60
Adult and Health Services,Head of Adults,055643,Hawthorn House LD Respite Unit,Supplies and Services,324117,Provisions E324,04-Jul-2022,000008324023094,SAINSBURYS S/MKTS,5411,Catering costs - provisions,19.20,0.00,19.20
Children and Young Peoples Services,Head of Childrens Social Care,085347,Solo Home The Manse,Supplies and Services,324117,Provisions E324,04-Jul-2022,000008324023394,ALDI 12 774,5411,Catering costs - provisions,147.99,0.00,147.99
Children and Young Peoples Services,Head of Early Help Inclusion & Vulnerable Children.,085962,Aycliffe Secure - Durham,Supplies and Services,304403,Equipment and Materials,04-Jul-2022,000008324023520,AMZNMKTPLACE AMAZON.CO,5999,Other consumables,6.98,1.16,5.82
Regeneration Economy and Growth,Corporate Property and Land,030691,Catering - Durham Dales Centre,Supplies and Services,324117,Provisions E324,04-Jul-2022,000008324080606,BATLEYS PERTH,5300,Catering costs - provisions,52.38,8.73,43.65
Regeneration Economy and Growth,Corporate Property and Land,030691,Catering - Durham Dales Centre,Supplies and Services,324117,Provisions E324,04-Jul-2022,000008324080606 - 1,BATLEYS PERTH,5300,Catering costs - provisions,169.88,,169.88
Regeneration Economy and Growth,Corporate Property and Land,021235,Catering - Wharton Park,Supplies and Services,324117,Provisions E324,04-Jul-2022,000008324080626,BATLEYS PERTH,5300,Catering costs - provisions,258.60,43.10,215.50
Regeneration Economy and Growth,Corporate Property and Land,021235,Catering - Wharton Park,Supplies and Services,324117,Provisions E324,04-Jul-2022,000008324080626 - 1,BATLEYS PERTH,5300,Catering costs - provisions,2.32,,2.32
Regeneration Economy and Growth,Culture Sport and Tourism,054812,Gala Theatre - Catering etc,Supplies and Services,324117,Provisions E324,04-Jul-2022,000008324080630,BATLEYS PERTH,5300,Catering costs - provisions,155.16,25.86,129.30
Regeneration Economy and Growth,Culture Sport and Tourism,054812,Gala Theatre - Catering etc,Supplies and Services,324117,Provisions E324,04-Jul-2022,000008324080630 - 1,BATLEYS PERTH,5300,Catering costs - provisions,148.69,,148.69
Children and Young Peoples Services,Head of Education and Skills,071801,Selby Cottage Childcare Centre,Supplies and Services,324117,Provisions E324,05-Jul-2022,000008324022334,JR HOLLAND FOODSERVICE,5499,Catering costs - provisions,338.68,0.00,338.68
Children and Young Peoples Services,Head of Education and Skills,071801,Selby Cottage Childcare Centre,Supplies and Services,324117,Provisions E324,05-Jul-2022,000008324022340,ASDA GROCERIES ONLINE,5411,Catering costs - provisions,113.68,0.00,113.68
Children and Young Peoples Services,Head of Education and Skills,071801,Selby Cottage Childcare Centre,Supplies and Services,324117,Provisions E324,05-Jul-2022,000008324022344,ASDA GROCERIES ONLINE,5411,Catering costs - provisions,-1.82,0.00,-1.82
Dedicated Schools Grant BG0015,DSG Schools Block,417630,Greenfield Community College 004176 - SEN,Supplies and Services,304403,Equipment and Materials,05-Jul-2022,000008324022356,AMZNMktplace,5999,Other consumables,89.98,15.00,74.98
Dedicated Schools Grant BG0015,DSG Schools Block,417630,Greenfield Community College 004176 - SEN,Supplies and Services,304403,Equipment and Materials,05-Jul-2022,000008324022362,AMZNMktplace,5999,Other consumables,52.73,8.79,43.94
Regeneration Economy and Growth,Planning & Housing,031576,B& B - Temp Accom,Supplies and Services,364320,Grants to Voluntary Organisations,05-Jul-2022,000008324022366,HOLIDAY INNS,3501,Accommodation assistance,75.00,0.00,75.00
Children and Young Peoples Services,Head of Childrens Social Care,085341,High Etherley Satelite Home,Supplies and Services,348037,Subsistence E348,05-Jul-2022,000008324022374,HALL HILL FARM SHOP,5812,Subsistence,6.60,0.00,6.60
Children and Young Peoples Services,Head of Childrens Social Care,085501,Child Care Cases Legal Expenses,Supplies and Services,304403,Equipment and Materials,05-Jul-2022,000008324022378,GEN REGISTER OFFICE,9399,Other consumables,11.00,0.00,11.00
Children and Young Peoples Services,Head of Education and Skills,075034,Youth Futures Foundation,Supplies and Services,364301,Grants to Voluntary Organisations,05-Jul-2022,000008324022380,CITIZENCARD,8699,Hardship,30.00,0.00,30.00
Neighbourhoods and Climate Change,Environmental Services,010383,C&G - South Street Cleansing,Supplies and Services,304221,Equipment and Materials,05-Jul-2022,000008324022384,AZTEC CHEMICALS LTD,5169,Direct materials,431.04,71.84,359.20
Regeneration Economy and Growth,Culture Sport and Tourism,054815,Gala Theatre Stage School,Supplies and Services,338047,Services,05-Jul-2022,000008324022390,eBay O 09-08828-01714,5311,Direct production costs,17.74,0.00,17.74
Regeneration Economy and Growth,Culture Sport and Tourism,054815,Gala Theatre Stage School,Supplies and Services,338047,Services,05-Jul-2022,000008324022394,AMZNMktplace,5999,Direct production costs,11.96,2.00,9.96
Regeneration Economy and Growth,Culture Sport and Tourism,054820,Gala Theatre - Overheads,Supplies and Services,304252,Equipment and Materials,05-Jul-2022,000008324022396,Expondo GmbH,5251,Equipment-repairsserviceinsurance,299.00,49.83,249.17
Regeneration Economy and Growth,Culture Sport and Tourism,054815,Gala Theatre Stage School,Supplies and Services,338047,Services,05-Jul-2022,000008324022398,KRYOLAN UK,5977,Direct production costs,82.20,0.00,82.20
Regeneration Economy and Growth,Culture Sport and Tourism,054815,Gala Theatre Stage School,Supplies and Services,338047,Services,05-Jul-2022,000008324022400,AMZNMktplace,5999,Direct production costs,15.38,2.56,12.82
Regeneration Economy and Growth,Culture Sport and Tourism,054815,Gala Theatre Stage School,Supplies and Services,338047,Services,05-Jul-2022,000008324022404,AMZNMktplace,5999,Direct production costs,15.38,2.56,12.82
Regeneration Economy and Growth,Culture Sport and Tourism,030712,VCD - Project Delivery,Supplies and Services,384199,Miscellaneous Expenses,05-Jul-2022,000008324022410,FACEBK 7ETEKFKRH2,7311,Other hired and contracted services,43.99,0.00,43.99
Children and Young Peoples Services,Head of Childrens Social Care,085332,Middlestone Moor CU,Supplies and Services,324117,Provisions E324,05-Jul-2022,000008324022420,TESCO STORES 2371,5411,Catering costs - provisions,196.31,0.00,196.31
Children and Young Peoples Services,Head of Childrens Social Care,085332,Middlestone Moor CU,Supplies and Services,324117,Provisions E324,05-Jul-2022,000008324022422,TESCO STORES 6329,5411,Catering costs - provisions,78.19,0.00,78.19
Children and Young Peoples Services,Head of Childrens Social Care,085332,Middlestone Moor CU,Supplies and Services,304999,Equipment and Materials,05-Jul-2022,000008324022426,TESCO STORES 6329,5411,Misc equipment tools and materials,25.00,0.00,25.00
Neighbourhoods and Climate Change,Environmental Services,010367,C&G - South Grounds Maintenance,Supplies and Services,304221,Equipment and Materials,05-Jul-2022,000008324022478,Horns garden centre,5261,Direct materials,36.97,0.00,36.97
Children and Young Peoples Services,Head of Early Help Inclusion & Vulnerable Children.,088104,BA/BC/Crook Intensive Family Support Team,Supplies and Services,384302,Miscellaneous Expenses,05-Jul-2022,000008324022496,AMZNMKTPLACE AMAZON.CO,5999,Activity expenses,7.90,1.32,6.58
Children and Young Peoples Services,Head of Childrens Social Care,085332,Middlestone Moor CU,Supplies and Services,304403,Equipment and Materials,05-Jul-2022,000008324022504,AMZNMktplace,5999,Other consumables,6.58,0.00,6.58
Children and Young Peoples Services,Head of Childrens Social Care,085358,Orchard House Sacriston Solo Home,Supplies and Services,344033,Telephones,05-Jul-2022,000008324022576,giffgaff,4814,Telephones general-all costs,10.00,0.00,10.00
Adult and Health Services,Head of Adults,055302,Durham Pathways,Supplies and Services,304403,Equipment and Materials,05-Jul-2022,000008324022600,AMZNMktplace,5999,Other consumables,28.45,4.75,23.70
Adult and Health Services,Head of Adults,055302,Durham Pathways,Supplies and Services,304403,Equipment and Materials,05-Jul-2022,000008324022602,AMZNMktplace,5999,Other consumables,7.98,1.34,6.64
Adult and Health Services,Head of Adults,055302,Durham Pathways,Supplies and Services,304403,Equipment and Materials,05-Jul-2022,000008324022604,AMZNMktplace,5999,Other consumables,16.99,2.83,14.16
Adult and Health Services,Head of Adults,052953,Training - Social Work,Supplies and Services,384999,Miscellaneous Expenses,05-Jul-2022,000008324022622,Amazon.co.uk 2Y5HT58I4,5969,Other expenses,80.62,0.00,80.62
Children and Young Peoples Services,Head of Childrens Social Care,085333,Coxhoe Satelite Home,Supplies and Services,384999,Miscellaneous Expenses,05-Jul-2022,000008324022626,ATGTICKETS.COM,7922,Other expenses,29.65,0.00,29.65
Children and Young Peoples Services,Head of Early Help Inclusion & Vulnerable Children.,085957,Secure Management,Supplies and Services,304259,Equipment and Materials,05-Jul-2022,000008324022646,Amazon MP3,5735,Equipment-purchase and rental,0.98,0.00,0.98
Children and Young Peoples Services,Head of Early Help Inclusion & Vulnerable Children.,085957,Secure Management,Supplies and Services,304259,Equipment and Materials,05-Jul-2022,000008324022650,Amazon MP3,5735,Equipment-purchase and rental,0.98,0.00,0.98
Children and Young Peoples Services,Head of Early Help Inclusion & Vulnerable Children.,085957,Secure Management,Supplies and Services,304259,Equipment and Materials,05-Jul-2022,000008324022656,Amazon MP3,5735,Equipment-purchase and rental,0.98,0.00,0.98
Children and Young Peoples Services,Head of Early Help Inclusion & Vulnerable Children.,085957,Secure Management,Supplies and Services,304259,Equipment and Materials,05-Jul-2022,000008324022658,Amazon MP3,5735,Equipment-purchase and rental,0.98,0.00,0.98
Children and Young Peoples Services,Head of Early Help Inclusion & Vulnerable Children.,085957,Secure Management,Supplies and Services,304221,Equipment and Materials,05-Jul-2022,000008324022660,WWW.KINESIS.CO.UK,5085,Direct materials,53.10,0.00,53.10
Neighbourhoods and Climate Change,Environmental Services,010301,C&G - North Grounds Maintenance,Supplies and Services,304221,Equipment and Materials,05-Jul-2022,000008324022668,AZTEC CHEMICALS LTD,5169,Direct materials,450.90,75.15,375.75
Neighbourhoods and Climate Change,Environmental Services,010301,C&G - North Grounds Maintenance,Supplies and Services,304221,Equipment and Materials,05-Jul-2022,000008324022670,AZTEC CHEMICALS LTD,5169,Direct materials,477.54,79.59,397.95
Neighbourhoods and Climate Change,Environmental Services,010301,C&G - North Grounds Maintenance,Supplies and Services,304221,Equipment and Materials,05-Jul-2022,000008324022674,AZTEC CHEMICALS LTD,5169,Direct materials,477.72,79.62,398.10
Children and Young Peoples Services,Head of Childrens Social Care,085364,Children Looked After Team 1,Transport,235057,Public Transport,05-Jul-2022,000008324022694,National Express Limit,4131,Staff travelling,25.00,0.00,25.00
Children and Young Peoples Services,Head of Early Help Inclusion & Vulnerable Children.,085954,Walworth,Transfer Payments,515002,Social Services Clients,05-Jul-2022,000008324022698,Footasylum Limited,5651,Pocket money,159.98,26.66,133.32
Children and Young Peoples Services,Head of Early Help Inclusion & Vulnerable Children.,085957,Secure Management,Supplies and Services,304405,Equipment and Materials,05-Jul-2022,000008324022702,AMZNMKTPLACE AMAZON.CO,5999,Medical supplies,15.99,2.67,13.32
Children and Young Peoples Services,Head of Early Help Inclusion & Vulnerable Children.,085957,Secure Management,Supplies and Services,304405,Equipment and Materials,05-Jul-2022,000008324022706,AMZNMKTPLACE AMAZON.CO,5999,Medical supplies,9.09,1.52,7.57
Children and Young Peoples Services,Head of Early Help Inclusion & Vulnerable Children.,085957,Secure Management,Supplies and Services,304405,Equipment and Materials,05-Jul-2022,000008324022708,AMZNMKTPLACE AMAZON.CO,5999,Medical supplies,3.19,0.53,2.66
Children and Young Peoples Services,Head of Early Help Inclusion & Vulnerable Children.,085957,Secure Management,Supplies and Services,304405,Equipment and Materials,05-Jul-2022,000008324022712,AMZNMKTPLACE AMAZON.CO,5999,Medical supplies,3.49,0.00,3.49
Children and Young Peoples Services,Head of Early Help Inclusion & Vulnerable Children.,085954,Walworth,Transfer Payments,515002,Social Services Clients,05-Jul-2022,000008324022714,HOUSE OF FRASER,5311,Pocket money,41.99,0.00,41.99
Children and Young Peoples Services,Head of Early Help Inclusion & Vulnerable Children.,085957,Secure Management,Supplies and Services,384302,Miscellaneous Expenses,05-Jul-2022,000008324022718,Amazon MP3,5735,Activity expenses,0.98,0.00,0.98
Children and Young Peoples Services,Head of Early Help Inclusion & Vulnerable Children.,085957,Secure Management,Supplies and Services,384302,Miscellaneous Expenses,05-Jul-2022,000008324022720,Amazon MP3,5735,Activity expenses,0.98,0.00,0.98
Children and Young Peoples Services,Head of Early Help Inclusion & Vulnerable Children.,085957,Secure Management,Supplies and Services,384302,Miscellaneous Expenses,05-Jul-2022,000008324022722,Amazon MP3,5735,Activity expenses,0.98,0.00,0.98
Children and Young Peoples Services,Head of Early Help Inclusion & Vulnerable Children.,085957,Secure Management,Supplies and Services,384302,Miscellaneous Expenses,05-Jul-2022,000008324022724,Amazon MP3,5735,Activity expenses,0.98,0.00,0.98
Children and Young Peoples Services,Head of Early Help Inclusion & Vulnerable Children.,085957,Secure Management,Supplies and Services,384302,Miscellaneous Expenses,05-Jul-2022,000008324022728,Amazon MP3,5735,Activity expenses,0.98,0.00,0.98
Children and Young Peoples Services,Head of Early Help Inclusion & Vulnerable Children.,085957,Secure Management,Supplies and Services,384302,Miscellaneous Expenses,05-Jul-2022,000008324022730,Amazon MP3,5735,Activity expenses,0.98,0.00,0.98
Children and Young Peoples Services,Head of Early Help Inclusion & Vulnerable Children.,085957,Secure Management,Supplies and Services,384302,Miscellaneous Expenses,05-Jul-2022,000008324022734,Amazon MP3,5735,Activity expenses,0.98,0.00,0.98
Children and Young Peoples Services,Head of Early Help Inclusion & Vulnerable Children.,085957,Secure Management,Supplies and Services,384302,Miscellaneous Expenses,05-Jul-2022,000008324022736,Amazon MP3,5735,Activity expenses,0.98,0.00,0.98
Children and Young Peoples Services,Head of Early Help Inclusion & Vulnerable Children.,085957,Secure Management,Supplies and Services,384302,Miscellaneous Expenses,05-Jul-2022,000008324022738,Amazon MP3,5735,Activity expenses,0.98,0.00,0.98
Children and Young Peoples Services,Head of Early Help Inclusion & Vulnerable Children.,085957,Secure Management,Supplies and Services,384302,Miscellaneous Expenses,05-Jul-2022,000008324022740,Amazon MP3,5735,Activity expenses,0.98,0.00,0.98
Children and Young Peoples Services,Head of Early Help Inclusion & Vulnerable Children.,085957,Secure Management,Supplies and Services,384302,Miscellaneous Expenses,05-Jul-2022,000008324022744,Amazon MP3,5735,Activity expenses,0.98,0.00,0.98
Children and Young Peoples Services,Head of Early Help Inclusion & Vulnerable Children.,085957,Secure Management,Supplies and Services,384302,Miscellaneous Expenses,05-Jul-2022,000008324022748,Amazon MP3,5735,Activity expenses,0.98,0.00,0.98
Children and Young Peoples Services,Head of Early Help Inclusion & Vulnerable Children.,085957,Secure Management,Supplies and Services,384302,Miscellaneous Expenses,05-Jul-2022,000008324022752,Amazon MP3,5735,Activity expenses,0.98,0.00,0.98
Children and Young Peoples Services,Head of Early Help Inclusion & Vulnerable Children.,085957,Secure Management,Supplies and Services,384302,Miscellaneous Expenses,05-Jul-2022,000008324022756,Amazon MP3,5735,Activity expenses,0.98,0.00,0.98
Children and Young Peoples Services,Head of Early Help Inclusion & Vulnerable Children.,085957,Secure Management,Supplies and Services,384237,Miscellaneous Expenses,05-Jul-2022,000008324022760,Amazon MP3,5735,Recreational exps outings parties,0.98,0.00,0.98
Children and Young Peoples Services,Head of Early Help Inclusion & Vulnerable Children.,085957,Secure Management,Supplies and Services,384302,Miscellaneous Expenses,05-Jul-2022,000008324022762,Amazon MP3,5735,Activity expenses,0.98,0.00,0.98
Children and Young Peoples Services,Head of Early Help Inclusion & Vulnerable Children.,085957,Secure Management,Supplies and Services,384302,Miscellaneous Expenses,05-Jul-2022,000008324022766,Amazon MP3,5735,Activity expenses,0.98,0.00,0.98
Children and Young Peoples Services,Head of Early Help Inclusion & Vulnerable Children.,085957,Secure Management,Supplies and Services,384302,Miscellaneous Expenses,05-Jul-2022,000008324022768,Amazon MP3,5735,Activity expenses,0.98,0.00,0.98
Children and Young Peoples Services,Head of Early Help Inclusion & Vulnerable Children.,085957,Secure Management,Supplies and Services,384302,Miscellaneous Expenses,05-Jul-2022,000008324022770,Amazon MP3,5735,Activity expenses,0.98,0.00,0.98
Children and Young Peoples Services,Head of Early Help Inclusion & Vulnerable Children.,085957,Secure Management,Supplies and Services,384302,Miscellaneous Expenses,05-Jul-2022,000008324022772,Amazon MP3,5735,Activity expenses,0.98,0.00,0.98
Children and Young Peoples Services,Head of Early Help Inclusion & Vulnerable Children.,085957,Secure Management,Supplies and Services,384302,Miscellaneous Expenses,05-Jul-2022,000008324022776,Amazon MP3,5735,Activity expenses,0.98,0.00,0.98
Children and Young Peoples Services,Head of Early Help Inclusion & Vulnerable Children.,085957,Secure Management,Supplies and Services,384302,Miscellaneous Expenses,05-Jul-2022,000008324022778,Amazon MP3,5735,Activity expenses,0.98,0.00,0.98
Children and Young Peoples Services,Head of Early Help Inclusion & Vulnerable Children.,085957,Secure Management,Supplies and Services,384302,Miscellaneous Expenses,05-Jul-2022,000008324022782,Amazon MP3,5735,Activity expenses,0.98,0.00,0.98
Children and Young Peoples Services,Head of Early Help Inclusion & Vulnerable Children.,085957,Secure Management,Supplies and Services,384302,Miscellaneous Expenses,05-Jul-2022,000008324022784,Amazon MP3,5735,Activity expenses,0.98,0.00,0.98
Children and Young Peoples Services,Head of Early Help Inclusion & Vulnerable Children.,085957,Secure Management,Supplies and Services,332047,Printing Stationery and Gen Off Exps,05-Jul-2022,000008324022786,Amazon.co.uk 2Y1KP3QD4,5969,Stationery,7.28,1.21,6.07
Children and Young Peoples Services,Head of Early Help Inclusion & Vulnerable Children.,085956,Lumley,Transfer Payments,515002,Social Services Clients,05-Jul-2022,000008324022788,Amazon.co.uk 2Y62J4QZ4,5969,Pocket money,4.98,0.83,4.15
Children and Young Peoples Services,Head of Early Help Inclusion & Vulnerable Children.,085956,Lumley,Transfer Payments,515002,Social Services Clients,05-Jul-2022,000008324022788 - 1,Amazon.co.uk 2Y62J4QZ4,5969,Pocket money,24.16,,24.16
Children and Young Peoples Services,Head of Early Help Inclusion & Vulnerable Children.,085965,Barnard,Transfer Payments,515002,Social Services Clients,05-Jul-2022,000008324022792,AMZNMktplace,5999,Pocket money,20.48,3.41,17.07
Children and Young Peoples Services,Head of Early Help Inclusion & Vulnerable Children.,085956,Lumley,Supplies and Services,384302,Miscellaneous Expenses,05-Jul-2022,000008324022794,AMZNMktplace,5999,Activity expenses,48.95,8.17,40.78
Children and Young Peoples Services,Head of Early Help Inclusion & Vulnerable Children.,085956,Lumley,Transfer Payments,515002,Social Services Clients,05-Jul-2022,000008324022798,AMZNMktplace,5999,Pocket money,20.58,3.43,17.15
Children and Young Peoples Services,Head of Early Help Inclusion & Vulnerable Children.,085956,Lumley,Transfer Payments,515002,Social Services Clients,05-Jul-2022,000008324022804,AMZNMktplace,5999,Pocket money,5.10,0.85,4.25
Children and Young Peoples Services,Head of Early Help Inclusion & Vulnerable Children.,085956,Lumley,Transfer Payments,515002,Social Services Clients,05-Jul-2022,000008324022806,PRETTYLITTLETHING.COM,5691,Pocket money,38.00,0.00,38.00
Children and Young Peoples Services,Head of Early Help Inclusion & Vulnerable Children.,085956,Lumley,Transfer Payments,515002,Social Services Clients,05-Jul-2022,000008324022808,PRETTYLITTLETHING.COM,5691,Pocket money,55.25,0.00,55.25
Children and Young Peoples Services,Head of Early Help Inclusion & Vulnerable Children.,085965,Barnard,Supplies and Services,384302,Miscellaneous Expenses,05-Jul-2022,000008324022810,AMZNMKTPLACE AMAZON.CO,5999,Activity expenses,59.98,10.00,49.98
Children and Young Peoples Services,Head of Early Help Inclusion & Vulnerable Children.,085962,Aycliffe Secure - Durham,Transfer Payments,515002,Social Services Clients,05-Jul-2022,000008324022814,VERY,5964,Pocket money,50.99,0.00,50.99
Children and Young Peoples Services,Head of Early Help Inclusion & Vulnerable Children.,085956,Lumley,Transfer Payments,515002,Social Services Clients,05-Jul-2022,000008324022816,Amazon.co.uk 2Y68H1Q74,5969,Pocket money,36.17,0.00,36.17
Children and Young Peoples Services,Head of Early Help Inclusion & Vulnerable Children.,085965,Barnard,Transfer Payments,515002,Social Services Clients,05-Jul-2022,000008324022818,AMZNMktplace,5999,Pocket money,6.99,1.17,5.82
Children and Young Peoples Services,Head of Early Help Inclusion & Vulnerable Children.,085965,Barnard,Transfer Payments,515002,Social Services Clients,05-Jul-2022,000008324022822,AMZNMktplace,5999,Pocket money,10.30,1.72,8.58
Children and Young Peoples Services,Head of Early Help Inclusion & Vulnerable Children.,085965,Barnard,Transfer Payments,515002,Social Services Clients,05-Jul-2022,000008324022824,AMZNMktplace,5999,Pocket money,3.00,0.50,2.50
Neighbourhoods and Climate Change,Environmental Services,031200,North Pennines Core,Supplies and Services,384999,Miscellaneous Expenses,05-Jul-2022,000008324022846,THE RABY ESTATES,5970,Other expenses,95.60,0.00,95.60
Children and Young Peoples Services,Head of Education and Skills,075021,DurhamWorks Progression and Learning,Transport,235057,Public Transport,05-Jul-2022,000008324022872,WWW.GONORTHEAST.CO.UK,4111,Staff travelling,20.00,0.00,20.00
Children and Young Peoples Services,Head of Education and Skills,075021,DurhamWorks Progression and Learning,Transport,235057,Public Transport,05-Jul-2022,000008324022874,WWW.GONORTHEAST.CO.UK,4111,Staff travelling,20.00,0.00,20.00
Children and Young Peoples Services,Head of Education and Skills,075021,DurhamWorks Progression and Learning,Transport,235057,Public Transport,05-Jul-2022,000008324022878,WWW.GONORTHEAST.CO.UK,4111,Staff travelling,20.00,0.00,20.00
Children and Young Peoples Services,Head of Education and Skills,075021,DurhamWorks Progression and Learning,Transport,235057,Public Transport,05-Jul-2022,000008324022882,WWW.GONORTHEAST.CO.UK,4111,Staff travelling,20.00,0.00,20.00
Children and Young Peoples Services,Head of Education and Skills,075021,DurhamWorks Progression and Learning,Transport,235057,Public Transport,05-Jul-2022,000008324022884,WWW.GONORTHEAST.CO.UK,4111,Staff travelling,20.00,0.00,20.00
Neighbourhoods and Climate Change,Environmental Services,031238,North Pennines - Tees Swale,Supplies and Services,304403,Equipment and Materials,05-Jul-2022,000008324022896,AMZNMKTPLACE AMAZON.CO,5999,Other consumables,25.98,4.33,21.65
Neighbourhoods and Climate Change,Environmental Services,031238,North Pennines - Tees Swale,Supplies and Services,304403,Equipment and Materials,05-Jul-2022,000008324022900,AMZNMktplace,5999,Other consumables,14.99,2.50,12.49
Neighbourhoods and Climate Change,Environmental Services,031238,North Pennines - Tees Swale,Supplies and Services,304403,Equipment and Materials,05-Jul-2022,000008324022904,AMZNMktplace,5999,Other consumables,449.00,74.83,374.17
Neighbourhoods and Climate Change,Environmental Services,031238,North Pennines - Tees Swale,Supplies and Services,304403,Equipment and Materials,05-Jul-2022,000008324022908,AMZNMktplace,5999,Other consumables,7.99,1.33,6.66
Neighbourhoods and Climate Change,Environmental Services,031238,North Pennines - Tees Swale,Supplies and Services,304403,Equipment and Materials,05-Jul-2022,000008324022910,AMZNMktplace,5999,Other consumables,8.48,1.41,7.07
Neighbourhoods and Climate Change,Environmental Services,031238,North Pennines - Tees Swale,Supplies and Services,304403,Equipment and Materials,05-Jul-2022,000008324022912,AMZNMktplace,5999,Other consumables,27.93,4.66,23.27
Neighbourhoods and Climate Change,Environmental Services,031238,North Pennines - Tees Swale,Supplies and Services,304403,Equipment and Materials,05-Jul-2022,000008324022916,AMZNMktplace,5999,Other consumables,5.90,0.98,4.92
Regeneration Economy and Growth,Economic Development Level C,030771,Durham Advance Flexible Fund,Employees,040149,Recruitment Instruction and Training,05-Jul-2022,000008324023002,iZ THE WITHAM HAL,8398,Training-all costs,5.40,0.00,5.40
Regeneration Economy and Growth,Economic Development Level C,030771,Durham Advance Flexible Fund,Employees,040149,Recruitment Instruction and Training,05-Jul-2022,000008324023008,iZ THE WITHAM HAL,8398,Training-all costs,7.50,0.00,7.50
Regeneration Economy and Growth,Economic Development Level C,030771,Durham Advance Flexible Fund,Transport,235057,Public Transport,05-Jul-2022,000008324023010,3C_ NSL Durham WAP,7523,Staff travelling,2.50,0.42,2.08
Children and Young Peoples Services,Head of Childrens Social Care,085368,Children Looked After Team 5,Supplies and Services,338045,Services,05-Jul-2022,000008324023040,GEN REGISTER OFFICE,9399,Legal expenses 338045,11.00,0.00,11.00
Regeneration Economy and Growth,Economic Development Level C,030776,LINKCD Flexible Fund,Supplies and Services,324117,Provisions E324,05-Jul-2022,000008324023126,TESCO STORES 2371,5411,Catering costs - provisions,3.05,0.00,3.05
Regeneration Economy and Growth,Economic Development Level C,030776,LINKCD Flexible Fund,Supplies and Services,324117,Provisions E324,05-Jul-2022,000008324023128,TESCO STORES 2371,5411,Catering costs - provisions,4.30,0.00,4.30
Regeneration Economy and Growth,Corporate Property and Land,020082,Bldg Serv - R&M Div 82- Lifts,Transport,235057,Public Transport,05-Jul-2022,000008324023132,TT2 LTD,4784,Staff travelling,31.90,0.00,31.90
Children and Young Peoples Services,Head of Childrens Social Care,085331,New Lea Childrens Home,Supplies and Services,348037,Subsistence E348,05-Jul-2022,000008324023150,HALL HILL FARM SHOP,5812,Subsistence,1.30,0.00,1.30
Children and Young Peoples Services,Head of Childrens Social Care,085331,New Lea Childrens Home,Supplies and Services,304403,Equipment and Materials,05-Jul-2022,000008324023154,HALL HILL FARM SHOP,5947,Other consumables,4.45,0.00,4.45
Children and Young Peoples Services,Head of Childrens Social Care,085331,New Lea Childrens Home,Supplies and Services,304403,Equipment and Materials,05-Jul-2022,000008324023160,HALL HILL FARM SHOP,5947,Other consumables,16.90,0.00,16.90
Children and Young Peoples Services,Head of Childrens Social Care,085331,New Lea Childrens Home,Supplies and Services,304999,Equipment and Materials,05-Jul-2022,000008324023164,HOME BARGAINS,5251,Misc equipment tools and materials,123.28,0.00,123.28
Children and Young Peoples Services,Head of Childrens Social Care,085331,New Lea Childrens Home,Supplies and Services,324117,Provisions E324,05-Jul-2022,000008324023166,TESCO STORES 2916,5411,Catering costs - provisions,7.30,0.00,7.30
Children and Young Peoples Services,Head of Childrens Social Care,085347,Solo Home The Manse,Supplies and Services,324117,Provisions E324,05-Jul-2022,000008324023168,ASDA SUPERSTORE 4987,5411,Catering costs - provisions,13.36,0.00,13.36
Neighbourhoods and Climate Change,Environmental Services,031233,North Pennines - Pennine Peatlife,Transport,235057,Public Transport,05-Jul-2022,000008324023226,CRAVEN DISTRICT COUNCI,7523,Staff travelling,4.50,0.00,4.50
Neighbourhoods and Climate Change,Environmental Services,031233,North Pennines - Pennine Peatlife,Supplies and Services,348037,Subsistence E348,05-Jul-2022,000008324023228,STARBUCKS,5814,Subsistence,5.90,0.00,5.90
Neighbourhoods and Climate Change,Environmental Services,031233,North Pennines - Pennine Peatlife,Supplies and Services,348037,Subsistence E348,05-Jul-2022,000008324023232,The Castle Inn,5813,Subsistence,111.60,0.00,111.60
Children and Young Peoples Services,Head of Childrens Social Care,085331,New Lea Childrens Home,Employees,040149,Recruitment Instruction and Training,05-Jul-2022,000008324023244,PARENTPAY E-COM R,8220,Training-all costs,50.00,0.00,50.00
Children and Young Peoples Services,Head of Childrens Social Care,085331,New Lea Childrens Home,Employees,040149,Recruitment Instruction and Training,05-Jul-2022,000008324023248,PARENTPAY E-COM R,8220,Training-all costs,50.00,0.00,50.00
Children and Young Peoples Services,Head of Childrens Social Care,085331,New Lea Childrens Home,Supplies and Services,324117,Provisions E324,05-Jul-2022,000008324023250,LIDL GB DURHAM,5411,Catering costs - provisions,12.83,0.00,12.83
Children and Young Peoples Services,Head of Early Help Inclusion & Vulnerable Children.,088103,Stanley & Moorside Family Centre,Supplies and Services,304259,Equipment and Materials,05-Jul-2022,000008324023254,AMZNMktplace,5999,Equipment-purchase and rental,109.94,18.32,91.62
Children and Young Peoples Services,Head of Early Help Inclusion & Vulnerable Children.,088103,Stanley & Moorside Family Centre,Supplies and Services,304259,Equipment and Materials,05-Jul-2022,000008324023260,AMZNMKTPLACE AMAZON.CO,5999,Equipment-purchase and rental,18.99,3.17,15.82
Children and Young Peoples Services,Head of Early Help Inclusion & Vulnerable Children.,088103,Stanley & Moorside Family Centre,Supplies and Services,304259,Equipment and Materials,05-Jul-2022,000008324023264,AMZNMKTPLACE AMAZON.CO,5999,Equipment-purchase and rental,20.00,3.33,16.67
Children and Young Peoples Services,Head of Early Help Inclusion & Vulnerable Children.,088103,Stanley & Moorside Family Centre,Supplies and Services,304259,Equipment and Materials,05-Jul-2022,000008324023268,AMZNMKTPLACE AMAZON.CO,5999,Equipment-purchase and rental,10.99,1.83,9.16
Children and Young Peoples Services,Head of Early Help Inclusion & Vulnerable Children.,088103,Stanley & Moorside Family Centre,Supplies and Services,304259,Equipment and Materials,05-Jul-2022,000008324023272,AMZNMktplace,5999,Equipment-purchase and rental,8.89,1.48,7.41
Children and Young Peoples Services,Head of Early Help Inclusion & Vulnerable Children.,088103,Stanley & Moorside Family Centre,Supplies and Services,304259,Equipment and Materials,05-Jul-2022,000008324023276,AMZNMktplace,5999,Equipment-purchase and rental,26.24,4.38,21.86
Children and Young Peoples Services,Head of Early Help Inclusion & Vulnerable Children.,088115,Young Parents Programme 088115,Supplies and Services,384302,Miscellaneous Expenses,05-Jul-2022,000008324023278,ASDA GROCERIES ONLINE,5411,Activity expenses,25.02,0.00,25.02
Children and Young Peoples Services,Head of Early Help Inclusion & Vulnerable Children.,088103,Stanley & Moorside Family Centre,Supplies and Services,384302,Miscellaneous Expenses,05-Jul-2022,000008324023282,AMZNMktplace,5999,Activity expenses,15.18,2.54,12.64
Children and Young Peoples Services,Head of Early Help Inclusion & Vulnerable Children.,088103,Stanley & Moorside Family Centre,Supplies and Services,304259,Equipment and Materials,05-Jul-2022,000008324023286,AMZNMktplace,5999,Equipment-purchase and rental,179.99,30.00,149.99
Resources BK0010,Digital Services,065335,School Services - Implementations,Supplies and Services,304639,Equipment and Materials,05-Jul-2022,000008324023304,REPLACEBASE,5732,Technicians-supplies,129.78,0.00,129.78
Resources BK0010,Digital Services,065335,School Services - Implementations,Supplies and Services,304639,Equipment and Materials,05-Jul-2022,000008324023308,WWW.ALIEXPRESS.COM,5964,Technicians-supplies,25.06,0.00,25.06
Regeneration Economy and Growth,Economic Development Level C,030771,Durham Advance Flexible Fund,Supplies and Services,348037,Subsistence E348,05-Jul-2022,000008324023330,CHESTER LE STREET,5814,Subsistence,9.10,0.00,9.10
Children and Young Peoples Services,Head of Childrens Social Care,085357,LAC Bespoke Placements,Supplies and Services,304999,Equipment and Materials,05-Jul-2022,000008324023380,YPS CHESTER LE STREETS,6513,Misc equipment tools and materials,"7,623.00",0.00,7623.00
Children and Young Peoples Services,Head of Childrens Social Care,085357,LAC Bespoke Placements,Transport,235057,Public Transport,05-Jul-2022,000008324023384,HOLIDAY PAYMENT AVR,4722,Staff travelling,"1,900.00",0.00,1900.00
Children and Young Peoples Services,Head of Education and Skills,071802,Louisa Cent Nursery,Supplies and Services,324117,Provisions E324,05-Jul-2022,000008324023428,ASDA SUPERSTORE,5411,Catering costs - provisions,7.29,0.00,7.29
Resources BK0010,Procurement Sales & Business Services,065503,Business Support - Spectrum,Supplies and Services,324117,Provisions E324,05-Jul-2022,000008324023476,ASDA GEORGE COM LEEDS,5411,Catering costs - provisions,79.95,0.00,79.95
Children and Young Peoples Services,Head of Childrens Social Care,085358,Orchard House Sacriston Solo Home,Supplies and Services,324117,Provisions E324,05-Jul-2022,000008324023528,ASDA GROCERIES ONLINE,5411,Catering costs - provisions,212.07,0.00,212.07
Children and Young Peoples Services,Head of Childrens Social Care,085358,Orchard House Sacriston Solo Home,Supplies and Services,324117,Provisions E324,05-Jul-2022,000008324023530,TESCO STORES 6334,5411,Catering costs - provisions,25.90,0.00,25.90
Children and Young Peoples Services,Head of Childrens Social Care,085358,Orchard House Sacriston Solo Home,Supplies and Services,324117,Provisions E324,05-Jul-2022,000008324023532,ASDA GROCERIES ONLINE,5411,Catering costs - provisions,-0.75,0.00,-0.75
Children and Young Peoples Services,Head of Childrens Social Care,085332,Middlestone Moor CU,Supplies and Services,324117,Provisions E324,05-Jul-2022,000008324023568,WILKO RETAIL LIMITED,5399,Catering costs - provisions,24.20,0.00,24.20
Resources BK0010,Procurement Sales & Business Services,065501,Business Support - Executive Support,Supplies and Services,304403,Equipment and Materials,05-Jul-2022,000008324023572,AMZNMktplace,5999,Other consumables,18.99,3.17,15.82
Resources BK0010,Procurement Sales & Business Services,065501,Business Support - Executive Support,Supplies and Services,304403,Equipment and Materials,05-Jul-2022,000008324023574,AMZNMktplace,5999,Other consumables,8.98,1.50,7.48
Resources BK0010,Procurement Sales & Business Services,065501,Business Support - Executive Support,Supplies and Services,304403,Equipment and Materials,05-Jul-2022,000008324023576,AMZNMktplace,5999,Other consumables,18.50,3.08,15.42
Adult and Health Services,Head of Adults,055310,Positive Journeys (Tudhoe),Supplies and Services,324117,Provisions E324,05-Jul-2022,000008324023608,ASDA SUPERSTORE 4987,5411,Catering costs - provisions,3.32,0.00,3.32
Regeneration Economy and Growth,Economic Development Level C,030770,Durham Advance,Supplies and Services,304259,Equipment and Materials,05-Jul-2022,000008324023644,WWW.NORTHYORKS.GOV.UK,9399,Equipment-purchase and rental,11.00,0.00,11.00
Regeneration Economy and Growth,Corporate Property and Land,030691,Catering - Durham Dales Centre,Supplies and Services,324117,Provisions E324,05-Jul-2022,000008324023648,TESCO STORES 6329,5411,Catering costs - provisions,18.37,0.00,18.37
Regeneration Economy and Growth,Corporate Property and Land,011296,Catering - Dunes,Supplies and Services,324117,Provisions E324,05-Jul-2022,000008324080602,JR HOLLAND FOODSERVICE,5499,Catering costs - provisions,77.84,0.00,77.84
Regeneration Economy and Growth,Corporate Property and Land,011296,Catering - Dunes,Supplies and Services,324117,Provisions E324,05-Jul-2022,000008324080604,JR HOLLAND FOODSERVICE,5499,Catering costs - provisions,3.99,0.00,3.99
Regeneration Economy and Growth,Culture Sport and Tourism,054235,Bishop Auckland Town Hall Cafe,Supplies and Services,324117,Provisions E324,05-Jul-2022,000008324080608,JR HOLLAND FOODSERVICE,5499,Catering costs - provisions,644.42,0.00,644.42
Neighbourhoods and Climate Change,Environmental Services,011060,C&G - Hardwick Park Catering,Supplies and Services,324117,Provisions E324,05-Jul-2022,000008324080610,JR HOLLAND FOODSERVICE,5499,Catering costs - provisions,57.89,0.00,57.89
Neighbourhoods and Climate Change,Environmental Services,011060,C&G - Hardwick Park Catering,Supplies and Services,324117,Provisions E324,05-Jul-2022,000008324080612,JR HOLLAND FOODSERVICE,5499,Catering costs - provisions,59.14,0.00,59.14
Neighbourhoods and Climate Change,Environmental Services,011060,C&G - Hardwick Park Catering,Supplies and Services,324117,Provisions E324,05-Jul-2022,000008324080614,JR HOLLAND FOODSERVICE,5499,Catering costs - provisions,34.48,0.00,34.48
Neighbourhoods and Climate Change,Environmental Services,011060,C&G - Hardwick Park Catering,Supplies and Services,324117,Provisions E324,05-Jul-2022,000008324080616,JR HOLLAND FOODSERVICE,5499,Catering costs - provisions,21.77,0.00,21.77
Neighbourhoods and Climate Change,Environmental Services,011060,C&G - Hardwick Park Catering,Supplies and Services,324117,Provisions E324,05-Jul-2022,000008324080618,JR HOLLAND FOODSERVICE,5499,Catering costs - provisions,173.41,0.00,173.41
Neighbourhoods and Climate Change,Environmental Services,011060,C&G - Hardwick Park Catering,Supplies and Services,324117,Provisions E324,05-Jul-2022,000008324080620,JR HOLLAND FOODSERVICE,5499,Catering costs - provisions,72.86,0.00,72.86
Regeneration Economy and Growth,Corporate Property and Land,021234,Catering - Locomotion,Supplies and Services,384999,Miscellaneous Expenses,05-Jul-2022,000008324080622,ON A ROLL SANDWICH COM,5199,Other expenses,176.73,0.00,176.73
Regeneration Economy and Growth,Corporate Property and Land,021234,Catering - Locomotion,Supplies and Services,324117,Provisions E324,05-Jul-2022,000008324080624,JR HOLLAND FOODSERVICE,5499,Catering costs - provisions,45.51,0.00,45.51
Regeneration Economy and Growth,Corporate Property and Land,021235,Catering - Wharton Park,Supplies and Services,384999,Miscellaneous Expenses,05-Jul-2022,000008324080628,ON A ROLL SANDWICH COM,5199,Other expenses,138.82,0.00,138.82
Regeneration Economy and Growth,Culture Sport and Tourism,054812,Gala Theatre - Catering etc,Supplies and Services,324117,Provisions E324,05-Jul-2022,000008324080632,JR HOLLAND FOODSERVICE,5499,Catering costs - provisions,51.55,0.00,51.55
Regeneration Economy and Growth,Corporate Property and Land,021242,Catering - County Hall,Supplies and Services,324117,Provisions E324,05-Jul-2022,000008324080634,JR HOLLAND FOODSERVICE,5499,Catering costs - provisions,165.23,0.00,165.23
Dedicated Schools Grant BG0015,DSG Schools Block,417604,Greenfield Community College 004176 - Geography,Supplies and Services,304403,Equipment and Materials,05-Jul-2022,000008327659132,WWW.SCREWFIX.COM,5211,Other consumables,26.98,4.50,22.48
Children and Young Peoples Services,Head of Childrens Social Care,085347,Solo Home The Manse,Transport,215995,Running Costs of Vehicles,05-Jul-2022,000008327659164,SHELL FOREST PARK A16,5541,Vehicle running expenses,24.07,0.00,24.07
Children and Young Peoples Services,Head of Childrens Social Care,085624,Families First Crook and Barnard Castle,Supplies and Services,304259,Equipment and Materials,05-Jul-2022,000008327659342,ARGOS LTD,5310,Equipment-purchase and rental,24.00,4.00,20.00
Children and Young Peoples Services,Head of Childrens Social Care,085624,Families First Crook and Barnard Castle,Supplies and Services,304259,Equipment and Materials,05-Jul-2022,000008327659342 - 1,ARGOS LTD,5310,Equipment-purchase and rental,60.00,,60.00
Neighbourhoods and Climate Change,Environmental Services,010367,C&G - South Grounds Maintenance,Supplies and Services,304221,Equipment and Materials,05-Jul-2022,000008327659406,SCREWFIX DIR LTD,5211,Direct materials,14.93,0.00,14.93
Children and Young Peoples Services,Head of Early Help Inclusion & Vulnerable Children.,085954,Walworth,Transfer Payments,515002,Social Services Clients,05-Jul-2022,000008327659660,www.asos.com,5691,Pocket money,18.00,0.00,18.00
Children and Young Peoples Services,Head of Early Help Inclusion & Vulnerable Children.,085962,Aycliffe Secure - Durham,Transfer Payments,515002,Social Services Clients,05-Jul-2022,000008327659664,JD SPORTS INTERNET,5941,Pocket money,38.99,0.00,38.99
Children and Young Peoples Services,Head of Early Help Inclusion & Vulnerable Children.,085965,Barnard,Supplies and Services,384302,Miscellaneous Expenses,05-Jul-2022,000008327659676,AMZNMKTPLACE AMAZON.CO,5999,Activity expenses,20.16,3.36,16.80
Children and Young Peoples Services,Head of Early Help Inclusion & Vulnerable Children.,085965,Barnard,Supplies and Services,384302,Miscellaneous Expenses,05-Jul-2022,000008327659676 - 1,AMZNMKTPLACE AMAZON.CO,5999,Activity expenses,0.07,,0.07
Children and Young Peoples Services,Head of Early Help Inclusion & Vulnerable Children.,085965,Barnard,Transfer Payments,515002,Social Services Clients,05-Jul-2022,000008327659678,AMZNMKTPLACE AMAZON.CO,5999,Pocket money,8.99,1.50,7.49
Children and Young Peoples Services,Head of Early Help Inclusion & Vulnerable Children.,085957,Secure Management,Supplies and Services,304405,Equipment and Materials,05-Jul-2022,000008327659680,AMZNMKTPLACE AMAZON.CO,5999,Medical supplies,9.98,1.66,8.32
Children and Young Peoples Services,Head of Early Help Inclusion & Vulnerable Children.,085965,Barnard,Transfer Payments,515002,Social Services Clients,05-Jul-2022,000008327659682,AMZNMKTPLACE AMAZON.CO,5999,Pocket money,34.86,5.81,29.05
Children and Young Peoples Services,Head of Early Help Inclusion & Vulnerable Children.,085965,Barnard,Transfer Payments,515002,Social Services Clients,05-Jul-2022,000008327659682 - 1,AMZNMKTPLACE AMAZON.CO,5999,Pocket money,47.98,,47.98
Children and Young Peoples Services,Head of Early Help Inclusion & Vulnerable Children.,085957,Secure Management,Supplies and Services,304405,Equipment and Materials,05-Jul-2022,000008327659684,AMZNMKTPLACE AMAZON.CO,5999,Medical supplies,42.69,7.12,35.57
Neighbourhoods and Climate Change,Environmental Services,031228,North Pennines - Fellfoot Forward,Supplies and Services,324117,Provisions E324,05-Jul-2022,000008327659820,CO-OP GROUP FOOD,5411,Catering costs - provisions,6.95,0.00,6.95
Children and Young Peoples Services,Head of Education and Skills,075021,DurhamWorks Progression and Learning,Supplies and Services,304221,Equipment and Materials,05-Jul-2022,000008327659826,WWW.SCREWFIX.COM,5211,Direct materials,86.95,14.49,72.46
Neighbourhoods and Climate Change,Environmental Services,031238,North Pennines - Tees Swale,Supplies and Services,304403,Equipment and Materials,05-Jul-2022,000008327659850,AMZNMKTPLACE AMAZON.CO,5999,Other consumables,71.88,11.98,59.90
Neighbourhoods and Climate Change,Environmental Services,031238,North Pennines - Tees Swale,Supplies and Services,304403,Equipment and Materials,05-Jul-2022,000008327659852,AMZNMKTPLACE AMAZON.CO,5999,Other consumables,103.93,17.33,86.60
Children and Young Peoples Services,Head of Childrens Social Care,085622,Families First Ferryhill,Supplies and Services,338045,Services,05-Jul-2022,000008327659872,Durham County CNCL,9399,Legal expenses 338045,22.00,0.00,22.00
Children and Young Peoples Services,Head of Childrens Social Care,085622,Families First Ferryhill,Supplies and Services,338045,Services,05-Jul-2022,000008327659876,Durham County CNCL,9399,Legal expenses 338045,-11.00,0.00,-11.00
Children and Young Peoples Services,Head of Early Help Inclusion & Vulnerable Children.,088109,Dean Bank and Tudhoe Family Centre,Supplies and Services,384302,Miscellaneous Expenses,05-Jul-2022,000008327659960,ARGOS LTD,5310,Activity expenses,150.00,0.00,150.00
Children and Young Peoples Services,Head of Childrens Social Care,085331,New Lea Childrens Home,Supplies and Services,304999,Equipment and Materials,05-Jul-2022,000008327660058,HALL HILL FARM ENTERPR,7929,Misc equipment tools and materials,19.90,0.00,19.90
Children and Young Peoples Services,Head of Childrens Social Care,085331,New Lea Childrens Home,Supplies and Services,308011,Furniture,05-Jul-2022,000008327660146,The Range,5719,Furniture repair and replacement,11.99,0.00,11.99
Children and Young Peoples Services,Head of Childrens Social Care,085331,New Lea Childrens Home,Supplies and Services,348037,Subsistence E348,05-Jul-2022,000008327660150,MCDONALDS,5812,Subsistence,11.48,0.00,11.48
Children and Young Peoples Services,Head of Early Help Inclusion & Vulnerable Children.,088103,Stanley & Moorside Family Centre,Supplies and Services,304259,Equipment and Materials,05-Jul-2022,000008327660162,AMZNMKTPLACE AMAZON.CO,5999,Equipment-purchase and rental,104.37,17.40,86.97
Children and Young Peoples Services,Head of Early Help Inclusion & Vulnerable Children.,088103,Stanley & Moorside Family Centre,Supplies and Services,304259,Equipment and Materials,05-Jul-2022,000008327660166,AMZNMKTPLACE AMAZON.CO,5999,Equipment-purchase and rental,44.79,7.63,37.16
Children and Young Peoples Services,Head of Early Help Inclusion & Vulnerable Children.,088103,Stanley & Moorside Family Centre,Supplies and Services,304259,Equipment and Materials,05-Jul-2022,000008327660172,AMZNMKTPLACE AMAZON.CO,5999,Equipment-purchase and rental,19.95,3.33,16.62
Children and Young Peoples Services,Head of Early Help Inclusion & Vulnerable Children.,088103,Stanley & Moorside Family Centre,Supplies and Services,304259,Equipment and Materials,05-Jul-2022,000008327660174,AMZNMKTPLACE AMAZON.CO,5999,Equipment-purchase and rental,13.99,2.33,11.66
Neighbourhoods and Climate Change,Environmental Services,010301,C&G - North Grounds Maintenance,Supplies and Services,304221,Equipment and Materials,05-Jul-2022,000008327660408,BREWERS,5211,Direct materials,112.92,0.00,112.92
Neighbourhoods and Climate Change,Environmental Services,010301,C&G - North Grounds Maintenance,Supplies and Services,304221,Equipment and Materials,05-Jul-2022,000008327660416,SCREWFIX DIR LTD,5211,Direct materials,42.96,0.00,42.96
Neighbourhoods and Climate Change,Environmental Services,010301,C&G - North Grounds Maintenance,Supplies and Services,304221,Equipment and Materials,05-Jul-2022,000008327660420,TOOLSTATION LIMITED,5211,Direct materials,15.58,0.00,15.58
Neighbourhoods and Climate Change,Environmental Services,010301,C&G - North Grounds Maintenance,Supplies and Services,304221,Equipment and Materials,05-Jul-2022,000008327660422,TOOLSTATION LIMITED,5211,Direct materials,2.72,0.00,2.72
Neighbourhoods and Climate Change,Environmental Services,010301,C&G - North Grounds Maintenance,Supplies and Services,304221,Equipment and Materials,05-Jul-2022,000008327660426,TOOLSTATION LIMITED,5211,Direct materials,22.92,0.00,22.92
Children and Young Peoples Services,Head of Early Help Inclusion & Vulnerable Children.,088107,Wheatley Hill & N. Aycliffe Family Centre,Supplies and Services,328041,Clothing uniforms and laundry E328,05-Jul-2022,000008327660552,ARGOS LTD,5310,Clothing uniforms and laundry,12.00,0.00,12.00
Children and Young Peoples Services,Head of Early Help Inclusion & Vulnerable Children.,088107,Wheatley Hill & N. Aycliffe Family Centre,Supplies and Services,324117,Provisions E324,05-Jul-2022,000008327660554,SAINSBURYS S/MKTS,5411,Catering costs - provisions,13.40,0.00,13.40
Resources BK0010,Procurement Sales & Business Services,065501,Business Support - Executive Support,Supplies and Services,304403,Equipment and Materials,05-Jul-2022,000008327660632,AMZNBUSINESS 2Y7E14QV4,5999,Other consumables,25.40,4.24,21.16
Regeneration Economy and Growth,Culture Sport and Tourism,054235,Bishop Auckland Town Hall Cafe,Supplies and Services,324117,Provisions E324,05-Jul-2022,000008327721420,BATLEYS PERTH,5300,Catering costs - provisions,110.46,18.41,92.05
Regeneration Economy and Growth,Culture Sport and Tourism,054235,Bishop Auckland Town Hall Cafe,Supplies and Services,324117,Provisions E324,05-Jul-2022,000008327721420 - 1,BATLEYS PERTH,5300,Catering costs - provisions,161.63,,161.63
Neighbourhoods and Climate Change,Environmental Services,011060,C&G - Hardwick Park Catering,Supplies and Services,324117,Provisions E324,05-Jul-2022,000008327721426,BATLEYS PERTH,5300,Catering costs - provisions,87.36,14.56,72.80
Neighbourhoods and Climate Change,Environmental Services,011060,C&G - Hardwick Park Catering,Supplies and Services,324117,Provisions E324,05-Jul-2022,000008327721426 - 1,BATLEYS PERTH,5300,Catering costs - provisions,67.73,,67.73
Regeneration Economy and Growth,Corporate Property and Land,021234,Catering - Locomotion,Supplies and Services,324117,Provisions E324,05-Jul-2022,000008327721430,BATLEYS PERTH,5300,Catering costs - provisions,130.92,21.82,109.10
Regeneration Economy and Growth,Corporate Property and Land,021234,Catering - Locomotion,Supplies and Services,324117,Provisions E324,05-Jul-2022,000008327721430 - 1,BATLEYS PERTH,5300,Catering costs - provisions,53.71,,53.71
Regeneration Economy and Growth,Economic Development Level C,030771,Durham Advance Flexible Fund,Supplies and Services,312009,Newspapers books and periodicals E312,05-Jul-2022,000008332362232,Cambridge University P,5942,Newspapers books and periodicals,19.28,0.00,19.28
Resources BK0010,Procurement Sales & Business Services,065500,Business Support - Management,Supplies and Services,336005,Advertising E336,06-Jul-2022,000008324023604,LinkedIn 8016461124,7311,Advertising other than for staff,117.78,0.00,117.78
Regeneration Economy and Growth,Business Durham CL0850,030689,Inward Investment and Aftercare,Supplies and Services,342033,Computers and Communications,06-Jul-2022,000008327659082,STK Shutterstock,7333,Computer hardware,19.00,0.00,19.00
Children and Young Peoples Services,Head of Childrens Social Care,085612,Families First Consett,Supplies and Services,338045,Services,06-Jul-2022,000008327659098,SUNDERLAND CC,9399,Legal expenses 338045,-11.00,0.00,-11.00
Children and Young Peoples Services,Head of Education and Skills,071801,Selby Cottage Childcare Centre,Supplies and Services,324117,Provisions E324,06-Jul-2022,000008327659112,ASDA SUPERSTORE 4987,5411,Catering costs - provisions,79.35,0.00,79.35
Dedicated Schools Grant BG0015,DSG Schools Block,110014,The Woodlands 1100 - Intervention,Supplies and Services,304403,Equipment and Materials,06-Jul-2022,000008327659126,AMZNMktplace,5999,Other consumables,79.45,13.25,66.20
Children and Young Peoples Services,Head of Childrens Social Care,085341,High Etherley Satelite Home,Supplies and Services,324117,Provisions E324,06-Jul-2022,000008327659156,TESCO STORES 6329,5411,Catering costs - provisions,14.93,0.00,14.93
Regeneration Economy and Growth,Culture Sport and Tourism,054813,Gala Theatre - Technical,Supplies and Services,304259,Equipment and Materials,06-Jul-2022,000008327659178,SP ALLOY RAMPS BY AV,5051,Equipment-purchase and rental,544.80,0.00,544.80
Children and Young Peoples Services,Head of Childrens Social Care,085332,Middlestone Moor CU,Supplies and Services,304999,Equipment and Materials,06-Jul-2022,000008327659192,POST OFFICE COUNTER,9402,Misc equipment tools and materials,4.10,0.00,4.10
Children and Young Peoples Services,Head of Childrens Social Care,085332,Middlestone Moor CU,Supplies and Services,324117,Provisions E324,06-Jul-2022,000008327659196,HOME BARGAINS SPENNYMO,5251,Catering costs - provisions,54.22,0.00,54.22
Children and Young Peoples Services,Head of Childrens Social Care,085332,Middlestone Moor CU,Supplies and Services,304999,Equipment and Materials,06-Jul-2022,000008327659198,HOME BARGAINS SPENNYMO,5251,Misc equipment tools and materials,1.98,0.00,1.98
Children and Young Peoples Services,Head of Childrens Social Care,085332,Middlestone Moor CU,Supplies and Services,324117,Provisions E324,06-Jul-2022,000008327659202,ASDA SUPERSTORE 4987,5411,Catering costs - provisions,22.17,0.00,22.17
Neighbourhoods and Climate Change,Environmental Services,031202,North Pennines - Peatscapes,Supplies and Services,304252,Equipment and Materials,06-Jul-2022,000008327659278,DRONEDOCTOR,7629,Equipment-repairsserviceinsurance,253.45,0.00,253.45
Neighbourhoods and Climate Change,Environmental Services,010367,C&G - South Grounds Maintenance,Supplies and Services,304403,Equipment and Materials,06-Jul-2022,000008327659306,MAXWELLS DIY,5231,Other consumables,15.00,2.50,12.50
Children and Young Peoples Services,Head of Childrens Social Care,085331,New Lea Childrens Home,Supplies and Services,308011,Furniture,06-Jul-2022,000008327659320,CORNERSTONE SUPPOR,5712,Furniture repair and replacement,400.00,0.00,400.00
Children and Young Peoples Services,Head of Childrens Social Care,085331,New Lea Childrens Home,Supplies and Services,304259,Equipment and Materials,06-Jul-2022,000008327659324,Connect Distribution S,5722,Equipment-purchase and rental,36.01,0.00,36.01
Children and Young Peoples Services,Head of Childrens Social Care,085331,New Lea Childrens Home,Supplies and Services,304999,Equipment and Materials,06-Jul-2022,000008327659328,HOME BARGAINS,5251,Misc equipment tools and materials,0.79,0.00,0.79
Children and Young Peoples Services,Head of Childrens Social Care,085331,New Lea Childrens Home,Supplies and Services,324117,Provisions E324,06-Jul-2022,000008327659330,ASDA SUPERSTORE,5411,Catering costs - provisions,30.65,0.00,30.65
Regeneration Economy and Growth,Corporate Property and Land,021242,Catering - County Hall,Supplies and Services,304259,Equipment and Materials,06-Jul-2022,000008327659434,AMZN Digital 2Y1IG8DJ4,5735,Equipment-purchase and rental,0.99,0.00,0.99
Adult and Health Services,Head of Adults,055302,Durham Pathways,Supplies and Services,304403,Equipment and Materials,06-Jul-2022,000008327659544,AMZNMktplace,5999,Other consumables,29.95,5.00,24.95
Adult and Health Services,Head of Adults,055302,Durham Pathways,Supplies and Services,304403,Equipment and Materials,06-Jul-2022,000008327659548,AMZNMktplace,5999,Other consumables,7.92,1.32,6.60
Adult and Health Services,Head of Adults,055302,Durham Pathways,Supplies and Services,304403,Equipment and Materials,06-Jul-2022,000008327659548 - 1,AMZNMktplace,5999,Other consumables,0.04,,0.04
Adult and Health Services,Head of Adults,055302,Durham Pathways,Supplies and Services,304403,Equipment and Materials,06-Jul-2022,000008327659550,AMZNMktplace,5999,Other consumables,8.99,1.50,7.49
Regeneration Economy and Growth,Culture Sport and Tourism,011277,Technical - Events Delivery,Supplies and Services,304259,Equipment and Materials,06-Jul-2022,000008327659560,AMZNMKTPLACE AMAZON.CO,5999,Equipment-purchase and rental,7.02,1.17,5.85
Children and Young Peoples Services,Head of Education and Skills,071801,Selby Cottage Childcare Centre,Supplies and Services,324117,Provisions E324,06-Jul-2022,000008327659570,TESCO STORES 5457,5411,Catering costs - provisions,34.46,0.00,34.46
Children and Young Peoples Services,Head of Early Help Inclusion & Vulnerable Children.,085962,Aycliffe Secure - Durham,Supplies and Services,312009,Newspapers books and periodicals E312,06-Jul-2022,000008327659574,AMZN Mktp UK 2Y73G4S24,5942,Newspapers books and periodicals,47.08,7.85,39.23
Regeneration Economy and Growth,Business Durham CL0850,030690,Durham Dales Centre - Tourist Information Centre,Supplies and Services,324117,Provisions E324,06-Jul-2022,000008327659584,Joe Davies (Manchester,5300,Catering costs - provisions,"1,018.50",0.00,1018.50
Children and Young Peoples Services,Head of Early Help Inclusion & Vulnerable Children.,085957,Secure Management,Supplies and Services,304403,Equipment and Materials,06-Jul-2022,000008327659606,AMZNMKTPLACE AMAZON.CO,5999,Other consumables,28.26,4.71,23.55
Regeneration Economy and Growth,Economic Development Level C,030771,Durham Advance Flexible Fund,Transport,235057,Public Transport,06-Jul-2022,000008327659638,CHEVRON TAXIS,4121,Staff travelling,37.50,0.00,37.50
Children and Young Peoples Services,Head of Childrens Social Care,085364,Children Looked After Team 1,Premises,120037,Energy Costs,06-Jul-2022,000008327659646,SSE,4900,Other fuels,414.66,0.00,414.66
Children and Young Peoples Services,Head of Early Help Inclusion & Vulnerable Children.,085956,Lumley,Transfer Payments,515002,Social Services Clients,06-Jul-2022,000008327659666,Lush Global Digital Lt,5977,Pocket money,12.45,0.00,12.45
Children and Young Peoples Services,Head of Early Help Inclusion & Vulnerable Children.,085956,Lumley,Transfer Payments,515002,Social Services Clients,06-Jul-2022,000008327659668,WWW.THORTFUL.COM,5947,Pocket money,7.38,0.00,7.38
Children and Young Peoples Services,Head of Early Help Inclusion & Vulnerable Children.,085965,Barnard,Transfer Payments,515002,Social Services Clients,06-Jul-2022,000008327659672,AMZNMktplace,5999,Pocket money,3.29,0.00,3.29
Children and Young Peoples Services,Head of Early Help Inclusion & Vulnerable Children.,085965,Barnard,Supplies and Services,384302,Miscellaneous Expenses,06-Jul-2022,000008327659686,AMZNMKTPLACE AMAZON.CO,5999,Activity expenses,13.86,2.31,11.55
Children and Young Peoples Services,Head of Early Help Inclusion & Vulnerable Children.,085954,Walworth,Supplies and Services,384302,Miscellaneous Expenses,06-Jul-2022,000008327659688,AMZNMKTPLACE AMAZON.CO,5999,Activity expenses,4.00,0.67,3.33
Children and Young Peoples Services,Head of Early Help Inclusion & Vulnerable Children.,085955,Auckland,Supplies and Services,384302,Miscellaneous Expenses,06-Jul-2022,000008327659690,AMZNMKTPLACE AMAZON.CO,5999,Activity expenses,86.90,14.48,72.42
Children and Young Peoples Services,Head of Early Help Inclusion & Vulnerable Children.,085957,Secure Management,Supplies and Services,384302,Miscellaneous Expenses,06-Jul-2022,000008327659692,Amazon MP3,5735,Activity expenses,0.98,0.00,0.98
Children and Young Peoples Services,Head of Early Help Inclusion & Vulnerable Children.,085957,Secure Management,Supplies and Services,384302,Miscellaneous Expenses,06-Jul-2022,000008327659694,Amazon MP3,5735,Activity expenses,1.88,0.00,1.88
Children and Young Peoples Services,Head of Early Help Inclusion & Vulnerable Children.,085965,Barnard,Transfer Payments,515002,Social Services Clients,06-Jul-2022,000008327659696,AMZNMktplace,5999,Pocket money,9.05,0.00,9.05
Children and Young Peoples Services,Head of Early Help Inclusion & Vulnerable Children.,085955,Auckland,Supplies and Services,308011,Furniture,06-Jul-2022,000008327659698,AMZNMktplace,5999,Furniture repair and replacement,44.04,7.34,36.70
Children and Young Peoples Services,Head of Early Help Inclusion & Vulnerable Children.,085957,Secure Management,Supplies and Services,304405,Equipment and Materials,06-Jul-2022,000008327659700,AMZNMktplace,5999,Medical supplies,4.99,0.83,4.16
Children and Young Peoples Services,Head of Early Help Inclusion & Vulnerable Children.,085957,Secure Management,Supplies and Services,304405,Equipment and Materials,06-Jul-2022,000008327659702,AMZNMktplace,5999,Medical supplies,9.94,1.66,8.28
Children and Young Peoples Services,Head of Early Help Inclusion & Vulnerable Children.,085965,Barnard,Transfer Payments,515002,Social Services Clients,06-Jul-2022,000008327659704,AMZNMktplace,5999,Pocket money,5.94,0.99,4.95
Children and Young Peoples Services,Head of Early Help Inclusion & Vulnerable Children.,085955,Auckland,Supplies and Services,308011,Furniture,06-Jul-2022,000008327659706,AMZNMktplace,5999,Furniture repair and replacement,26.28,4.38,21.90
Children and Young Peoples Services,Head of Early Help Inclusion & Vulnerable Children.,085955,Auckland,Supplies and Services,308011,Furniture,06-Jul-2022,000008327659706 - 1,AMZNMktplace,5999,Furniture repair and replacement,0.04,,0.04
Children and Young Peoples Services,Head of Early Help Inclusion & Vulnerable Children.,085954,Walworth,Supplies and Services,304083,Equipment and Materials,06-Jul-2022,000008327659708,AMZNMktplace,5999,Catering equipment,31.73,5.29,26.44
Children and Young Peoples Services,Head of Early Help Inclusion & Vulnerable Children.,085954,Walworth,Supplies and Services,304083,Equipment and Materials,06-Jul-2022,000008327659712,AMZNMktplace,5999,Catering equipment,19.98,3.34,16.64
Children and Young Peoples Services,Head of Early Help Inclusion & Vulnerable Children.,085954,Walworth,Supplies and Services,332047,Printing Stationery and Gen Off Exps,06-Jul-2022,000008327659714,AMZNMktplace,5999,Stationery,9.99,1.67,8.32
Children and Young Peoples Services,Head of Early Help Inclusion & Vulnerable Children.,085955,Auckland,Transfer Payments,515002,Social Services Clients,06-Jul-2022,000008327659716,AMZNMktplace,5999,Pocket money,19.99,3.33,16.66
Children and Young Peoples Services,Head of Early Help Inclusion & Vulnerable Children.,085955,Auckland,Supplies and Services,332047,Printing Stationery and Gen Off Exps,06-Jul-2022,000008327659718,AMZNMktplace,5999,Stationery,33.96,5.66,28.30
Children and Young Peoples Services,Head of Early Help Inclusion & Vulnerable Children.,085955,Auckland,Supplies and Services,304083,Equipment and Materials,06-Jul-2022,000008327659722,AMZNMktplace,5999,Catering equipment,27.98,4.66,23.32
Children and Young Peoples Services,Head of Early Help Inclusion & Vulnerable Children.,085955,Auckland,Supplies and Services,308011,Furniture,06-Jul-2022,000008327659726,AMZNMktplace,5999,Furniture repair and replacement,72.45,0.00,72.45
Children and Young Peoples Services,Head of Early Help Inclusion & Vulnerable Children.,085956,Lumley,Transfer Payments,515002,Social Services Clients,06-Jul-2022,000008327659730,NEW LOOK INTERNET,5621,Pocket money,22.97,0.00,22.97
Children and Young Peoples Services,Head of Early Help Inclusion & Vulnerable Children.,085962,Aycliffe Secure - Durham,Supplies and Services,324117,Provisions E324,06-Jul-2022,000008327659734,TESCO STORES 6329,5411,Catering costs - provisions,90.73,0.00,90.73
Children and Young Peoples Services,Head of Early Help Inclusion & Vulnerable Children.,085954,Walworth,Supplies and Services,304259,Equipment and Materials,06-Jul-2022,000008327659738,CURRYS ONLINE,5732,Equipment-purchase and rental,189.00,31.50,157.50
Children and Young Peoples Services,Head of Early Help Inclusion & Vulnerable Children.,085965,Barnard,Transfer Payments,515002,Social Services Clients,06-Jul-2022,000008327659740,AMZNMktplace,5999,Pocket money,18.74,0.00,18.74
Children and Young Peoples Services,Head of Early Help Inclusion & Vulnerable Children.,085954,Walworth,Supplies and Services,324117,Provisions E324,06-Jul-2022,000008327659744,AMZNMktplace,5999,Catering costs - provisions,18.96,3.16,15.80
Children and Young Peoples Services,Head of Early Help Inclusion & Vulnerable Children.,085954,Walworth,Supplies and Services,324117,Provisions E324,06-Jul-2022,000008327659744 - 1,AMZNMktplace,5999,Catering costs - provisions,0.04,,0.04
Children and Young Peoples Services,Head of Early Help Inclusion & Vulnerable Children.,085954,Walworth,Supplies and Services,332047,Printing Stationery and Gen Off Exps,06-Jul-2022,000008327659746,AMZNMktplace,5999,Stationery,40.98,6.83,34.15
Neighbourhoods and Climate Change,Environmental Services,031200,North Pennines Core,Supplies and Services,348037,Subsistence E348,06-Jul-2022,000008327659782,THE OLD VILLAGE BAKERY,5812,Subsistence,14.55,0.00,14.55
Neighbourhoods and Climate Change,Environmental Services,031200,North Pennines Core,Supplies and Services,348037,Subsistence E348,06-Jul-2022,000008327659784,THE OLD VILLAGE BAKERY,5812,Subsistence,12.45,0.00,12.45
Neighbourhoods and Climate Change,Environmental Services,031200,North Pennines Core,Supplies and Services,324117,Provisions E324,06-Jul-2022,000008327659790,SCOTMID COOP LAZONBY,5411,Catering costs - provisions,15.56,0.00,15.56
Neighbourhoods and Climate Change,Environmental Services,031200,North Pennines Core,Supplies and Services,348037,Subsistence E348,06-Jul-2022,000008327659792,BABULS,5812,Subsistence,82.00,0.00,82.00
Neighbourhoods and Climate Change,Environmental Services,031238,North Pennines - Tees Swale,Supplies and Services,304403,Equipment and Materials,06-Jul-2022,000008327659856,AMZNMKTPLACE AMAZON.CO,5999,Other consumables,29.96,5.00,24.96
Dedicated Schools Grant BG0015,DSG Schools Block,419207,Durham Fed 4192 - EBACC,Supplies and Services,304403,Equipment and Materials,06-Jul-2022,000008327659898,GEOGRAPHICAL ASSOC,8398,Other consumables,114.00,0.00,114.00
Children and Young Peoples Services,Head of Childrens Social Care,085365,Children Looked After Team 2,Supplies and Services,338045,Services,06-Jul-2022,000008327659962,HM PASSPORT OFFICE,9399,Legal expenses 338045,49.00,0.00,49.00
Children and Young Peoples Services,Head of Early Help Inclusion & Vulnerable Children.,088108,Spennymoor & Shildon Intensive Family Support Team,Supplies and Services,384302,Miscellaneous Expenses,06-Jul-2022,000008327659966,WWW.TTS-GROUPS.CO.UK,5943,Activity expenses,80.31,0.00,80.31
Children and Young Peoples Services,Head of Childrens Social Care,085364,Children Looked After Team 1,Supplies and Services,338045,Services,06-Jul-2022,000008327659970,GEN REGISTER OFFICE,9399,Legal expenses 338045,11.00,0.00,11.00
Children and Young Peoples Services,Head of Early Help Inclusion & Vulnerable Children.,088109,Dean Bank and Tudhoe Family Centre,Supplies and Services,384302,Miscellaneous Expenses,06-Jul-2022,000008327659972,AMZNMktplace,5999,Activity expenses,15.98,2.66,13.32
Regeneration Economy and Growth,Corporate Property and Land,020098,Bldg Serv - R&M Div 98 - Pools Maintenance,Supplies and Services,304221,Equipment and Materials,06-Jul-2022,000008327660040,WWW.ALLVALVES.CO.UK,5072,Direct materials,126.00,21.00,105.00
Regeneration Economy and Growth,Business Durham CL0850,030717,Business Services,Supplies and Services,308011,Furniture,06-Jul-2022,000008327660042,IKEA LTD SHOP ONLINE,5712,Furniture repair and replacement,100.00,0.00,100.00
Children and Young Peoples Services,Head of Childrens Social Care,085334,West Rainton Satelite Home,Supplies and Services,324117,Provisions E324,06-Jul-2022,000008327660134,TESCO STORES 2371,5411,Catering costs - provisions,235.64,0.00,235.64
Children and Young Peoples Services,Head of Childrens Social Care,085334,West Rainton Satelite Home,Supplies and Services,324117,Provisions E324,06-Jul-2022,000008327660136,TESCO STORES 2371,5411,Catering costs - provisions,21.48,0.00,21.48
Children and Young Peoples Services,Head of Childrens Social Care,085334,West Rainton Satelite Home,Supplies and Services,324117,Provisions E324,06-Jul-2022,000008327660138,TESCO STORES 2371,5411,Catering costs - provisions,34.25,0.00,34.25
Children and Young Peoples Services,Head of Childrens Social Care,085334,West Rainton Satelite Home,Supplies and Services,304403,Equipment and Materials,06-Jul-2022,000008327660142,CARD FACTORY,5947,Other consumables,10.96,0.00,10.96
Children and Young Peoples Services,Head of Early Help Inclusion & Vulnerable Children.,088103,Stanley & Moorside Family Centre,Supplies and Services,304259,Equipment and Materials,06-Jul-2022,000008327660156,AMZNMktplace,5999,Equipment-purchase and rental,62.94,10.49,52.45
Children and Young Peoples Services,Head of Early Help Inclusion & Vulnerable Children.,088103,Stanley & Moorside Family Centre,Supplies and Services,304259,Equipment and Materials,06-Jul-2022,000008327660156 - 1,AMZNMktplace,5999,Equipment-purchase and rental,0.03,,0.03
Children and Young Peoples Services,Head of Early Help Inclusion & Vulnerable Children.,088103,Stanley & Moorside Family Centre,Supplies and Services,304259,Equipment and Materials,06-Jul-2022,000008327660178,AMZNMktplace,5999,Equipment-purchase and rental,56.47,9.41,47.06
Children and Young Peoples Services,Head of Early Help Inclusion & Vulnerable Children.,088103,Stanley & Moorside Family Centre,Supplies and Services,304259,Equipment and Materials,06-Jul-2022,000008327660180,AMZNMktplace,5999,Equipment-purchase and rental,68.46,11.42,57.04
Resources BK0010,Digital Services,065335,School Services - Implementations,Supplies and Services,304639,Equipment and Materials,06-Jul-2022,000008327660184,REPLACEBASE,5732,Technicians-supplies,77.06,0.00,77.06
Resources BK0010,Digital Services,065335,School Services - Implementations,Supplies and Services,304639,Equipment and Materials,06-Jul-2022,000008327660188,WWW.ALIEXPRESS.COM,5964,Technicians-supplies,180.79,0.00,180.79
Dedicated Schools Grant BG0015,DSG Schools Block,231104,Peases West Primary 2311 - General Curriculum,Supplies and Services,304403,Equipment and Materials,06-Jul-2022,000008327660200,IKEA LTD SHOP ONLINE,5712,Other consumables,283.50,47.25,236.25
Children and Young Peoples Services,Head of Education and Skills,071903,Early Years Sustainability,Employees,040149,Recruitment Instruction and Training,06-Jul-2022,000008327660282,KAREN WILDING EDU LTD,8299,Training-all costs,149.00,0.00,149.00
Regeneration Economy and Growth,Culture Sport and Tourism,011204,Festival and Events,Supplies and Services,304403,Equipment and Materials,06-Jul-2022,000008327660300,AMZNMKTPLACE AMAZON.CO,5999,Other consumables,93.78,15.63,78.15
Regeneration Economy and Growth,Culture Sport and Tourism,011204,Festival and Events,Supplies and Services,304403,Equipment and Materials,06-Jul-2022,000008327660308,AMZNMktplace,5999,Other consumables,8.99,1.50,7.49
Neighbourhoods and Climate Change,Environmental Services,010301,C&G - North Grounds Maintenance,Supplies and Services,304999,Equipment and Materials,06-Jul-2022,000008327660428,GUSTHARTS,5072,Misc equipment tools and materials,425.46,0.00,425.46
Children and Young Peoples Services,Head of Education and Skills,071802,Louisa Cent Nursery,Supplies and Services,324117,Provisions E324,06-Jul-2022,000008327660462,ASDA SUPERSTORE,5411,Catering costs - provisions,4.99,0.00,4.99
Children and Young Peoples Services,Head of Education and Skills,071802,Louisa Cent Nursery,Supplies and Services,324117,Provisions E324,06-Jul-2022,000008327660464,ASDA SUPERSTORE,5411,Catering costs - provisions,-4.00,0.00,-4.00
Regeneration Economy and Growth,Economic Development Level C,030776,LINKCD Flexible Fund,Supplies and Services,324117,Provisions E324,06-Jul-2022,000008327660602,TESCO STORES 2371,5411,Catering costs - provisions,3.60,0.00,3.60
Children and Young Peoples Services,Head of Childrens Social Care,085334,West Rainton Satelite Home,Supplies and Services,348037,Subsistence E348,06-Jul-2022,000008327660628,BIG LUKES WORLD BUFFET,5812,Subsistence,36.64,0.00,36.64
Resources BK0010,Procurement Sales & Business Services,065501,Business Support - Executive Support,Supplies and Services,304403,Equipment and Materials,06-Jul-2022,000008327660634,AMZNMktplace,5999,Other consumables,19.99,3.33,16.66
Resources BK0010,Procurement Sales & Business Services,065501,Business Support - Executive Support,Supplies and Services,304403,Equipment and Materials,06-Jul-2022,000008327660638,AMZNMktplace,5999,Other consumables,19.99,3.33,16.66
Children and Young Peoples Services,Head of Childrens Social Care,085341,High Etherley Satelite Home,Supplies and Services,324117,Provisions E324,06-Jul-2022,000008327660686,TESCO STORES 6329,5411,Catering costs - provisions,13.80,0.00,13.80
Children and Young Peoples Services,Head of Early Help Inclusion & Vulnerable Children.,088113,Seaham & Laurel Avenue Family Centre,Supplies and Services,324117,Provisions E324,06-Jul-2022,000008327660720,LIDL GB DURHAM,5411,Catering costs - provisions,20.19,0.00,20.19
Adult and Health Services,Head of Adults,055309,Peterlee Pathways,Supplies and Services,304999,Equipment and Materials,06-Jul-2022,000008327660740,HOME BARGAINS PETERLEE,5251,Misc equipment tools and materials,5.50,0.00,5.50
Regeneration Economy and Growth,Corporate Property and Land,010525,Catering - Green Lane,Supplies and Services,324117,Provisions E324,06-Jul-2022,000008327721414,JR HOLLAND FOODSERVICE,5499,Catering costs - provisions,33.24,0.00,33.24
Regeneration Economy and Growth,Corporate Property and Land,010525,Catering - Green Lane,Supplies and Services,324117,Provisions E324,06-Jul-2022,000008327721416,JR HOLLAND FOODSERVICE,5499,Catering costs - provisions,7.50,0.00,7.50
Regeneration Economy and Growth,Corporate Property and Land,030691,Catering - Durham Dales Centre,Supplies and Services,324117,Provisions E324,06-Jul-2022,000008327721418,JR HOLLAND FOODSERVICE,5499,Catering costs - provisions,85.82,0.00,85.82
Adult and Health Services,Head of Adults,055643,Hawthorn House LD Respite Unit,Supplies and Services,324117,Provisions E324,06-Jul-2022,000008327721422,JR HOLLAND FOODSERVICE,5499,Catering costs - provisions,16.61,0.00,16.61
Adult and Health Services,Head of Adults,055643,Hawthorn House LD Respite Unit,Supplies and Services,324117,Provisions E324,06-Jul-2022,000008327721424,JR HOLLAND FOODSERVICE,5499,Catering costs - provisions,13.29,0.00,13.29
Neighbourhoods and Climate Change,Environmental Services,011060,C&G - Hardwick Park Catering,Supplies and Services,324117,Provisions E324,06-Jul-2022,000008327721428,FREEMAN CATERING BUTCH,5422,Catering costs - provisions,63.36,0.00,63.36
Regeneration Economy and Growth,Corporate Property and Land,021234,Catering - Locomotion,Supplies and Services,324117,Provisions E324,06-Jul-2022,000008327721432,JR HOLLAND FOODSERVICE,5499,Catering costs - provisions,-3.98,0.00,-3.98
Regeneration Economy and Growth,Culture Sport and Tourism,011263,Louisa Centre 011263,Supplies and Services,324117,Provisions E324,06-Jul-2022,000008327721434,JR HOLLAND FOODSERVICE,5499,Catering costs - provisions,25.04,0.00,25.04
Regeneration Economy and Growth,Corporate Property and Land,021242,Catering - County Hall,Supplies and Services,324117,Provisions E324,06-Jul-2022,000008327721436,JR HOLLAND FOODSERVICE,5499,Catering costs - provisions,12.18,0.00,12.18
Regeneration Economy and Growth,Corporate Property and Land,021242,Catering - County Hall,Supplies and Services,324117,Provisions E324,06-Jul-2022,000008327721438,JR HOLLAND FOODSERVICE,5499,Catering costs - provisions,15.84,0.00,15.84
Regeneration Economy and Growth,Corporate Property and Land,021324,Catering - Meadowfield,Supplies and Services,324117,Provisions E324,06-Jul-2022,000008327721440,JR HOLLAND FOODSERVICE,5499,Catering costs - provisions,4.12,0.00,4.12
Regeneration Economy and Growth,Corporate Property and Land,021324,Catering - Meadowfield,Supplies and Services,324117,Provisions E324,06-Jul-2022,000008327721442,JR HOLLAND FOODSERVICE,5499,Catering costs - provisions,55.92,0.00,55.92
Children and Young Peoples Services,Head of Childrens Social Care,085501,Child Care Cases Legal Expenses,Supplies and Services,304403,Equipment and Materials,06-Jul-2022,000008332361888,WAKEFIELD MDC INT,9399,Other consumables,13.50,0.00,13.50
Children and Young Peoples Services,Head of Education and Skills,078561,DurhamEnable,Supplies and Services,304403,Equipment and Materials,06-Jul-2022,000008332361894,AMZNMKTPLACE AMAZON.CO,5999,Other consumables,8.99,0.00,8.99
Regeneration Economy and Growth,Culture Sport and Tourism,054609,Library Stock & Distribution,Supplies and Services,340001,Postages E340,06-Jul-2022,000008332361918,WWW.NEOPOST.CO.UK,5111,Postages,499.00,0.00,499.00
Regeneration Economy and Growth,Culture Sport and Tourism,054775,Durham Town Hall 054775,Supplies and Services,304259,Equipment and Materials,06-Jul-2022,000008332361920,WWW.SCREWFIX.COM,5211,Equipment-purchase and rental,32.97,5.50,27.47
Regeneration Economy and Growth,Culture Sport and Tourism,054813,Gala Theatre - Technical,Supplies and Services,304259,Equipment and Materials,06-Jul-2022,000008332362022,AMZNMKTPLACE AMAZON.CO,5999,Equipment-purchase and rental,56.70,9.45,47.25
Neighbourhoods and Climate Change,Environmental Services,010314,Nei.Prot - Bereavement Services,Supplies and Services,304259,Equipment and Materials,06-Jul-2022,000008332362034,DURHAM COUNTY COUNCIL,9399,Equipment-purchase and rental,11.00,0.00,11.00
Neighbourhoods and Climate Change,Environmental Services,010314,Nei.Prot - Bereavement Services,Supplies and Services,304259,Equipment and Materials,06-Jul-2022,000008332362036,DURHAM COUNTY COUNCIL,9399,Equipment-purchase and rental,11.00,0.00,11.00
Children and Young Peoples Services,Head of Early Help Inclusion & Vulnerable Children.,085962,Aycliffe Secure - Durham,Supplies and Services,304403,Equipment and Materials,06-Jul-2022,000008332362038,AMZNMKTPLACE AMAZON.CO,5999,Other consumables,59.48,9.91,49.57
Children and Young Peoples Services,Head of Childrens Social Care,085364,Children Looked After Team 1,Supplies and Services,328041,Clothing uniforms and laundry E328,06-Jul-2022,000008332362052,ARGOS LTD,5310,Clothing uniforms and laundry,60.99,0.00,60.99
Children and Young Peoples Services,Head of Early Help Inclusion & Vulnerable Children.,085954,Walworth,Supplies and Services,308011,Furniture,06-Jul-2022,000008332362056,ARGOS LTD,5310,Furniture repair and replacement,79.95,0.00,79.95
Children and Young Peoples Services,Head of Early Help Inclusion & Vulnerable Children.,085954,Walworth,Supplies and Services,308011,Furniture,06-Jul-2022,000008332362058,ARGOS LTD,5310,Furniture repair and replacement,193.95,0.00,193.95
Children and Young Peoples Services,Head of Early Help Inclusion & Vulnerable Children.,085954,Walworth,Supplies and Services,384302,Miscellaneous Expenses,06-Jul-2022,000008332362060,AMZNMKTPLACE AMAZON.CO,5999,Activity expenses,5.99,1.00,4.99
Children and Young Peoples Services,Head of Early Help Inclusion & Vulnerable Children.,085956,Lumley,Supplies and Services,308011,Furniture,06-Jul-2022,000008332362062,AMZNMKTPLACE AMAZON.CO,5999,Furniture repair and replacement,36.92,6.15,30.77
Children and Young Peoples Services,Head of Early Help Inclusion & Vulnerable Children.,085955,Auckland,Supplies and Services,384302,Miscellaneous Expenses,06-Jul-2022,000008332362064,AMZNMKTPLACE AMAZON.CO,5999,Activity expenses,57.89,9.65,48.24
Children and Young Peoples Services,Head of Early Help Inclusion & Vulnerable Children.,085956,Lumley,Supplies and Services,308011,Furniture,06-Jul-2022,000008332362066,AMZNMKTPLACE AMAZON.CO,5999,Furniture repair and replacement,16.45,2.74,13.71
Children and Young Peoples Services,Head of Early Help Inclusion & Vulnerable Children.,085954,Walworth,Supplies and Services,384302,Miscellaneous Expenses,06-Jul-2022,000008332362068,AMZNMKTPLACE AMAZON.CO,5999,Activity expenses,50.95,8.50,42.45
Children and Young Peoples Services,Head of Early Help Inclusion & Vulnerable Children.,085954,Walworth,Supplies and Services,384302,Miscellaneous Expenses,06-Jul-2022,000008332362070,AMZNMKTPLACE AMAZON.CO,5999,Activity expenses,6.91,0.00,6.91
Children and Young Peoples Services,Head of Childrens Social Care,085334,West Rainton Satelite Home,Transport,215995,Running Costs of Vehicles,06-Jul-2022,000008332362080,GULF WEST RAINTON,5541,Vehicle running expenses,4.39,0.00,4.39
Adult and Health Services,Head of Adults,055643,Hawthorn House LD Respite Unit,Supplies and Services,304403,Equipment and Materials,06-Jul-2022,000008332362164,AMZNMKTPLACE AMAZON.CO,5999,Other consumables,5.99,1.00,4.99
Children and Young Peoples Services,Head of Early Help Inclusion & Vulnerable Children.,085801,CDYJS - Support,Supplies and Services,304259,Equipment and Materials,06-Jul-2022,000008332362208,JD SPORTS INTERNET,5941,Equipment-purchase and rental,20.00,0.00,20.00
Resources BK0010,Digital Services,065335,School Services - Implementations,Supplies and Services,304639,Equipment and Materials,06-Jul-2022,000008332362222,AMZNMKTPLACE AMAZON.CO,5999,Technicians-supplies,5.29,0.88,4.41
Children and Young Peoples Services,Head of Childrens Social Care,085347,Solo Home The Manse,Supplies and Services,304221,Equipment and Materials,06-Jul-2022,000008332362250,SCREWFIX DIR LTD,5211,Direct materials,9.79,0.00,9.79
Children and Young Peoples Services,Head of Childrens Social Care,085347,Solo Home The Manse,Supplies and Services,348037,Subsistence E348,06-Jul-2022,000008332362252,MCDONALDS 1514,5814,Subsistence,7.32,0.00,7.32
Children and Young Peoples Services,Head of Childrens Social Care,085347,Solo Home The Manse,Supplies and Services,324117,Provisions E324,06-Jul-2022,000008332362254,WM Morrisons Store,5411,Catering costs - provisions,11.25,0.00,11.25
Children and Young Peoples Services,Head of Education and Skills,071802,Louisa Cent Nursery,Supplies and Services,324117,Provisions E324,06-Jul-2022,000008332362276,WM MORRISONS STORE,5411,Catering costs - provisions,9.00,0.00,9.00
Resources BK0010,Procurement Sales & Business Services,065501,Business Support - Executive Support,Supplies and Services,304403,Equipment and Materials,06-Jul-2022,000008332362336,AMZNMKTPLACE AMAZON.CO,5999,Other consumables,19.99,3.33,16.66
Children and Young Peoples Services,Head of Childrens Social Care,085551,Short Break Services-Park Hse Sher,Supplies and Services,324117,Provisions E324,06-Jul-2022,000008332362382,ICELAND FOODS,5411,Catering costs - provisions,132.49,0.00,132.49
Regeneration Economy and Growth,Corporate Property and Land,030691,Catering - Durham Dales Centre,Supplies and Services,324117,Provisions E324,06-Jul-2022,000008332362414,CO OP GROUP FOOD,5411,Catering costs - provisions,6.57,0.00,6.57
Regeneration Economy and Growth,Corporate Property and Land,030691,Catering - Durham Dales Centre,Supplies and Services,342033,Computers and Communications,06-Jul-2022,000008332362416,WWW.NISBETS.COM,5964,Computer hardware,37.33,0.00,37.33
Regeneration Economy and Growth,Corporate Property and Land,030691,Catering - Durham Dales Centre,Supplies and Services,342033,Computers and Communications,06-Jul-2022,000008332362418,WWW.NISBETS.COM,5964,Computer hardware,22.74,0.00,22.74
Regeneration Economy and Growth,Corporate Property and Land,010525,Catering - Green Lane,Supplies and Services,384999,Miscellaneous Expenses,06-Jul-2022,000008332416936,G M PACKAGING UK LIMIT,5046,Other expenses,135.37,0.00,135.37
Regeneration Economy and Growth,Corporate Property and Land,011296,Catering - Dunes,Supplies and Services,384999,Miscellaneous Expenses,06-Jul-2022,000008332416938,G M PACKAGING UK LIMIT,5046,Other expenses,276.56,0.00,276.56
Regeneration Economy and Growth,Corporate Property and Land,021234,Catering - Locomotion,Supplies and Services,324117,Provisions E324,06-Jul-2022,000008332416946,BATLEYS PERTH,5300,Catering costs - provisions,-23.55,0.00,-23.55
Children and Young Peoples Services,Head of Childrens Social Care,085358,Orchard House Sacriston Solo Home,Supplies and Services,372009,Subscriptions E372,07-Jul-2022,000008327659516,NETFLIX.COM,4899,Subscriptions 372009,15.99,0.00,15.99
Children and Young Peoples Services,Head of Early Help Inclusion & Vulnerable Children.,085954,Walworth,Supplies and Services,332047,Printing Stationery and Gen Off Exps,07-Jul-2022,000008327659750,AMZNMktplace,5999,Stationery,17.95,2.99,14.96
Children and Young Peoples Services,Head of Early Help Inclusion & Vulnerable Children.,088109,Dean Bank and Tudhoe Family Centre,Supplies and Services,364301,Grants to Voluntary Organisations,07-Jul-2022,000008327659974,AMZNMktplace,5999,Hardship,35.98,6.00,29.98
Regeneration Economy and Growth,Business Durham CL0850,030689,Inward Investment and Aftercare,Supplies and Services,336005,Advertising E336,07-Jul-2022,000008332361860,LINKEDIN-714 7348446,7311,Advertising other than for staff,55.37,0.00,55.37
Children and Young Peoples Services,Head of Childrens Social Care,085501,Child Care Cases Legal Expenses,Supplies and Services,304403,Equipment and Materials,07-Jul-2022,000008332361886,GATESHEAD COUNCIL INT,9399,Other consumables,11.00,0.00,11.00
Children and Young Peoples Services,Head of Education and Skills,075034,Youth Futures Foundation,Supplies and Services,364301,Grants to Voluntary Organisations,07-Jul-2022,000008332361896,WWW.GONORTHEAST.CO.UK,4111,Hardship,5.30,0.00,5.30
Children and Young Peoples Services,Head of Education and Skills,075033,DurhamWorks 3,Supplies and Services,364301,Grants to Voluntary Organisations,07-Jul-2022,000008332361898,WWW.GONORTHEAST.CO.UK,4111,Hardship,5.30,0.00,5.30
Children and Young Peoples Services,Head of Education and Skills,075033,DurhamWorks 3,Supplies and Services,364301,Grants to Voluntary Organisations,07-Jul-2022,000008332361900,WWW.GONORTHEAST.CO.UK,4111,Hardship,20.00,0.00,20.00
Children and Young Peoples Services,Head of Childrens Social Care,085342,16 Hickstead Rise (previously 9 Cedar Ave),Supplies and Services,324117,Provisions E324,07-Jul-2022,000008332361922,TESCO STORES 2916,5411,Catering costs - provisions,124.63,0.00,124.63
Children and Young Peoples Services,Head of Education and Skills,078100,Curric and Professional Development 078100,Supplies and Services,342033,Computers and Communications,07-Jul-2022,000008332361924,STK Shutterstock,7333,Computer hardware,22.80,0.00,22.80
Neighbourhoods and Climate Change,Environmental Services,010367,C&G - South Grounds Maintenance,Supplies and Services,304403,Equipment and Materials,07-Jul-2022,000008332361954,MAXWELLS DIY,5231,Other consumables,226.20,37.70,188.50
Regeneration Economy and Growth,Economic Development Level C,030776,LINKCD Flexible Fund,Employees,040149,Recruitment Instruction and Training,07-Jul-2022,000008332361956,NCS CITB EXAM,8299,Training-all costs,22.50,0.00,22.50
Children and Young Peoples Services,Head of Childrens Social Care,085331,New Lea Childrens Home,Supplies and Services,324117,Provisions E324,07-Jul-2022,000008332361958,PPOINT_ DIPTON SUPERMA,5499,Catering costs - provisions,3.18,0.00,3.18
Regeneration Economy and Growth,Corporate Property and Land,021242,Catering - County Hall,Supplies and Services,304259,Equipment and Materials,07-Jul-2022,000008332361980,AMZN Digital 2Y8NU4K74,5735,Equipment-purchase and rental,0.99,0.00,0.99
Regeneration Economy and Growth,Corporate Property and Land,021242,Catering - County Hall,Supplies and Services,304403,Equipment and Materials,07-Jul-2022,000008332361982,AMZNMktplace,5999,Other consumables,73.80,12.30,61.50
Neighbourhoods and Climate Change,Environmental Services,010367,C&G - South Grounds Maintenance,Transport,215995,Running Costs of Vehicles,07-Jul-2022,000008332362004,HALFORDS ON LINE,5533,Vehicle running expenses,450.98,0.00,450.98
Adult and Health Services,Head of Adults,055302,Durham Pathways,Supplies and Services,304403,Equipment and Materials,07-Jul-2022,000008332362020,AMZNMktplace,5999,Other consumables,31.68,5.28,26.40
Adult and Health Services,Head of Adults,055302,Durham Pathways,Supplies and Services,304403,Equipment and Materials,07-Jul-2022,000008332362020 - 1,AMZNMktplace,5999,Other consumables,0.16,,0.16
Regeneration Economy and Growth,Culture Sport and Tourism,011277,Technical - Events Delivery,Supplies and Services,304259,Equipment and Materials,07-Jul-2022,000008332362024,AMZNMKTPLACE AMAZON.CO,5999,Equipment-purchase and rental,12.10,2.02,10.08
Children and Young Peoples Services,Head of Childrens Social Care,085364,Children Looked After Team 1,Supplies and Services,304259,Equipment and Materials,07-Jul-2022,000008332362054,DARLINGTON BC INTERNET,9399,Equipment-purchase and rental,11.00,0.00,11.00
Children and Young Peoples Services,Head of Early Help Inclusion & Vulnerable Children.,085955,Auckland,Supplies and Services,384302,Miscellaneous Expenses,07-Jul-2022,000008332362072,AMZNMKTPLACE AMAZON.CO,5999,Activity expenses,23.99,4.18,19.81
Children and Young Peoples Services,Head of Early Help Inclusion & Vulnerable Children.,085957,Secure Management,Supplies and Services,304405,Equipment and Materials,07-Jul-2022,000008332362074,AMZNMKTPLACE AMAZON.CO,5999,Medical supplies,4.99,0.83,4.16
Children and Young Peoples Services,Head of Early Help Inclusion & Vulnerable Children.,085955,Auckland,Supplies and Services,324117,Provisions E324,07-Jul-2022,000008332362076,TESCO STORES 6329,5411,Catering costs - provisions,80.93,0.00,80.93
Neighbourhoods and Climate Change,Environmental Services,031200,North Pennines Core,Supplies and Services,324117,Provisions E324,07-Jul-2022,000008332362088,SumUp The Hemmel Caf,5811,Catering costs - provisions,68.80,0.00,68.80
Neighbourhoods and Climate Change,Environmental Services,031200,North Pennines Core,Supplies and Services,348037,Subsistence E348,07-Jul-2022,000008332362090,ZTL Coffee and Kuriosi,5812,Subsistence,14.00,0.00,14.00
Neighbourhoods and Climate Change,Environmental Services,031200,North Pennines Core,Supplies and Services,352001,Conference Expenses,07-Jul-2022,000008332362092,THE TEESDALE HOTEL,7011,Conferencesseminars fees etc,69.05,0.00,69.05
Neighbourhoods and Climate Change,Environmental Services,031200,North Pennines Core,Supplies and Services,352001,Conference Expenses,07-Jul-2022,000008332362094,THE TEESDALE HOTEL,7011,Conferencesseminars fees etc,23.00,0.00,23.00
Resources BK0010,HR & Employee Services,066890,Payroll & Employee Services,Supplies and Services,372009,Subscriptions E372,07-Jul-2022,000008332362138,S0014387XINY UKVI,9399,Subscriptions 372009,200.00,0.00,200.00
Dedicated Schools Grant BG0015,DSG Schools Block,418507,Belmont Community School 004185 - Performing Arts,Supplies and Services,304403,Equipment and Materials,07-Jul-2022,000008332362142,AMZNMktplace,5999,Other consumables,10.99,1.83,9.16
Dedicated Schools Grant BG0015,DSG Schools Block,418507,Belmont Community School 004185 - Performing Arts,Supplies and Services,304403,Equipment and Materials,07-Jul-2022,000008332362144,AMZNMktplace,5999,Other consumables,15.96,2.66,13.30
Dedicated Schools Grant BG0015,DSG Schools Block,418507,Belmont Community School 004185 - Performing Arts,Supplies and Services,304403,Equipment and Materials,07-Jul-2022,000008332362144 - 1,AMZNMktplace,5999,Other consumables,4.96,,4.96
Dedicated Schools Grant BG0015,DSG Schools Block,418507,Belmont Community School 004185 - Performing Arts,Supplies and Services,304403,Equipment and Materials,07-Jul-2022,000008332362146,AMZNMktplace,5999,Other consumables,5.99,1.00,4.99
Children and Young Peoples Services,Head of Early Help Inclusion & Vulnerable Children.,088109,Dean Bank and Tudhoe Family Centre,Supplies and Services,384302,Miscellaneous Expenses,07-Jul-2022,000008332362150,AMZNMktplace,5999,Activity expenses,24.98,4.16,20.82
Children and Young Peoples Services,Head of Childrens Social Care,085364,Children Looked After Team 1,Supplies and Services,338045,Services,07-Jul-2022,000008332362152,HM PASSPORT OFFICE,9399,Legal expenses 338045,75.50,0.00,75.50
Children and Young Peoples Services,Head of Childrens Social Care,085367,Children Looked After Team 4,Supplies and Services,338045,Services,07-Jul-2022,000008332362154,HM PASSPORT OFFICE,9399,Legal expenses 338045,49.00,0.00,49.00
Neighbourhoods and Climate Change,Environmental Services,031202,North Pennines - Peatscapes,Transport,215995,Running Costs of Vehicles,07-Jul-2022,000008332362206,Weardale Motor Service,4111,Vehicle running expenses,88.00,0.00,88.00
Regeneration Economy and Growth,Culture Sport and Tourism,011263,Louisa Centre 011263,Supplies and Services,304403,Equipment and Materials,07-Jul-2022,000008332362212,TIMPSON LTD,5999,Other consumables,42.50,0.00,42.50
Children and Young Peoples Services,Head of Childrens Social Care,085331,New Lea Childrens Home,Supplies and Services,372009,Subscriptions E372,07-Jul-2022,000008332362214,Netflix.com,4899,Subscriptions 372009,15.99,0.00,15.99
Children and Young Peoples Services,Head of Childrens Social Care,085331,New Lea Childrens Home,Supplies and Services,324117,Provisions E324,07-Jul-2022,000008332362216,TESCO STORES 6329,5411,Catering costs - provisions,14.24,0.00,14.24
Resources BK0010,Digital Services,065335,School Services - Implementations,Supplies and Services,304639,Equipment and Materials,07-Jul-2022,000008332362224,WWW.ALIEXPRESS.COM,5964,Technicians-supplies,62.14,0.00,62.14
Resources BK0010,Procurement Sales & Business Services,065501,Business Support - Executive Support,Supplies and Services,304403,Equipment and Materials,07-Jul-2022,000008332362238,AMZNMktplace,5999,Other consumables,29.99,5.00,24.99
Children and Young Peoples Services,Head of Childrens Social Care,085347,Solo Home The Manse,Supplies and Services,348037,Subsistence E348,07-Jul-2022,000008332362256,43042140 COSTA COFFEE,5814,Subsistence,12.25,0.00,12.25
Children and Young Peoples Services,Head of Childrens Social Care,085347,Solo Home The Manse,Supplies and Services,324117,Provisions E324,07-Jul-2022,000008332362258,TESCO STORES 2916,5411,Catering costs - provisions,4.13,0.00,4.13
Children and Young Peoples Services,Head of Childrens Social Care,085347,Solo Home The Manse,Supplies and Services,324117,Provisions E324,07-Jul-2022,000008332362260,TESCO STORES 2916,5411,Catering costs - provisions,1.20,0.00,1.20
Neighbourhoods and Climate Change,Environmental Services,010367,C&G - South Grounds Maintenance,Supplies and Services,304999,Equipment and Materials,07-Jul-2022,000008332362264,BLACK & DECKER,5251,Misc equipment tools and materials,259.00,0.00,259.00
Neighbourhoods and Climate Change,Environmental Services,010301,C&G - North Grounds Maintenance,Supplies and Services,304999,Equipment and Materials,07-Jul-2022,000008332362268,GUSTHARTS,5072,Misc equipment tools and materials,328.27,0.00,328.27
Children and Young Peoples Services,Head of Childrens Social Care,085332,Middlestone Moor CU,Supplies and Services,324117,Provisions E324,07-Jul-2022,000008332362308,PPOINT_ WASHINGTON VIL,5411,Catering costs - provisions,7.18,0.00,7.18
Children and Young Peoples Services,Head of Childrens Social Care,085358,Orchard House Sacriston Solo Home,Supplies and Services,304403,Equipment and Materials,07-Jul-2022,000008332362326,AMZNMktplace,5999,Other consumables,28.93,4.82,24.11
Resources BK0010,Procurement Sales & Business Services,065501,Business Support - Executive Support,Supplies and Services,342053,Computers and Communications,07-Jul-2022,000008332362334,PAYPAL CHRISTOPHER,5045,Computer software,31.99,0.00,31.99
Resources BK0010,Procurement Sales & Business Services,065501,Business Support - Executive Support,Supplies and Services,304259,Equipment and Materials,07-Jul-2022,000008332362338,TCM abattery.co.uk,5732,Equipment-purchase and rental,25.98,0.00,25.98
Children and Young Peoples Services,Head of Childrens Social Care,085551,Short Break Services-Park Hse Sher,Supplies and Services,384999,Miscellaneous Expenses,07-Jul-2022,000008332362380,Amazon.co.uk 2Y1N877L4,5969,Other expenses,35.85,0.00,35.85
Children and Young Peoples Services,Head of Childrens Social Care,085551,Short Break Services-Park Hse Sher,Supplies and Services,324117,Provisions E324,07-Jul-2022,000008332362384,ICELAND FOODS,5411,Catering costs - provisions,-12.00,0.00,-12.00
Regeneration Economy and Growth,Economic Development Level C,030770,Durham Advance,Supplies and Services,348037,Subsistence E348,07-Jul-2022,000008332362404,CHESTER LE STREET,5814,Subsistence,1.95,0.00,1.95
Regeneration Economy and Growth,Corporate Property and Land,011296,Catering - Dunes,Supplies and Services,324117,Provisions E324,07-Jul-2022,000008332416940,JR HOLLAND FOODSERVICE,5499,Catering costs - provisions,97.21,0.00,97.21
Regeneration Economy and Growth,Culture Sport and Tourism,054235,Bishop Auckland Town Hall Cafe,Supplies and Services,324117,Provisions E324,07-Jul-2022,000008332416942,JR HOLLAND FOODSERVICE,5499,Catering costs - provisions,150.28,0.00,150.28
Regeneration Economy and Growth,Corporate Property and Land,021234,Catering - Locomotion,Supplies and Services,324117,Provisions E324,07-Jul-2022,000008332416944,JR HOLLAND FOODSERVICE,5499,Catering costs - provisions,54.15,0.00,54.15
Regeneration Economy and Growth,Business Durham CL0850,030689,Inward Investment and Aftercare,Supplies and Services,342222,Computers and Communications,07-Jul-2022,000008338680376,FASTHOSTS,4816,Comp hardware purch-network servers,6.34,0.00,6.34
Children and Young Peoples Services,Head of Childrens Social Care,085341,High Etherley Satelite Home,Supplies and Services,348037,Subsistence E348,07-Jul-2022,000008338680412,MCDONALD`S,5812,Subsistence,5.11,0.00,5.11
Regeneration Economy and Growth,Culture Sport and Tourism,030705,Visit County Durham 030705,Supplies and Services,304259,Equipment and Materials,07-Jul-2022,000008338680468,FASTHOSTS,4816,Equipment-purchase and rental,6.34,1.06,5.28
Children and Young Peoples Services,Head of Early Help Inclusion & Vulnerable Children.,088113,Seaham & Laurel Avenue Family Centre,Supplies and Services,324117,Provisions E324,07-Jul-2022,000008338680740,ALDI STORES,5411,Catering costs - provisions,59.97,0.00,59.97
Children and Young Peoples Services,Head of Childrens Social Care,085364,Children Looked After Team 1,Supplies and Services,304259,Equipment and Materials,07-Jul-2022,000008338680810,WWW.DURHAM.GOV.UK,9399,Equipment-purchase and rental,11.00,0.00,11.00
Children and Young Peoples Services,Head of Early Help Inclusion & Vulnerable Children.,085956,Lumley,Supplies and Services,384302,Miscellaneous Expenses,07-Jul-2022,000008338680812,AMZNMKTPLACE AMAZON.CO,5999,Activity expenses,22.55,0.00,22.55
Children and Young Peoples Services,Head of Early Help Inclusion & Vulnerable Children.,085955,Auckland,Supplies and Services,308011,Furniture,07-Jul-2022,000008338680814,AMZNMKTPLACE AMAZON.CO,5999,Furniture repair and replacement,79.95,13.33,66.62
Children and Young Peoples Services,Head of Childrens Social Care,085331,New Lea Childrens Home,Supplies and Services,308011,Furniture,07-Jul-2022,000008338681012,The Range,5719,Furniture repair and replacement,5.00,0.00,5.00
Children and Young Peoples Services,Head of Early Help Inclusion & Vulnerable Children.,088103,Stanley & Moorside Family Centre,Supplies and Services,304259,Equipment and Materials,07-Jul-2022,000008338681032,AMZNMKTPLACE AMAZON.CO,5999,Equipment-purchase and rental,15.99,2.67,13.32
Resources BK0010,Procurement Sales & Business Services,065501,Business Support - Executive Support,Supplies and Services,304403,Equipment and Materials,07-Jul-2022,000008338681086,AMZNMKTPLACE AMAZON.CO,5999,Other consumables,34.87,5.81,29.06
Children and Young Peoples Services,Head of Childrens Social Care,085347,Solo Home The Manse,Transport,235057,Public Transport,07-Jul-2022,000008338681110,HARTLEPOOL BOROUGH COU,7523,Staff travelling,1.50,0.00,1.50
Neighbourhoods and Climate Change,Environmental Services,010301,C&G - North Grounds Maintenance,Supplies and Services,304221,Equipment and Materials,07-Jul-2022,000008338681134,TOOLSTATION LTD,5211,Direct materials,29.98,0.00,29.98
Regeneration Economy and Growth,Economic Development Level C,030544,Rural Employability - Client Engagement,Supplies and Services,304221,Equipment and Materials,07-Jul-2022,000008338681138,B & Q 1120,5200,Direct materials,310.35,0.00,310.35
Children and Young Peoples Services,Head of Education and Skills,071802,Louisa Cent Nursery,Supplies and Services,324117,Provisions E324,07-Jul-2022,000008338681152,ALDI 11 774,5411,Catering costs - provisions,17.92,0.00,17.92
Regeneration Economy and Growth,Economic Development Level C,030554,International Relations 030554,Transport,235057,Public Transport,07-Jul-2022,000008338681180,ACT TRADING LTD,7523,Staff travelling,3.50,0.00,3.50
Resources BK0010,Procurement Sales & Business Services,065501,Business Support - Executive Support,Supplies and Services,338048,Services,07-Jul-2022,000008338681242,HMCTS GRIMSBY&SCUNTHOR,9222,Court costs 338048,81.00,0.00,81.00
Resources BK0010,Procurement Sales & Business Services,065501,Business Support - Executive Support,Supplies and Services,304403,Equipment and Materials,07-Jul-2022,000008338681244,AMZNMKTPLACE AMAZON.CO,5999,Other consumables,19.99,3.33,16.66
Regeneration Economy and Growth,Corporate Property and Land,010525,Catering - Green Lane,Supplies and Services,324117,Provisions E324,07-Jul-2022,000008338878056,BATLEYS PERTH,5300,Catering costs - provisions,170.16,28.36,141.80
Regeneration Economy and Growth,Corporate Property and Land,010525,Catering - Green Lane,Supplies and Services,324117,Provisions E324,07-Jul-2022,000008338878056 - 1,BATLEYS PERTH,5300,Catering costs - provisions,59.35,,59.35
Regeneration Economy and Growth,Corporate Property and Land,011296,Catering - Dunes,Supplies and Services,324117,Provisions E324,07-Jul-2022,000008338878068,BATLEYS PERTH,5300,Catering costs - provisions,120.42,20.07,100.35
Regeneration Economy and Growth,Corporate Property and Land,011296,Catering - Dunes,Supplies and Services,324117,Provisions E324,07-Jul-2022,000008338878068 - 1,BATLEYS PERTH,5300,Catering costs - provisions,66.41,,66.41
Neighbourhoods and Climate Change,Environmental Services,011060,C&G - Hardwick Park Catering,Supplies and Services,324117,Provisions E324,07-Jul-2022,000008338878112,BATLEYS PERTH,5300,Catering costs - provisions,474.96,79.16,395.80
Neighbourhoods and Climate Change,Environmental Services,011060,C&G - Hardwick Park Catering,Supplies and Services,324117,Provisions E324,07-Jul-2022,000008338878112 - 1,BATLEYS PERTH,5300,Catering costs - provisions,299.98,,299.98
Regeneration Economy and Growth,Culture Sport and Tourism,054812,Gala Theatre - Catering etc,Supplies and Services,384999,Miscellaneous Expenses,07-Jul-2022,000008338878146,G M PACKAGING UK LIMIT,5046,Other expenses,213.97,0.00,213.97
Regeneration Economy and Growth,Corporate Property and Land,021242,Catering - County Hall,Supplies and Services,324117,Provisions E324,07-Jul-2022,000008338878154,BATLEYS PERTH,5300,Catering costs - provisions,260.34,43.39,216.95
Regeneration Economy and Growth,Corporate Property and Land,021242,Catering - County Hall,Supplies and Services,324117,Provisions E324,07-Jul-2022,000008338878154 - 1,BATLEYS PERTH,5300,Catering costs - provisions,229.05,,229.05
Regeneration Economy and Growth,Business Durham CL0850,030689,Inward Investment and Aftercare,Supplies and Services,336005,Advertising E336,08-Jul-2022,000008332361862,LINKEDIN-714 7348446,7311,Advertising other than for staff,1.52,0.00,1.52
Dedicated Schools Grant BG0015,DSG Schools Block,418507,Belmont Community School 004185 - Performing Arts,Supplies and Services,304403,Equipment and Materials,08-Jul-2022,000008332362148,AMZNMktplace,5999,Other consumables,12.99,2.17,10.82
Regeneration Economy and Growth,Business Durham CL0850,030689,Inward Investment and Aftercare,Supplies and Services,304999,Equipment and Materials,08-Jul-2022,000008338680378,TSOHOST,5968,Misc equipment tools and materials,9.54,0.00,9.54
Children and Young Peoples Services,Head of Childrens Social Care,085611,Families First Stanley,Supplies and Services,364340,Grants to Voluntary Organisations,08-Jul-2022,000008338680388,WWW.GONORTHEAST.CO.UK,4111,Contact expenses,34.00,0.00,34.00
Children and Young Peoples Services,Head of Childrens Social Care,085611,Families First Stanley,Supplies and Services,364340,Grants to Voluntary Organisations,08-Jul-2022,000008338680390,WWW.GONORTHEAST.CO.UK,4111,Contact expenses,34.00,0.00,34.00
Children and Young Peoples Services,Head of Childrens Social Care,085611,Families First Stanley,Supplies and Services,364340,Grants to Voluntary Organisations,08-Jul-2022,000008338680392,WWW.GONORTHEAST.CO.UK,4111,Contact expenses,34.00,0.00,34.00
Children and Young Peoples Services,Head of Education and Skills,071801,Selby Cottage Childcare Centre,Supplies and Services,304999,Equipment and Materials,08-Jul-2022,000008338680394,Amazon Prime 2Y7FR5UH4,5968,Misc equipment tools and materials,7.99,0.00,7.99
Children and Young Peoples Services,Head of Childrens Social Care,085501,Child Care Cases Legal Expenses,Supplies and Services,304403,Equipment and Materials,08-Jul-2022,000008338680416,FCDO,9399,Other consumables,65.00,0.00,65.00
Children and Young Peoples Services,Head of Childrens Social Care,085501,Child Care Cases Legal Expenses,Supplies and Services,304403,Equipment and Materials,08-Jul-2022,000008338680418,DARLINGTON BC INTERNET,9399,Other consumables,11.00,0.00,11.00
Children and Young Peoples Services,Head of Childrens Social Care,085501,Child Care Cases Legal Expenses,Supplies and Services,304403,Equipment and Materials,08-Jul-2022,000008338680420,DARLINGTON BC INTERNET,9399,Other consumables,11.00,0.00,11.00
Children and Young Peoples Services,Head of Education and Skills,075035,DurhamDirections Re-engagement,Supplies and Services,364301,Grants to Voluntary Organisations,08-Jul-2022,000008338680432,WWW.GONORTHEAST.CO.UK,4111,Hardship,20.00,0.00,20.00
Children and Young Peoples Services,Head of Education and Skills,075035,DurhamDirections Re-engagement,Supplies and Services,364301,Grants to Voluntary Organisations,08-Jul-2022,000008338680434,WWW.GONORTHEAST.CO.UK,4111,Hardship,20.00,0.00,20.00
Children and Young Peoples Services,Head of Education and Skills,075035,DurhamDirections Re-engagement,Supplies and Services,364301,Grants to Voluntary Organisations,08-Jul-2022,000008338680436,WWW.GONORTHEAST.CO.UK,4111,Hardship,20.00,0.00,20.00
Children and Young Peoples Services,Head of Education and Skills,075035,DurhamDirections Re-engagement,Supplies and Services,364301,Grants to Voluntary Organisations,08-Jul-2022,000008338680438,MATALAN.CO.UK,5691,Hardship,33.95,0.00,33.95
Children and Young Peoples Services,Head of Education and Skills,075035,DurhamDirections Re-engagement,Supplies and Services,364301,Grants to Voluntary Organisations,08-Jul-2022,000008338680440,WWW.LABEEBY.CO.UK,5691,Hardship,46.49,7.75,38.74
Children and Young Peoples Services,Head of Education and Skills,075035,DurhamDirections Re-engagement,Supplies and Services,364301,Grants to Voluntary Organisations,08-Jul-2022,000008338680442,NEXT DIRECTORY,5651,Hardship,67.00,0.00,67.00
Children and Young Peoples Services,Head of Education and Skills,075033,DurhamWorks 3,Supplies and Services,364301,Grants to Voluntary Organisations,08-Jul-2022,000008338680444,DVLA DRIVER ONLINE,9399,Hardship,34.00,0.00,34.00
Regeneration Economy and Growth,Culture Sport and Tourism,011265,Empire Theatre (Operations),Supplies and Services,304252,Equipment and Materials,08-Jul-2022,000008338680458,AMZNMKTPLACE AMAZON.CO,5999,Equipment-repairsserviceinsurance,20.52,3.42,17.10
Regeneration Economy and Growth,Culture Sport and Tourism,011265,Empire Theatre (Operations),Supplies and Services,304252,Equipment and Materials,08-Jul-2022,000008338680458 - 1,AMZNMKTPLACE AMAZON.CO,5999,Equipment-repairsserviceinsurance,0.04,,0.04
Regeneration Economy and Growth,Culture Sport and Tourism,011277,Technical - Events Delivery,Supplies and Services,304259,Equipment and Materials,08-Jul-2022,000008338680460,SP FACTORY2U.CO.UK,5734,Equipment-purchase and rental,118.80,0.00,118.80
Regeneration Economy and Growth,Culture Sport and Tourism,054240,Crook Library 054240,Supplies and Services,304252,Equipment and Materials,08-Jul-2022,000008338680462,BAKER ROSS,5970,Equipment-repairsserviceinsurance,39.45,6.58,32.87
Regeneration Economy and Growth,Culture Sport and Tourism,011265,Empire Theatre (Operations),Supplies and Services,304252,Equipment and Materials,08-Jul-2022,000008338680464,AMZNMKTPLACE AMAZON.CO,5999,Equipment-repairsserviceinsurance,10.90,1.82,9.08
Regeneration Economy and Growth,Culture Sport and Tourism,030712,VCD - Project Delivery,Supplies and Services,384199,Miscellaneous Expenses,08-Jul-2022,000008338680470,PAYPAL WEBALON,5817,Other hired and contracted services,6.56,0.00,6.56
Children and Young Peoples Services,Head of Childrens Social Care,085342,16 Hickstead Rise (previously 9 Cedar Ave),Supplies and Services,304999,Equipment and Materials,08-Jul-2022,000008338680472,HOME BARGAINS,5251,Misc equipment tools and materials,2.64,0.00,2.64
Children and Young Peoples Services,Head of Childrens Social Care,085342,16 Hickstead Rise (previously 9 Cedar Ave),Supplies and Services,324117,Provisions E324,08-Jul-2022,000008338680474,TESCO STORES 2916,5411,Catering costs - provisions,49.84,0.00,49.84
Children and Young Peoples Services,Head of Childrens Social Care,085342,16 Hickstead Rise (previously 9 Cedar Ave),Supplies and Services,348037,Subsistence E348,08-Jul-2022,000008338680476,MCDONALDS,5814,Subsistence,5.95,0.00,5.95
Children and Young Peoples Services,Head of Childrens Social Care,085332,Middlestone Moor CU,Supplies and Services,324117,Provisions E324,08-Jul-2022,000008338680478,TESCO STORES 2371,5411,Catering costs - provisions,145.54,0.00,145.54
Regeneration Economy and Growth,Planning & Housing,031634,LOCAL LETTINGS AGENCY,Premises,120037,Energy Costs,08-Jul-2022,000008338680520,EDF ENERGY-IVR,4900,Other fuels,26.08,0.00,26.08
Regeneration Economy and Growth,Planning & Housing,031623,Rough Sleeping,Supplies and Services,324117,Provisions E324,08-Jul-2022,000008338680522,POUNDLAND,5310,Catering costs - provisions,12.00,0.00,12.00
Neighbourhoods and Climate Change,Environmental Services,010367,C&G - South Grounds Maintenance,Supplies and Services,304221,Equipment and Materials,08-Jul-2022,000008338680538,Toolstation Ltd,5211,Direct materials,6.80,1.13,5.67
Neighbourhoods and Climate Change,Environmental Services,010367,C&G - South Grounds Maintenance,Supplies and Services,304221,Equipment and Materials,08-Jul-2022,000008338680540,WWW.SCREWFIX.COM,5211,Direct materials,29.98,5.00,24.98
Children and Young Peoples Services,Head of Childrens Social Care,085380,Service Manager CLA Fostering,Supplies and Services,324117,Provisions E324,08-Jul-2022,000008338680544,Bernies Bakery,5462,Catering costs - provisions,300.00,0.00,300.00
Children and Young Peoples Services,Head of Childrens Social Care,085380,Service Manager CLA Fostering,Supplies and Services,304403,Equipment and Materials,08-Jul-2022,000008338680546,AMZNMktplace,5999,Other consumables,48.77,0.00,48.77
Children and Young Peoples Services,Head of Childrens Social Care,085380,Service Manager CLA Fostering,Supplies and Services,328041,Clothing uniforms and laundry E328,08-Jul-2022,000008338680548,ARGOS LTD,5310,Clothing uniforms and laundry,-35.00,0.00,-35.00
Children and Young Peoples Services,Head of Childrens Social Care,085380,Service Manager CLA Fostering,Supplies and Services,328041,Clothing uniforms and laundry E328,08-Jul-2022,000008338680550,ARGOS LTD,5310,Clothing uniforms and laundry,-70.00,0.00,-70.00
Regeneration Economy and Growth,Corporate Property and Land,021242,Catering - County Hall,Supplies and Services,304403,Equipment and Materials,08-Jul-2022,000008338680560,AMZNMKTPLACE AMAZON.CO,5999,Other consumables,374.94,62.49,312.45
Regeneration Economy and Growth,Corporate Property and Land,021242,Catering - County Hall,Supplies and Services,304403,Equipment and Materials,08-Jul-2022,000008338680560 - 1,AMZNMKTPLACE AMAZON.CO,5999,Other consumables,0.06,,0.06
Regeneration Economy and Growth,Corporate Property and Land,021242,Catering - County Hall,Supplies and Services,324117,Provisions E324,08-Jul-2022,000008338680562,TESCO STORES 5970,5411,Catering costs - provisions,13.00,0.00,13.00
Regeneration Economy and Growth,Corporate Property and Land,021242,Catering - County Hall,Supplies and Services,324117,Provisions E324,08-Jul-2022,000008338680564,SAINSBURYS LOCAL,5411,Catering costs - provisions,4.00,0.00,4.00
Children and Young Peoples Services,Head of Childrens Social Care,085511,Emergency Duty Team,Supplies and Services,352001,Conference Expenses,08-Jul-2022,000008338680566,TRAVELODGE,3615,Conferencesseminars fees etc,240.19,0.00,240.19
Regeneration Economy and Growth,Economic Development Level C,030772,CLLD South,Supplies and Services,304999,Equipment and Materials,08-Jul-2022,000008338680598,CHARLES DICKENS- SPENN,5251,Misc equipment tools and materials,31.60,0.00,31.60
Regeneration Economy and Growth,Economic Development Level C,030772,CLLD South,Supplies and Services,304999,Equipment and Materials,08-Jul-2022,000008338680600,CHARLES DICKENS- SPENN,5251,Misc equipment tools and materials,31.60,0.00,31.60
Children and Young Peoples Services,Head of Early Help Inclusion & Vulnerable Children.,074000,National Supporting Families Programme,Transfer Payments,525033,Other,08-Jul-2022,000008338680652,FRANKS THE FLOORING ST,5713,Grants to individuals,170.00,0.00,170.00
Children and Young Peoples Services,Head of Childrens Social Care,085342,16 Hickstead Rise (previously 9 Cedar Ave),Supplies and Services,342222,Computers and Communications,08-Jul-2022,000008338680660,Lebara Mobile Limited,4816,Comp hardware purch-network servers,5.00,0.00,5.00
Neighbourhoods and Climate Change,Environmental Services,010551,Fleet - Chilton Fleet,Transport,215013,Running Costs of Vehicles,08-Jul-2022,000008338680676,DVLA VEHICLE TAX,9311,Vehicle Excise Duty (VED),292.50,0.00,292.50
Neighbourhoods and Climate Change,Environmental Services,010900,Fleet - Meadowfield Fleet,Transport,215013,Running Costs of Vehicles,08-Jul-2022,000008338680678,DVLA VEHICLE TAX,9311,Vehicle Excise Duty (VED),167.50,0.00,167.50
Neighbourhoods and Climate Change,Environmental Services,010561,Fleet - Morrison Busty Fleet,Transport,215013,Running Costs of Vehicles,08-Jul-2022,000008338680680,DVLA VEHICLE TAX,9311,Vehicle Excise Duty (VED),167.50,0.00,167.50
Neighbourhoods and Climate Change,Environmental Services,010864,Fleet - Hackworth Road Fleet,Transport,215013,Running Costs of Vehicles,08-Jul-2022,000008338680682,DVLA VEHICLE TAX,9311,Vehicle Excise Duty (VED),167.50,0.00,167.50
Neighbourhoods and Climate Change,Environmental Services,010900,Fleet - Meadowfield Fleet,Transport,215013,Running Costs of Vehicles,08-Jul-2022,000008338680684,DVLA VEHICLE TAX,9311,Vehicle Excise Duty (VED),167.50,0.00,167.50
Neighbourhoods and Climate Change,Environmental Services,010561,Fleet - Morrison Busty Fleet,Transport,215013,Running Costs of Vehicles,08-Jul-2022,000008338680686,DVLA VEHICLE TAX,9311,Vehicle Excise Duty (VED),167.50,0.00,167.50
Neighbourhoods and Climate Change,Environmental Services,010864,Fleet - Hackworth Road Fleet,Transport,215013,Running Costs of Vehicles,08-Jul-2022,000008338680688,DVLA VEHICLE TAX,9311,Vehicle Excise Duty (VED),167.50,0.00,167.50
Neighbourhoods and Climate Change,Environmental Services,010900,Fleet - Meadowfield Fleet,Transport,215013,Running Costs of Vehicles,08-Jul-2022,000008338680690,DVLA VEHICLE TAX,9311,Vehicle Excise Duty (VED),167.50,0.00,167.50
Neighbourhoods and Climate Change,Environmental Services,010900,Fleet - Meadowfield Fleet,Transport,215013,Running Costs of Vehicles,08-Jul-2022,000008338680692,DVLA VEHICLE TAX,9311,Vehicle Excise Duty (VED),167.50,0.00,167.50
Regeneration Economy and Growth,Culture Sport and Tourism,011277,Technical - Events Delivery,Supplies and Services,304259,Equipment and Materials,08-Jul-2022,000008338680732,AMZNMKTPLACE AMAZON.CO,5999,Equipment-purchase and rental,92.20,15.37,76.83
Children and Young Peoples Services,Head of Childrens Social Care,085341,High Etherley Satelite Home,Supplies and Services,324117,Provisions E324,08-Jul-2022,000008338680756,TESCO STORES 6329,5411,Catering costs - provisions,7.84,0.00,7.84
Children and Young Peoples Services,Head of Childrens Social Care,085341,High Etherley Satelite Home,Supplies and Services,304999,Equipment and Materials,08-Jul-2022,000008338680758,SPECSAVERS 0035700BISA,8043,Misc equipment tools and materials,20.00,0.00,20.00
Children and Young Peoples Services,Head of Childrens Social Care,085341,High Etherley Satelite Home,Supplies and Services,348037,Subsistence E348,08-Jul-2022,000008338680760,MCDONALD`S,5812,Subsistence,18.37,0.00,18.37
Regeneration Economy and Growth,Economic Development Level C,030770,Durham Advance,Transport,235057,Public Transport,08-Jul-2022,000008338680778,WWW.GONORTHEAST.CO.UK,4111,Staff travelling,20.00,0.00,20.00
Neighbourhoods and Climate Change,Environmental Services,010301,C&G - North Grounds Maintenance,Supplies and Services,304999,Equipment and Materials,08-Jul-2022,000008338680798,GRALANDS WOODWORK SUPP,5251,Misc equipment tools and materials,8.00,0.00,8.00
Children and Young Peoples Services,Head of Early Help Inclusion & Vulnerable Children.,085965,Barnard,Supplies and Services,324117,Provisions E324,08-Jul-2022,000008338680816,TESCO STORES 6329,5411,Catering costs - provisions,74.49,0.00,74.49
Neighbourhoods and Climate Change,Environmental Services,031200,North Pennines Core,Supplies and Services,348037,Subsistence E348,08-Jul-2022,000008338680834,BRIOCHE DOREE,5812,Subsistence,7.02,0.00,7.02
Neighbourhoods and Climate Change,Environmental Services,031200,North Pennines Core,Transport,235057,Public Transport,08-Jul-2022,000008338680836,SNCF,4112,Staff travelling,1.63,0.00,1.63
Neighbourhoods and Climate Change,Environmental Services,031238,North Pennines - Tees Swale,Employees,040149,Recruitment Instruction and Training,08-Jul-2022,000008338680854,AHI.ORG.UK,8699,Training-all costs,445.50,0.00,445.50
Neighbourhoods and Climate Change,Environmental Services,031238,North Pennines - Tees Swale,Supplies and Services,340001,Postages E340,08-Jul-2022,000008338680856,PARCELFORCE WL,4215,Postages,14.30,0.00,14.30
Children and Young Peoples Services,Head of Early Help Inclusion & Vulnerable Children.,071449,Ferryhill One Point Hub,Supplies and Services,304259,Equipment and Materials,08-Jul-2022,000008338680876,ASDA GEORGE COM LEEDS,5411,Equipment-purchase and rental,-5.95,0.00,-5.95
Dedicated Schools Grant BG0015,DSG Schools Block,419202,Durham Fed 4192 - Creative,Supplies and Services,304403,Equipment and Materials,08-Jul-2022,000008338680888,AMZNMKTPLACE AMAZON.CO,5999,Other consumables,23.98,4.00,19.98
Dedicated Schools Grant BG0015,DSG Schools Block,418507,Belmont Community School 004185 - Performing Arts,Supplies and Services,304403,Equipment and Materials,08-Jul-2022,000008338680922,AMZNMktplace,5999,Other consumables,5.49,0.92,4.57
Regeneration Economy and Growth,Economic Development Level C,030554,International Relations 030554,Transport,235057,Public Transport,08-Jul-2022,000008338680926,PRINCE BISHOP SHOPPING,7523,Staff travelling,6.20,0.00,6.20
Children and Young Peoples Services,Head of Childrens Social Care,085365,Children Looked After Team 2,Supplies and Services,338045,Services,08-Jul-2022,000008338680930,GEN REGISTER OFFICE,9399,Legal expenses 338045,22.00,0.00,22.00
Children and Young Peoples Services,Head of Early Help Inclusion & Vulnerable Children.,088109,Dean Bank and Tudhoe Family Centre,Supplies and Services,384302,Miscellaneous Expenses,08-Jul-2022,000008338680932,ROF59,7996,Activity expenses,50.00,0.00,50.00
Neighbourhoods and Climate Change,Environmental Services,010367,C&G - South Grounds Maintenance,Supplies and Services,304221,Equipment and Materials,08-Jul-2022,000008338680984,WWW.SCREWFIX.COM,5211,Direct materials,25.98,0.00,25.98
Children and Young Peoples Services,Head of Childrens Social Care,085347,Solo Home The Manse,Supplies and Services,352001,Conference Expenses,08-Jul-2022,000008338680986,NORTHUMBRIA CALVERT TR,7011,Conferencesseminars fees etc,500.00,0.00,500.00
Children and Young Peoples Services,Head of Childrens Social Care,085363,Childrens Permanence Team,Supplies and Services,338045,Services,08-Jul-2022,000008338681034,HM PASSPORT OFFICE,9399,Legal expenses 338045,49.00,0.00,49.00
Children and Young Peoples Services,Head of Childrens Social Care,085363,Childrens Permanence Team,Supplies and Services,338045,Services,08-Jul-2022,000008338681036,MIDDLESBROUGH COUNCIL,9399,Legal expenses 338045,22.00,0.00,22.00
Children and Young Peoples Services,Head of Childrens Social Care,085363,Childrens Permanence Team,Supplies and Services,338045,Services,08-Jul-2022,000008338681038,SUNDERLAND CC,9399,Legal expenses 338045,22.00,0.00,22.00
Resources BK0010,Digital Services,065335,School Services - Implementations,Supplies and Services,304639,Equipment and Materials,08-Jul-2022,000008338681044,SP IFIXIT STORE UK,5732,Technicians-supplies,42.81,0.00,42.81
Resources BK0010,Digital Services,065335,School Services - Implementations,Supplies and Services,304639,Equipment and Materials,08-Jul-2022,000008338681046,REPLACEBASE,5732,Technicians-supplies,149.00,0.00,149.00
Resources BK0010,Digital Services,065335,School Services - Implementations,Supplies and Services,304639,Equipment and Materials,08-Jul-2022,000008338681048,REPLACEBASE,5732,Technicians-supplies,7.42,0.00,7.42
Resources BK0010,Digital Services,065335,School Services - Implementations,Supplies and Services,304639,Equipment and Materials,08-Jul-2022,000008338681050,WWW.SCREWFIX.COM,5211,Technicians-supplies,34.99,0.00,34.99
Neighbourhoods and Climate Change,Environmental Services,010301,C&G - North Grounds Maintenance,Supplies and Services,304259,Equipment and Materials,08-Jul-2022,000008338681136,MACHINE MART LTD,5722,Equipment-purchase and rental,394.80,0.00,394.80
Children and Young Peoples Services,Head of Education and Skills,071802,Louisa Cent Nursery,Supplies and Services,324117,Provisions E324,08-Jul-2022,000008338681154,ASDA GROCERIES ONLINE,5411,Catering costs - provisions,210.17,0.00,210.17
Children and Young Peoples Services,Head of Education and Skills,071802,Louisa Cent Nursery,Supplies and Services,324117,Provisions E324,08-Jul-2022,000008338681156,ASDA SUPERSTORE,5411,Catering costs - provisions,13.00,0.00,13.00
Children and Young Peoples Services,Head of Childrens Social Care,085332,Middlestone Moor CU,Supplies and Services,324117,Provisions E324,08-Jul-2022,000008338681188,PPOINT_ WASHINGTON VIL,5411,Catering costs - provisions,5.50,0.00,5.50
Children and Young Peoples Services,Head of Childrens Social Care,085332,Middlestone Moor CU,Supplies and Services,348037,Subsistence E348,08-Jul-2022,000008338681190,MCDONALDS,5814,Subsistence,7.61,0.00,7.61
Children and Young Peoples Services,Head of Childrens Social Care,085358,Orchard House Sacriston Solo Home,Supplies and Services,304403,Equipment and Materials,08-Jul-2022,000008338681214,AMZNMktplace,5999,Other consumables,10.58,1.76,8.82
Children and Young Peoples Services,Head of Childrens Social Care,085331,New Lea Childrens Home,Supplies and Services,324117,Provisions E324,08-Jul-2022,000008338681240,ASDA GEORGE COM LEEDS,5411,Catering costs - provisions,174.95,0.00,174.95
Resources BK0010,Procurement Sales & Business Services,065501,Business Support - Executive Support,Transport,215995,Running Costs of Vehicles,08-Jul-2022,000008338681246,VANROOFRACK.CO.UK,5533,Vehicle running expenses,129.99,0.00,129.99
Resources BK0010,Procurement Sales & Business Services,065501,Business Support - Executive Support,Supplies and Services,344033,Telephones,08-Jul-2022,000008338681248,ZOOM.US 888-799-9666,4814,Telephones general-all costs,119.90,0.00,119.90
Resources BK0010,Procurement Sales & Business Services,065501,Business Support - Executive Support,Supplies and Services,344033,Telephones,08-Jul-2022,000008338681250,ZOOM.US 888-799-9666,4814,Telephones general-all costs,119.90,0.00,119.90
Resources BK0010,Procurement Sales & Business Services,065501,Business Support - Executive Support,Supplies and Services,304221,Equipment and Materials,08-Jul-2022,000008338681252,WWW.SCREWFIX.COM,5211,Direct materials,323.98,0.00,323.98
Resources BK0010,Procurement Sales & Business Services,065500,Business Support - Management,Supplies and Services,304259,Equipment and Materials,08-Jul-2022,000008338681262,APPLE.COM/BILL,5735,Equipment-purchase and rental,0.79,0.00,0.79
Resources BK0010,Procurement Sales & Business Services,065500,Business Support - Management,Supplies and Services,304221,Equipment and Materials,08-Jul-2022,000008338681264,SCYTHE CYMRU,5261,Direct materials,79.00,0.00,79.00
Resources BK0010,Procurement Sales & Business Services,065500,Business Support - Management,Supplies and Services,384999,Miscellaneous Expenses,08-Jul-2022,000008338681266,BAKER ROSS,5970,Other expenses,325.05,0.00,325.05
Children and Young Peoples Services,Head of Childrens Social Care,085551,Short Break Services-Park Hse Sher,Supplies and Services,348037,Subsistence E348,08-Jul-2022,000008338681310,Bells Fish and Chips,5814,Subsistence,38.50,0.00,38.50
Regeneration Economy and Growth,Corporate Property and Land,010525,Catering - Green Lane,Supplies and Services,324117,Provisions E324,08-Jul-2022,000008338878060,FREEMAN CATERING BUTCH,5422,Catering costs - provisions,59.07,0.00,59.07
Regeneration Economy and Growth,Corporate Property and Land,010525,Catering - Green Lane,Supplies and Services,324117,Provisions E324,08-Jul-2022,000008338878062,HOPWELLS LTD,5811,Catering costs - provisions,107.72,0.00,107.72
Regeneration Economy and Growth,Corporate Property and Land,011275,Catering -Durham Leadership Centre,Supplies and Services,324117,Provisions E324,08-Jul-2022,000008338878064,HOPWELLS LTD,5811,Catering costs - provisions,109.08,0.00,109.08
Regeneration Economy and Growth,Corporate Property and Land,011275,Catering -Durham Leadership Centre,Supplies and Services,324117,Provisions E324,08-Jul-2022,000008338878066,HOPWELLS LTD,5811,Catering costs - provisions,-11.03,0.00,-11.03
Regeneration Economy and Growth,Corporate Property and Land,011296,Catering - Dunes,Supplies and Services,324117,Provisions E324,08-Jul-2022,000008338878070,HOPWELLS LTD,5811,Catering costs - provisions,143.90,0.00,143.90
Regeneration Economy and Growth,Corporate Property and Land,011296,Catering - Dunes,Supplies and Services,324117,Provisions E324,08-Jul-2022,000008338878074,JR HOLLAND FOODSERVICE,5499,Catering costs - provisions,58.66,0.00,58.66
Regeneration Economy and Growth,Corporate Property and Land,011296,Catering - Dunes,Supplies and Services,324117,Provisions E324,08-Jul-2022,000008338878076,JR HOLLAND FOODSERVICE,5499,Catering costs - provisions,-3.02,0.00,-3.02
Regeneration Economy and Growth,Corporate Property and Land,030691,Catering - Durham Dales Centre,Supplies and Services,324117,Provisions E324,08-Jul-2022,000008338878080,FREEMAN CATERING BUTCH,5422,Catering costs - provisions,115.47,0.00,115.47
Regeneration Economy and Growth,Corporate Property and Land,030691,Catering - Durham Dales Centre,Supplies and Services,324117,Provisions E324,08-Jul-2022,000008338878082,HOPWELLS LTD,5811,Catering costs - provisions,122.62,0.00,122.62
Regeneration Economy and Growth,Corporate Property and Land,030691,Catering - Durham Dales Centre,Supplies and Services,324117,Provisions E324,08-Jul-2022,000008338878086,HOPWELLS LTD,5811,Catering costs - provisions,116.29,0.00,116.29
Regeneration Economy and Growth,Corporate Property and Land,030691,Catering - Durham Dales Centre,Supplies and Services,324117,Provisions E324,08-Jul-2022,000008338878088,JR HOLLAND FOODSERVICE,5499,Catering costs - provisions,110.53,0.00,110.53
Regeneration Economy and Growth,Corporate Property and Land,030691,Catering - Durham Dales Centre,Supplies and Services,324117,Provisions E324,08-Jul-2022,000008338878092,HOPWELLS LTD,5811,Catering costs - provisions,-18.86,0.00,-18.86
Regeneration Economy and Growth,Corporate Property and Land,030691,Catering - Durham Dales Centre,Supplies and Services,324117,Provisions E324,08-Jul-2022,000008338878094,HOPWELLS LTD,5811,Catering costs - provisions,-18.86,0.00,-18.86
Regeneration Economy and Growth,Culture Sport and Tourism,054235,Bishop Auckland Town Hall Cafe,Supplies and Services,324117,Provisions E324,08-Jul-2022,000008338878098,HOPWELLS LTD,5811,Catering costs - provisions,366.87,0.00,366.87
Adult and Health Services,Head of Adults,055643,Hawthorn House LD Respite Unit,Supplies and Services,324117,Provisions E324,08-Jul-2022,000008338878102,FREEMAN CATERING BUTCH,5422,Catering costs - provisions,32.94,0.00,32.94
Adult and Health Services,Head of Adults,055643,Hawthorn House LD Respite Unit,Supplies and Services,324117,Provisions E324,08-Jul-2022,000008338878106,JR HOLLAND FOODSERVICE,5499,Catering costs - provisions,24.84,0.00,24.84
Adult and Health Services,Head of Adults,055643,Hawthorn House LD Respite Unit,Supplies and Services,324117,Provisions E324,08-Jul-2022,000008338878108,JR HOLLAND FOODSERVICE,5499,Catering costs - provisions,30.88,0.00,30.88
Neighbourhoods and Climate Change,Environmental Services,011060,C&G - Hardwick Park Catering,Supplies and Services,324117,Provisions E324,08-Jul-2022,000008338878118,FREEMAN CATERING BUTCH,5422,Catering costs - provisions,40.27,0.00,40.27
Neighbourhoods and Climate Change,Environmental Services,011060,C&G - Hardwick Park Catering,Supplies and Services,324117,Provisions E324,08-Jul-2022,000008338878120,FREEMAN CATERING BUTCH,5422,Catering costs - provisions,42.24,0.00,42.24
Neighbourhoods and Climate Change,Environmental Services,011060,C&G - Hardwick Park Catering,Supplies and Services,324117,Provisions E324,08-Jul-2022,000008338878124,FREEMAN CATERING BUTCH,5422,Catering costs - provisions,88.16,0.00,88.16
Neighbourhoods and Climate Change,Environmental Services,011060,C&G - Hardwick Park Catering,Supplies and Services,324117,Provisions E324,08-Jul-2022,000008338878126,HOPWELLS LTD,5811,Catering costs - provisions,300.78,50.13,250.65
Neighbourhoods and Climate Change,Environmental Services,011060,C&G - Hardwick Park Catering,Supplies and Services,324117,Provisions E324,08-Jul-2022,000008338878126 - 1,HOPWELLS LTD,5811,Catering costs - provisions,176.92,,176.92
Neighbourhoods and Climate Change,Environmental Services,011060,C&G - Hardwick Park Catering,Supplies and Services,324117,Provisions E324,08-Jul-2022,000008338878130,JR HOLLAND FOODSERVICE,5499,Catering costs - provisions,163.50,0.00,163.50
Regeneration Economy and Growth,Corporate Property and Land,021234,Catering - Locomotion,Supplies and Services,324117,Provisions E324,08-Jul-2022,000008338878132,HOPWELLS LTD,5811,Catering costs - provisions,49.68,8.28,41.40
Regeneration Economy and Growth,Corporate Property and Land,021234,Catering - Locomotion,Supplies and Services,324117,Provisions E324,08-Jul-2022,000008338878132 - 1,HOPWELLS LTD,5811,Catering costs - provisions,312.46,,312.46
Regeneration Economy and Growth,Corporate Property and Land,021234,Catering - Locomotion,Supplies and Services,324117,Provisions E324,08-Jul-2022,000008338878138,HOPWELLS LTD,5811,Catering costs - provisions,-16.33,0.00,-16.33
Regeneration Economy and Growth,Corporate Property and Land,021235,Catering - Wharton Park,Supplies and Services,324117,Provisions E324,08-Jul-2022,000008338878140,HOPWELLS LTD,5811,Catering costs - provisions,286.44,47.75,238.69
Regeneration Economy and Growth,Culture Sport and Tourism,054812,Gala Theatre - Catering etc,Supplies and Services,324117,Provisions E324,08-Jul-2022,000008338878148,FREEMAN CATERING BUTCH,5422,Catering costs - provisions,19.16,0.00,19.16
Regeneration Economy and Growth,Culture Sport and Tourism,054812,Gala Theatre - Catering etc,Supplies and Services,324117,Provisions E324,08-Jul-2022,000008338878150,JR HOLLAND FOODSERVICE,5499,Catering costs - provisions,54.71,0.00,54.71
Regeneration Economy and Growth,Corporate Property and Land,021242,Catering - County Hall,Supplies and Services,324117,Provisions E324,08-Jul-2022,000008338878160,HOPWELLS LTD,5811,Catering costs - provisions,21.12,3.52,17.60
Regeneration Economy and Growth,Corporate Property and Land,021242,Catering - County Hall,Supplies and Services,324117,Provisions E324,08-Jul-2022,000008338878162,HOPWELLS LTD,5811,Catering costs - provisions,57.00,0.00,57.00
Regeneration Economy and Growth,Corporate Property and Land,021242,Catering - County Hall,Supplies and Services,324117,Provisions E324,08-Jul-2022,000008338878166,HOPWELLS LTD,5811,Catering costs - provisions,150.66,0.00,150.66
Regeneration Economy and Growth,Corporate Property and Land,021324,Catering - Meadowfield,Supplies and Services,324117,Provisions E324,08-Jul-2022,000008338878168,FREEMAN CATERING BUTCH,5422,Catering costs - provisions,99.00,0.00,99.00
